Workbook

Sheet CY24 FPP Review Tracker (hidden)
A1: Reviewer | B1: ACO Name | C1: FPP Received (x) | D1: FPP Received Date | E1: Extension Requested (If yes, please add new due date) | F1: FPP Feedback (x) | G1: IA Feedback (x) | H1: Notes | I1: FPP Feedback Responses Received | J1: SSI team appvd | K1: IA appvd | L1: Approval Sent? (x)
A2: Nat | B2: C3 | C2: x | D2: 2023-10-06 | F2: x | G2: x | I2: 2023-11-09 | J2: x | K2: x | L2: x
A3: Nat | B3: FCHP Berkshire | C3: x | D3: 2023-10-06 | F3: x | G3: x | I3: 2023-11-13 | J3: x | K3: x | L3: x
A4: Nat | B4: Wellsense - Tufts Medicine (aka Care Alliance) | C4: x | D4: 2023-10-06 | F4: x | G4: x | I4: 2023-11-09 | J4: x | K4: x | L4: x
A5: Nat | B5: Reliant | C5: x | D5: 2023-10-04 | J5: x | K5: x | L5: x
A6: Nat | B6: East Boston-Wellsense | C6: x | D6: 2023-10-06 | J6: x | K6: x | L6: x
A7: Kevin | B7: BCH ACO (Children's) | C7: X | D7: 2023-10-06 | F7: x | G7: x | I7: 2023-10-31 | J7: x | K7: x | L7: x
A8: Kevin | B8: BMCHP Mercy | C8: x | D8: 2023-10-06 | J8: x | K8: x | L8: x
A9: Kevin | B9: BMCHP Signature | C9: x | D9: 2023-10-06 | J9: x | K9: x | L9: x
A10: Kevin | B10: BMCHP Southcoast | C10: x | D10: 2023-10-06 | J10: x | K10: x | L10: x
A11: Kevin | B11: Steward | C11: x | D11: 2023-10-16 | E11: 2023-10-13 | F11: x | I11: 2023-11-09 | J11: x | K11: x | L11: x
A12: Stephanie | B12: Lahey-BIDCO-Wellsense | C12: X | D12: 2023-10-06 | J12: x | K12: x | L12: x
A13: Stephanie | B13: MGB ACO (Partners) | C13: X | D13: 2023-10-06 | F13: X | G13: x | I13: 2023-11-09 | J13: x | K13: x | L13: x
A14: Emma | B14: THPP-UMMH | C14: x | D14: 2023-10-06 | F14: x | G14: x | I14: 2023-11-06 | J14: x | K14: x | L14: x
A15: Emma | B15: BMCHP BACO | C15: x | D15: 2023-10-06 | F15: x | I15: 2023-11-09 | J15: x | K15: x | L15: x
A16: Emma | B16: HNE Baystate | C16: x | D16: 2023-10-06 | F16: x | G16: x | I16: 2023-11-01 | J16: x | K16: x | L16: x
A17: Emma | B17: THPP Atrius | C17: x | D17: 2023-10-16 | E17: 2023-10-13 | J17: x | K17: x | L17: x
A18: Emma | B18: THPP CHA | C18: x | D18: 2023-10-06 | F18: x | G18: x | I18: 2023-11-07 | J18: x | K18: x | L18: x

Sheet Background & Instructions
A1: Commonwealth of Massachusetts Executive Office of Health and Human Services - Welcome to the Flexible Services Program! Last Updated: 4/22/2024 Background on the Flexible Services Program: MassHealth’s Flexible Services Program can help you pay for food and housing. Many of these supports are provided by local organizations in your community. MassHealth calls these organizations Social Service Organizations (SSOs). If you are enrolled in a MassHealth Accountable Care Organization (ACO) and you meet MassHealth rules for the Flexible Services Program, you may be able to get help with food and housing. To receive Flexible Services, you must: • Be enrolled in a MassHealth ACO; • Have a health condition such as diabetes or high-risk pregnancy; and • Have a risk factor such as not having a home, being at risk of losing your home, or having trouble getting enough food or the right kinds of foods to keep you healthy. If you meet the MassHealth rules for the Flexible Services Program, your ACO may be able to help you get supports. The names of these supports used in the Program Directory are italicized in parentheses next to the service you could receive: • Help looking for a place to live (this is called pre-tenancy support) • Help with furniture and other items when you move into a new home; for example, a bed or linens (this is called pre-tenancy transitional assistance) • Changes to make the home safe and healthy; for example, putting in grab bars or removing mold (this is called home modifications) • Help learning how to work with your landlord to solve problems (this is called tenancy-sustaining support) • Grocery store coupons for free fruits and vegetables (this is called food vouchers) • Transportation to the grocery store (this can be public or private and is called transportation) • Healthy and well-balanced home-delivered meals (this can be called food boxes, home-delivered meals, or Medically Tailored Meals (MTM)) • Pots, pans, and cooking utensils (this is called nutrition kitchen supplies) Each ACO offers different goods and services. Please contact your ACO to understand what supports the ACO may offer and to find out if you can receive those supports. Instructions: The next tab, titled CY24 Program Directory, provides a list of each ACO and who to contact to find out more about their programs. It also provides information on the types of programs, who might be able to receive services, where the services are offered, and who provides the services. MassHealth Enrollment Guide: The MassHealth Enrollment Guide matches Massachusetts towns to ACO Service Areas on pages 38 to 44. Visit the guide by clicking the link in cell A2 or copying and pasting this link into your browser: https://www.mass.gov/doc/masshealth-enrollment-guide-2/download. The document referred to in cell A3 outlines changes to health plan service areas as of January 1, 2024. In general, the MassHealth Enrollment Guide provides information about the MassHealth Medicaid health plan options as of April 2023 and can help you: • Learn about the health plans available in your area and how to choose a provider, • Compare health plans in your area and choose the one that's right for you, and • Enroll in a health plan or change to a different health plan.
A2: MassHealth Enrollment Guide
A3: 2024 Changes to MassHealth Enrollment Guide

Sheet CY24 Program Directory
A1: ACO Name | B1: Referral Contact | C1: Type of Support | D1: Goods & Services | E1: Social Service Organization (SSO) | F1: Service Area(s) | G1: Health Condition | H1: Risk Factor(s)
A2: Mass General Brigham Health Plan with Mass General Brigham ACO | B2: Flexibleservices@partners.org | C2: Nutrition Supports | D2: Medically Tailored Meals (MTM); Intake, assessment, coordination and nutrition counseling | E2: Community Servings | F2: Adams; Athol; Attleboro; Barnstable; Beverly; Boston - Primary; Brockton; Fall River; Falmouth; Framingham; Gardner - Fitchburg; Gloucester; Greenfield; Haverhill; Holyoke; Lawrence; Lowell; Lynn; Malden; Nantucket; New Bedford; Oak Bluffs; Northampton; Orleans; Pittsfield; Plymouth; Quincy; Revere; Salem; Somerville; Southbridge; Springfield; Taunton; Waltham; Wareham; Westfield; Woburn; Worcester | G2: Behavioral - Anxiety; Behavioral - Depression; Behavioral - Serious Emotional Disturbance; Behavioral - Serious Mental Illness; Behavioral - Substance Use Disorder; Behavioral - Trauma/Stress Disorder; Physical - Cardiovascular Conditions - Hypertension; Physical - Developmental Disabilities; Physical - Disability; Physical - Gastrointestinal (GI) Conditions; Physical - Hematologic Conditions; Physical - Infectious Diseases; Physical - Metabolic - Diabetes; Physical - Neurologic Conditions; Physical - Oncologic Conditions; Physical - Renal Conditions; Physical - Respiratory Conditions; Activities of Daily Living (ADL); Instrumental Activities of Daily Living (IADL); ED Utilization; High Risk Pregnancy | H2: At risk for nutrition deficiency or imbalance due to food insecurity
A3: Mass General Brigham Health Plan with Mass General Brigham ACO | B3: Flexibleservices@partners.org | C3: Nutrition Supports | D3: Medically Tailored Meals (MTM); Intake, assessment, coordination and nutrition counseling | E3: Western Mass Food Partnership | F3: Athol; Adams; Framingham; Greenfield; Holyoke; Northampton; Pittsfield; Springfield; Westfield | G3: Behavioral - Anxiety; Behavioral - Depression; Behavioral - Serious Emotional Disturbance; Behavioral - Serious Mental Illness; Behavioral - Substance Use Disorder; Behavioral - Trauma/Stress Disorder; Physical - Cardiovascular Conditions - Hypertension; Physical - Developmental Disabilities; Physical - Disability; Physical - Gastrointestinal (GI) Conditions; Physical - Hematologic Conditions; Physical - Infectious Diseases; Physical - Metabolic - Diabetes; Physical - Neurologic Conditions; Physical - Oncologic Conditions; Physical - Renal Conditions; Physical - Respiratory Conditions; Activities of Daily Living (ADL); Instrumental Activities of Daily Living (IADL); ED Utilization; High Risk Pregnancy | H3: At risk for nutrition deficiency or imbalance due to food insecurity
A4: Mass General Brigham Health Plan with Mass General Brigham ACO | B4: Flexibleservices@partners.org | C4: Nutrition Supports | D4: Food Vouchers; Intake, assessment, coordination and nutrition counseling | E4: About Fresh | F4: Boston - Primary; Malden; Revere; Somerville; Quincy; Woburn; Waltham | G4: Behavioral - Anxiety; Behavioral - Depression; Behavioral - Serious Emotional Disturbance; Behavioral - Serious Mental Illness; Behavioral - Substance Use Disorder; Behavioral - Trauma/Stress Disorder; Physical - Cardiovascular Conditions - Hypertension; Physical - Developmental Disabilities; Physical - Disability; Physical - Gastrointestinal (GI) Conditions; Physical - Hematologic Conditions; Physical - Infectious Diseases; Physical - Metabolic - Diabetes; Physical - Neurologic Conditions; Physical - Oncologic Conditions; Physical - Renal Conditions; Physical - Respiratory Conditions; Activities of Daily Living (ADL); Instrumental Activities of Daily Living (IADL); ED Utilization; High Risk Pregnancy | H4: At risk for nutrition deficiency or imbalance due to food insecurity
A5: Mass General Brigham Health Plan with Mass General Brigham ACO | B5: Flexibleservices@partners.org | C5: Nutrition Supports | D5: Intake, assessment and coordination of food boxes | E5: Vida Feliz | F5: Boston - Primary | G5: Behavioral - Anxiety; Behavioral - Depression; Behavioral - Serious Emotional Disturbance; Behavioral - Serious Mental Illness; Behavioral - Substance Use Disorder; Behavioral - Trauma/Stress Disorder; Physical - Cardiovascular Conditions - Hypertension; Physical - Developmental Disabilities; Physical - Disability; Physical - Gastrointestinal (GI) Conditions; Physical - Hematologic Conditions; Physical - Infectious Diseases; Physical - Metabolic - Diabetes; Physical - Neurologic Conditions; Physical - Oncologic Conditions; Physical - Renal Conditions; Physical - Respiratory Conditions; Activities of Daily Living (ADL); Instrumental Activities of Daily Living (IADL); ED Utilization; High Risk Pregnancy | H5: At risk for nutrition deficiency or imbalance due to food insecurity
A6: Mass General Brigham Health Plan with Mass General Brigham ACO | B6: Flexibleservices@partners.org | C6: Nutrition Supports | D6: Food Boxes; Coordination of nutrition support, cooking demos and recipe development | E6: MGH Food Pantry | F6: Malden; Revere | G6: Behavioral - Anxiety; Behavioral - Depression; Behavioral - Serious Emotional Disturbance; Behavioral - Serious Mental Illness; Behavioral - Substance Use Disorder; Behavioral - Trauma/Stress Disorder; Physical - Cardiovascular Conditions - Hypertension; Physical - Developmental Disabilities; Physical - Disability; Physical - Gastrointestinal (GI) Conditions; Physical - Hematologic Conditions; Physical - Infectious Diseases; Physical - Metabolic - Diabetes; Physical - Neurologic Conditions; Physical - Oncologic Conditions; Physical - Renal Conditions; Physical - Respiratory Conditions; Activities of Daily Living (ADL); Instrumental Activities of Daily Living (IADL); ED Utilization; High Risk Pregnancy | H6: At risk for nutrition deficiency or imbalance due to food insecurity
A7: Mass General Brigham Health Plan with Mass General Brigham ACO | B7: Flexibleservices@partners.org | C7: Nutrition Supports | D7: Food Boxes | E7: Fresh Food Generation | F7: Boston - Primary; Malden; Revere; Somerville; Quincy; Woburn | G7: Behavioral - Anxiety; Behavioral - Depression; Behavioral - Serious Emotional Disturbance; Behavioral - Serious Mental Illness; Behavioral - Substance Use Disorder; Behavioral - Trauma/Stress Disorder; Physical - Cardiovascular Conditions - Hypertension; Physical - Developmental Disabilities; Physical - Disability; Physical - Gastrointestinal (GI) Conditions; Physical - Hematologic Conditions; Physical - Infectious Diseases; Physical - Metabolic - Diabetes; Physical - Neurologic Conditions; Physical - Oncologic Conditions; Physical - Renal Conditions; Physical - Respiratory Conditions; Activities of Daily Living (ADL); Instrumental Activities of Daily Living (IADL); ED Utilization; High Risk Pregnancy | H7: At risk for nutrition deficiency or imbalance due to food insecurity
A8: Mass General Brigham Health Plan with Mass General Brigham ACO | B8: Flexibleservices@partners.org | C8: Nutrition Supports | D8: Food Boxes; Nutrition Kitchen Supplies; Intake, assessment, coordination and nutrition counseling | E8: Just Roots | F8: Brockton; Attleboro; Quincy; Boston - Primary; Malden; Revere; Somerville; Quincy; Woburn | G8: Behavioral - Anxiety; Behavioral - Depression; Behavioral - Serious Emotional Disturbance; Behavioral - Serious Mental Illness; Behavioral - Substance Use Disorder; Behavioral - Trauma/Stress Disorder; Physical - Cardiovascular Conditions - Hypertension; Physical - Developmental Disabilities; Physical - Disability; Physical - Gastrointestinal (GI) Conditions; Physical - Hematologic Conditions; Physical - Infectious Diseases; Physical - Metabolic - Diabetes; Physical - Neurologic Conditions; Physical - Oncologic Conditions; Physical - Renal Conditions; Physical - Respiratory Conditions; Activities of Daily Living (ADL); Instrumental Activities of Daily Living (IADL); ED Utilization; High Risk Pregnancy | H8: At risk for nutrition deficiency or imbalance due to food insecurity
A9: Mass General Brigham Health Plan with Mass General Brigham ACO | B9: Flexibleservices@partners.org | C9: Nutrition Supports | D9: Food Boxes; Food Vouchers; Medically Tailored Meals (MTM); Nutrition Kitchen Supplies; Intake, assessment, coordination and nutrition counseling | E9: Foodsmart | F9: Adams; Athol; Attleboro; Barnstable; Beverly; Boston - Primary; Brockton; Fall River; Falmouth; Framingham; Gardner - Fitchburg; Gloucester; Greenfield; Haverhill; Holyoke; Lawrence; Lowell; Lynn; Malden; Nantucket; New Bedford; Oak Bluffs; Northampton; Orleans; Pittsfield; Plymouth; Quincy; Revere; Salem; Somerville; Southbridge; Springfield; Taunton; Waltham; Wareham; Westfield; Woburn; Worcester | G9: Behavioral - Anxiety; Behavioral - Depression; Behavioral - Serious Emotional Disturbance; Behavioral - Serious Mental Illness; Behavioral - Substance Use Disorder; Behavioral - Trauma/Stress Disorder; Physical - Cardiovascular Conditions - Hypertension; Physical - Developmental Disabilities; Physical - Disability; Physical - Gastrointestinal (GI) Conditions; Physical - Hematologic Conditions; Physical - Infectious Diseases; Physical - Metabolic - Diabetes; Physical - Neurologic Conditions; Physical - Oncologic Conditions; Physical - Renal Conditions; Physical - Respiratory Conditions; Activities of Daily Living (ADL); Instrumental Activities of Daily Living (IADL); ED Utilization; High Risk Pregnancy | H9: At risk for nutrition deficiency or imbalance due to food insecurity
A10: Mass General Brigham Health Plan with Mass General Brigham ACO | B10: Flexibleservices@partners.org | C10: Housing Supports | D10: Pre-Tenancy - Individual Supports; Pre-Tenancy - Transitional Supports - First/Last/Security; Pre-Tenancy - Transitional Supports - Moving Costs; Pre-Tenancy - Transitional Supports - Household Furniture; Tenancy Sustaining Supports - Prevention Services & Goods; Home Modifications - Asthma Interventions; Home Modifications - Physical Adaptations; Tenancy - Private Transportation | E10: Metro Housing Boston | F10: Boston - Primary; Malden; Revere; Somerville; Quincy; Woburn | G10: Behavioral - Anxiety; Behavioral - Depression; Behavioral - Serious Emotional Disturbance; Behavioral - Serious Mental Illness; Behavioral - Substance Use Disorder; Behavioral - Trauma/Stress Disorder; Physical - Cardiovascular Conditions - Hypertension; Physical - Developmental Disabilities; Physical - Disability; Physical - Gastrointestinal (GI) Conditions; Physical - Hematologic Conditions; Physical - Infectious Diseases; Physical - Metabolic - Diabetes; Physical - Neurologic Conditions; Physical - Oncologic Conditions; Physical - Renal Conditions; Physical - Respiratory Conditions; Activities of Daily Living (ADL); Instrumental Activities of Daily Living (IADL); ED Utilization; High Risk Pregnancy | H10: Experiencing homelessness; At risk of experiencing homelessness
A11: Mass General Brigham Health Plan with Mass General Brigham ACO | B11: Flexibleservices@partners.org | C11: Housing Supports | D11: Pre-Tenancy - Individual Supports; Pre-Tenancy - Transitional Supports - First/Last/Security; Pre-Tenancy - Transitional Supports - Moving Costs; Pre-Tenancy - Transitional Supports - Household Furniture; Tenancy Sustaining Supports - Prevention Services & Goods; Home Modifications - Asthma Interventions; Home Modifications - Physical Adaptations; Tenancy - Private Transportation | E11: South Middlesex Opportunity Council | F11: Framingham; Gardner - Fitchburg; Southbridge; Waltham; Worcester | G11: Behavioral - Anxiety; Behavioral - Depression; Behavioral - Serious Emotional Disturbance; Behavioral - Serious Mental Illness; Behavioral - Substance Use Disorder; Behavioral - Trauma/Stress Disorder; Physical - Cardiovascular Conditions - Hypertension; Physical - Developmental Disabilities; Physical - Disability; Physical - Gastrointestinal (GI) Conditions; Physical - Hematologic Conditions; Physical - Infectious Diseases; Physical - Metabolic - Diabetes; Physical - Neurologic Conditions; Physical - Oncologic Conditions; Physical - Renal Conditions; Physical - Respiratory Conditions; Activities of Daily Living (ADL); Instrumental Activities of Daily Living (IADL); ED Utilization; High Risk Pregnancy | H11: Experiencing homelessness; At risk of experiencing homelessness
A12: Mass General Brigham Health Plan with Mass General Brigham ACO | B12: Flexibleservices@partners.org | C12: Housing Supports | D12: Pre-Tenancy - Individual Supports; Pre-Tenancy - Transitional Supports - First/Last/Security; Pre-Tenancy - Transitional Supports - Moving Costs; Pre-Tenancy - Transitional Supports - Household Furniture; Tenancy Sustaining Supports - Prevention Services & Goods; Home Modifications - Asthma Interventions; Home Modifications - Physical Adaptations; Tenancy - Private Transportation | E12: Community Teamwork Inc. | F12: Beverly; Gloucester; Haverhill; Lawrence; Lowell; Lynn; Malden; Salem; Woburn | G12: Behavioral - Anxiety; Behavioral - Depression; Behavioral - Serious Emotional Disturbance; Behavioral - Serious Mental Illness; Behavioral - Substance Use Disorder; Behavioral - Trauma/Stress Disorder; Physical - Cardiovascular Conditions - Hypertension; Physical - Developmental Disabilities; Physical - Disability; Physical - Gastrointestinal (GI) Conditions; Physical - Hematologic Conditions; Physical - Infectious Diseases; Physical - Metabolic - Diabetes; Physical - Neurologic Conditions; Physical - Oncologic Conditions; Physical - Renal Conditions; Physical - Respiratory Conditions; Activities of Daily Living (ADL); Instrumental Activities of Daily Living (IADL); ED Utilization; High Risk Pregnancy | H12: Experiencing homelessness; At risk of experiencing homelessness
A13: Mass General Brigham Health Plan with Mass General Brigham ACO | B13: Flexibleservices@partners.org | C13: Housing Supports | D13: Pre-Tenancy - Individual Supports; Pre-Tenancy - Transitional Supports - First/Last/Security; Pre-Tenancy - Transitional Supports - Moving Costs; Pre-Tenancy - Transitional Supports - Household Furniture; Tenancy Sustaining Supports - Prevention Services & Goods; Home Modifications - Asthma Interventions; Home Modifications - Physical Adaptations; Tenancy - Private Transportation | E13: NeighborWorks Housing Solutions | F13: Attleboro; Brockton; New Bedford; Quincy; Plymouth; Taunton | G13: Behavioral - Anxiety; Behavioral - Depression; Behavioral - Serious Emotional Disturbance; Behavioral - Serious Mental Illness; Behavioral - Substance Use Disorder; Behavioral - Trauma/Stress Disorder; Physical - Cardiovascular Conditions - Hypertension; Physical - Developmental Disabilities; Physical - Disability; Physical - Gastrointestinal (GI) Conditions; Physical - Hematologic Conditions; Physical - Infectious Diseases; Physical - Metabolic - Diabetes; Physical - Neurologic Conditions; Physical - Oncologic Conditions; Physical - Renal Conditions; Physical - Respiratory Conditions; Activities of Daily Living (ADL); Instrumental Activities of Daily Living (IADL); ED Utilization; High Risk Pregnancy | H13: Experiencing homelessness; At risk of experiencing homelessness
A14: Mass General Brigham Health Plan with Mass General Brigham ACO | B14: Flexibleservices@partners.org | C14: Housing Supports | D14: Pre-Tenancy - Individual Supports; Pre-Tenancy - Transitional Supports - First/Last/Security; Pre-Tenancy - Transitional Supports - Moving Costs; Pre-Tenancy - Transitional Supports - Household Furniture; Tenancy Sustaining Supports - Prevention Services & Goods; Home Modifications - Asthma Interventions; Home Modifications - Physical Adaptations; Tenancy - Private Transportation | E14: Vinfen | F14: Boston - Primary; Malden; Revere; Somerville; Quincy; Woburn | G14: Behavioral - Anxiety; Behavioral - Depression; Behavioral - Serious Emotional Disturbance; Behavioral - Serious Mental Illness; Behavioral - Substance Use Disorder; Behavioral - Trauma/Stress Disorder; Physical - Cardiovascular Conditions - Hypertension; Physical - Developmental Disabilities; Physical - Disability; Physical - Gastrointestinal (GI) Conditions; Physical - Hematologic Conditions; Physical - Infectious Diseases; Physical - Metabolic - Diabetes; Physical - Neurologic Conditions; Physical - Oncologic Conditions; Physical - Renal Conditions; Physical - Respiratory Conditions; Activities of Daily Living (ADL); Instrumental Activities of Daily Living (IADL); ED Utilization; High Risk Pregnancy | H14: Experiencing homelessness; At risk of experiencing homelessness
A15: Mass General Brigham Health Plan with Mass General Brigham ACO | B15: Flexibleservices@partners.org | C15: Housing Supports | D15: Pre-Tenancy - Individual Supports; Pre-Tenancy - Transitional Supports - First/Last/Security; Pre-Tenancy - Transitional Supports - Moving Costs; Pre-Tenancy - Transitional Supports - Household Furniture; Tenancy Sustaining Supports - Prevention Services & Goods; Home Modifications - Asthma Interventions; Home Modifications - Physical Adaptations; Tenancy - Private Transportation | E15: Way Finders | F15: Athol; Adams; Framingham; Greenfield; Holyoke; Northampton; Pittsfield; Springfield; Westfield | G15: Behavioral - Anxiety; Behavioral - Depression; Behavioral - Serious Emotional Disturbance; Behavioral - Serious Mental Illness; Behavioral - Substance Use Disorder; Behavioral - Trauma/Stress Disorder; Physical - Cardiovascular Conditions - Hypertension; Physical - Developmental Disabilities; Physical - Disability; Physical - Gastrointestinal (GI) Conditions; Physical - Hematologic Conditions; Physical - Infectious Diseases; Physical - Metabolic - Diabetes; Physical - Neurologic Conditions; Physical - Oncologic Conditions; Physical - Renal Conditions; Physical - Respiratory Conditions; Activities of Daily Living (ADL); Instrumental Activities of Daily Living (IADL); ED Utilization; High Risk Pregnancy | H15: Experiencing homelessness; At risk of experiencing homelessness
A16: Mass General Brigham Health Plan with Mass General Brigham ACO | B16: Flexibleservices@partners.org | C16: Housing Supports | D16: Tenancy Sustaining Supports - Prevention Services & Goods; Tenancy Sustaining Supports - Stabilization Services & Goods; Pre-Tenancy - Individual Supports | E16: Housing Families Inc. | F16: Malden; Revere | G16: Behavioral - Anxiety; Behavioral - Depression; Behavioral - Serious Emotional Disturbance; Behavioral - Serious Mental Illness; Behavioral - Substance Use Disorder; Behavioral - Trauma/Stress Disorder; Physical - Cardiovascular Conditions - Hypertension; Physical - Developmental Disabilities; Physical - Disability; Physical - Gastrointestinal (GI) Conditions; Physical - Hematologic Conditions; Physical - Infectious Diseases; Physical - Metabolic - Diabetes; Physical - Neurologic Conditions; Physical - Oncologic Conditions; Physical - Renal Conditions; Physical - Respiratory Conditions; Activities of Daily Living (ADL); Instrumental Activities of Daily Living (IADL); ED Utilization; High Risk Pregnancy | H16: Experiencing homelessness; At risk of experiencing homelessness
A17: BeHealthy Partnership Plan | B17: Madeline Stankiewicz, Madeline.Stankiewicz@baystatehealth.org | C17: Housing Supports | D17: Home Modifications - Asthma Interventions | E17: Revitalize CDC | F17: Springfield; Westfield; Holyoke; Northampton; Greenfield | G17: Physical - Respiratory Conditions; Activities of Daily Living (ADL); COPD; Emphysema | H17: At risk of experiencing homelessness
A18: BeHealthy Partnership Plan | B18: Madeline Stankiewicz, Madeline.Stankiewicz@baystatehealth.org | C18: Nutrition Supports | D18: Food Boxes; Nutrition Kitchen Supplies; Nutrition Education; Tenancy - Public Transportation | E18: Revitalize CDC | F18: Springfield; Westfield; Holyoke; Northampton; Greenfield | G18: Physical - Metabolic - Diabetes; High Risk Pregnancy; Pediatric Obesity; Hypertension | H18: At risk for nutrition deficiency or imbalance due to food insecurity
A19: Tufts Health Together with Cambridge Health Alliance (CHA) | B19: edibacco@servings.org, 617-522-7777 x266 | C19: Nutrition Supports | D19: Medically Tailored Meals (MTM); Nutrition Education | E19: Community Servings | F19: Boston - Primary; Lynn; Malden; Revere; Salem; Somerville; Waltham; Woburn | G19: Physical - Cardiovascular Conditions - Hypertension; Physical - Gastrointestinal (GI) Conditions; Physical - Infectious Diseases; Physical - Metabolic - Diabetes; Physical - Neurologic Conditions; Physical - Oncologic Conditions; Physical - Renal Conditions; Physical - Respiratory Conditions; High Risk Pregnancy; Cardiovascular - Other: Heart Disease, Dyslipidemia, Hyperlipidemia; Metabolic - Other: Class II and III Obesity, Malnutrition, Hyperglycemia, Wasting, Failure to Thrive, Underweight (BMI of less than 18.5) | H19: At risk for nutrition deficiency or imbalance due to food insecurity
A20: Tufts Health Together with Cambridge Health Alliance (CHA) | B20: goldsmithl@vinfen.org, 508-364-9438 | C20: Housing Supports | D20: Pre-Tenancy - Individual Supports; Pre-Tenancy - Transitional Supports - First/Last/Security; Pre-Tenancy - Transitional Supports - Moving Costs; Pre-Tenancy - Transitional Supports - Household Furniture; Tenancy Sustaining Supports - Prevention Services & Goods; Tenancy Sustaining Supports - Stabilization Services & Goods; Home Modifications - Physical Adaptations; Tenancy - Private Transportation; Home Modifications - Asthma Interventions; Nutrition Kitchen Supplies; Pre-Tenancy - Transitional Supports - Other: Services to assist members with their transition into housing; Home Modifications - Other: Services to help members coordinate the home modifications | E20: Vinfen | F20: Boston - Primary; Lynn; Malden; Revere; Salem; Somerville; Waltham; Woburn | G20: Behavioral - Anxiety; Behavioral - Depression; Behavioral - Serious Emotional Disturbance; Behavioral - Serious Mental Illness; Behavioral - Substance Use Disorder; Behavioral - Trauma/Stress Disorder; Physical - Cardiovascular Conditions - Hypertension; Physical - Developmental Disabilities; Physical - Disability; Physical - Gastrointestinal (GI) Conditions; Physical - Hematologic Conditions; Physical - Infectious Diseases; Physical - Metabolic - Diabetes; Physical - Neurologic Conditions; Physical - Oncologic Conditions; Physical - Renal Conditions; Physical - Respiratory Conditions; Activities of Daily Living (ADL); Instrumental Activities of Daily Living (IADL); ED Utilization; High Risk Pregnancy; Behavioral - Other: Adjustment disorder, Attempted suicide or self-injury, Conduct disorder, Eating disorder, Homicidal ideation, Personality and other mood disorder, Psychosomatic disorder, Psychosis; Metabolic - Other: Obesity, Malnutrition, Wasting, Failure to Thrive, Underweight (BMI of less than 18.5); Cardiovascular - Other: Heart failure, Hyperlipidemia, Ischemic heart disease, Dyslipidemia; Physical - Other: Osteoporosis | H20: Experiencing homelessness; At risk of experiencing homelessness; At risk for Nutrition deficiency or imbalance due to food insecurity
A21: Tufts Health Together with Cambridge Health Alliance (CHA) | B21: Adam@aboutfresh.org, 617-359-4597 | C21: Nutrition Supports | D21: Food Vouchers | E21: About Fresh | F21: Boston - Primary; Lynn; Malden; Revere; Salem; Somerville; Waltham; Woburn | G21: Behavioral - Anxiety; Behavioral - Depression; Behavioral - Serious Emotional Disturbance; Behavioral - Serious Mental Illness; Behavioral - Substance Use Disorder; Behavioral - Trauma/Stress Disorder; Physical - Cardiovascular Conditions - Hypertension; Physical - Developmental Disabilities; Physical - Disability; Physical - Gastrointestinal (GI) Conditions; Physical - Hematologic Conditions; Physical - Infectious Diseases; Physical - Metabolic - Diabetes; Physical - Neurologic Conditions; Physical - Oncologic Conditions; Physical - Renal Conditions; Physical - Respiratory Conditions; Activities of Daily Living (ADL); Instrumental Activities of Daily Living (IADL); ED Utilization; High Risk Pregnancy; Behavioral - Other: Adjustment disorder, Attempted suicide or self-injury, Conduct disorder, Eating disorder, Homicidal ideation, Personality and other mood disorder, Psychosomatic disorder, Psychosis; Metabolic - Other: Obesity, Malnutrition, Wasting, Failure to Thrive, Underweight (BMI of less than 18.5); Cardiovascular - Other: Heart failure, Hyperlipidemia, Ischemic heart disease, Dyslipidemia; Physical - Other: Osteoporosis | H21: At risk for nutrition deficiency or imbalance due to food insecurity
A22: Tufts Health Together with Cambridge Health Alliance (CHA) | B22: caroline.carney@goodmeasures.com | C22: Nutrition Supports | D22: Food Boxes; Nutrition Education; Nutrition Kitchen Supplies | E22: Good Measures | F22: Boston - Primary; Lynn; Malden; Revere; Salem; Somerville; Waltham; Woburn | G22: Behavioral - Anxiety; Behavioral - Depression; Behavioral - Serious Emotional Disturbance; Behavioral - Serious Mental Illness; Behavioral - Substance Use Disorder; Behavioral - Trauma/Stress Disorder; Physical - Cardiovascular Conditions - Hypertension; Physical - Developmental Disabilities; Physical - Disability; Physical - Gastrointestinal (GI) Conditions; Physical - Hematologic Conditions; Physical - Infectious Diseases; Physical - Metabolic - Diabetes; Physical - Neurologic Conditions; Physical - Oncologic Conditions; Physical - Renal Conditions; Physical - Respiratory Conditions; Activities of Daily Living (ADL); Instrumental Activities of Daily Living (IADL); ED Utilization; High Risk Pregnancy; Behavioral - Other: Adjustment disorder, Attempted suicide or self-injury, Conduct disorder, Eating disorder, Homicidal ideation, Personality and other mood disorder, Psychosomatic disorder, Psychosis; Metabolic - Other: Obesity, Malnutrition, Wasting, Failure to Thrive, Underweight (BMI of less than 18.5); Cardiovascular - Other: Heart failure, Hyperlipidemia, Ischemic heart disease, Dyslipidemia; Physical - Other: Osteoporosis | H22: At risk for nutrition deficiency or imbalance due to food insecurity
A23: Tufts Health Together with UMass Memorial Health | B23: FlexibleServices@umassmemorial.org | C23: Nutrition Supports | D23: Food Vouchers | E23: About Fresh | F23: Adams; Athol; Attleboro; Barnstable; Beverly; Boston - Primary; Brockton; Fall River; Falmouth; Framingham; Gloucester; Greenfield; Haverhill; Holyoke; Lawrence; Lowell; Lynn; Malden; Nantucket; New Bedford; Northampton; Oak Bluffs; Orleans; Pittsfield; Plymouth; Quincy; Revere; Salem; Somerville; Southbridge; Springfield; Taunton; Waltham; Wareham; Westfield; Woburn; Worcester; Gardner - Fitchburg | G23: Behavioral - Anxiety; Behavioral - Depression; Behavioral - Serious Emotional Disturbance; Behavioral - Serious Mental Illness; Behavioral - Substance Use Disorder; Behavioral - Trauma/Stress Disorder; Physical - Cardiovascular Conditions - Hypertension; Physical - Developmental Disabilities; Physical - Disability; Physical - Gastrointestinal (GI) Conditions; Physical - Hematologic Conditions; Physical - Infectious Diseases; Physical - Metabolic - Diabetes; Physical - Neurologic Conditions; Physical - Oncologic Conditions; Physical - Renal Conditions; Physical - Respiratory Conditions; Physical - Other; Activities of Daily Living (ADL); Instrumental Activities of Daily Living (IADL); ED Utilization; High Risk Pregnancy; Cardiovascular - other: Chronic Heart Failure; Metabolic - other: Malnutrition, Failure to Thrive (over three years old), Adults with a Body Mass Index greater than 30, Pediatric (age <18) obesity 95-99% percentiles, Vitamin D deficiency or receiving Vitamin D supplements | H23: At risk for nutrition deficiency or imbalance due to food insecurity
A24: Tufts Health Together with UMass Memorial Health | B24: FlexibleServices@umassmemorial.org | C24: Nutrition Supports | D24: Food Boxes; Home Delivered Meals; Nutrition Education; Nutrition Kitchen Supplies | E24: Elder Services of Worcester Area | F24: Worcester | G24: Behavioral - Anxiety; Behavioral - Depression; Behavioral - Serious Emotional Disturbance; Behavioral - Serious Mental Illness; Behavioral - Substance Use Disorder; Behavioral - Trauma/Stress Disorder; Physical - Cardiovascular Conditions - Hypertension; Physical - Developmental Disabilities; Physical - Disability; Physical - Gastrointestinal (GI) Conditions; Physical - Hematologic Conditions; Physical - Infectious Diseases; Physical - Metabolic - Diabetes; Physical - Neurologic Conditions; Physical - Oncologic Conditions; Physical - Renal Conditions; Physical - Respiratory Conditions; Physical - Other; Activities of Daily Living (ADL); Instrumental Activities of Daily Living (IADL); ED Utilization; High Risk Pregnancy; Cardiovascular - other: Chronic Heart Failure; Metabolic - other: Malnutrition, Failure to Thrive (over three years old), Adults with a Body Mass Index greater than 30, Pediatric (age <18) obesity 95-99% percentiles, Vitamin D deficiency or receiving Vitamin D supplements | H24: At risk for nutrition deficiency or imbalance due to food insecurity
A25: Tufts Health Together with UMass Memorial Health | B25: FlexibleServices@umassmemorial.org | C25: Nutrition Supports | D25: Home Delivered Meals; Nutrition Education; Nutrition Kitchen Supplies | E25: Making Opportunity Count | F25: Gardner - Fitchburg | G25: Behavioral - Anxiety; Behavioral - Depression; Behavioral - Serious Emotional Disturbance; Behavioral - Serious Mental Illness; Behavioral - Substance Use Disorder; Behavioral - Trauma/Stress Disorder; Physical - Cardiovascular Conditions - Hypertension; Physical - Developmental Disabilities; Physical - Disability; Physical - Gastrointestinal (GI) Conditions; Physical - Hematologic Conditions; Physical - Infectious Diseases; Physical - Metabolic - Diabetes; Physical - Neurologic Conditions; Physical - Oncologic Conditions; Physical - Renal Conditions; Physical - Respiratory Conditions; Physical - Other; Activities of Daily Living (ADL); Instrumental Activities of Daily Living (IADL); ED Utilization; High Risk Pregnancy; Cardiovascular - other: Chronic Heart Failure; Metabolic - other: Malnutrition, Failure to Thrive (over three years old), Adults with a Body Mass Index greater than 30, Pediatric (age <18) obesity 95-99% percentiles, Vitamin D deficiency or receiving Vitamin D supplements | H25: At risk for nutrition deficiency or imbalance due to food insecurity
A26: Tufts Health Together with UMass Memorial Health | B26: FlexibleServices@umassmemorial.org | C26: Housing Supports | D26: Pre-Tenancy - Individual Supports; Pre-Tenancy - Transitional Supports - First/Last/Security; Pre-Tenancy - Transitional Supports - Moving Costs; Pre-Tenancy - Transitional Supports - Household Furniture; Tenancy Sustaining Supports - Prevention Services & Goods; Home Modifications - Physical Adaptations | E26: Making Opportunity Count | F26: Gardner - Fitchburg | G26: Behavioral - Anxiety; Behavioral - Depression; Behavioral - Serious Emotional Disturbance; Behavioral - Serious Mental Illness; Behavioral - Substance Use Disorder; Behavioral - Trauma/Stress Disorder; Physical - Cardiovascular Conditions - Hypertension; Physical - Developmental Disabilities; Physical - Disability; Physical - Gastrointestinal (GI) Conditions; Physical - Hematologic Conditions; Physical - Infectious Diseases; Physical - Metabolic - Diabetes; Physical - Neurologic Conditions; Physical - Oncologic Conditions; Physical - Renal Conditions; Physical - Respiratory Conditions; Physical - Other; Activities of Daily Living (ADL); Instrumental Activities of Daily Living (IADL); ED Utilization; High Risk Pregnancy; Cardiovascular - other: Chronic Heart Failure; Metabolic - other: Malnutrition, Failure to Thrive (over three years old), Adults with a Body Mass Index greater than 30, Pediatric (age <18) obesity 95-99% percentiles, Vitamin D deficiency or receiving Vitamin D supplements | H26: Experiencing homelessness; At risk of experiencing homelessness
A27: Tufts Health Together with UMass Memorial Health | B27: FlexibleServices@umassmemorial.org | C27: Housing Supports | D27: Tenancy Sustaining Supports - Prevention Services & Goods; Pre-Tenancy - Transitional Supports - First/Last/Security; Pre-Tenancy - Transitional Supports - Moving Costs; Pre-Tenancy - Transitional Supports - Household Furniture; Tenancy - Private Transportation; Home Modifications - Asthma Interventions; Home Modifications - Physical Adaptations; Tenancy Sustaining Supports - Stabilization Services & Goods | E27: Massachusetts Coalition for the Homeless | F27: Adams; Athol; Attleboro; Barnstable; Beverly; Boston - Primary; Brockton; Fall River; Falmouth; Framingham; Gloucester; Greenfield; Haverhill; Holyoke; Lawrence; Lowell; Lynn; Malden; Nantucket; New Bedford; Northampton; Oak Bluffs; Orleans; Pittsfield; Plymouth; Quincy; Revere; Salem; Somerville; Southbridge; Springfield; Taunton; Waltham; Wareham; Westfield; Woburn; Worcester; Gardner - Fitchburg | G27: Behavioral - Anxiety; Behavioral - Depression; Behavioral - Serious Emotional Disturbance; Behavioral - Serious Mental Illness; Behavioral - Substance Use Disorder; Behavioral - Trauma/Stress Disorder; Physical - Cardiovascular Conditions - Hypertension; Physical - Developmental Disabilities; Physical - Disability; Physical - Gastrointestinal (GI) Conditions; Physical - Hematologic Conditions; Physical - Infectious Diseases; Physical - Metabolic - Diabetes; Physical - Neurologic Conditions; Physical - Oncologic Conditions; Physical - Renal Conditions; Physical - Respiratory Conditions; Physical - Other; Activities of Daily Living (ADL); Instrumental Activities of Daily Living (IADL); ED Utilization; Cardiovascular - other: Chronic Heart Failure; Metabolic - other: Malnutrition, Failure to Thrive (over three years old), Adults with a Body Mass Index greater than 30, Pediatric (age <18) obesity 95-99% percentiles, Vitamin D deficiency or receiving Vitamin D supplements | H27: Experiencing homelessness; At risk of experiencing homelessness
A28: Tufts Health Together with UMass Memorial Health | B28: FlexibleServices@umassmemorial.org | C28: Housing Supports | D28: Pre-Tenancy - Individual Supports; Tenancy Sustaining Supports - Prevention Services & Goods; Pre-Tenancy - Transitional Supports - First/Last/Security; Pre-Tenancy - Transitional Supports - Moving Costs; Pre-Tenancy - Transitional Supports - Other; Pre-Tenancy - Transitional Supports - Household Furniture; Tenancy Sustaining Supports - Stabilization Services & Goods | E28: Open Sky | F28: Worcester | G28: Behavioral - Anxiety; Behavioral - Depression; Behavioral - Serious Emotional Disturbance; Behavioral - Serious Mental Illness; Behavioral - Substance Use Disorder; Behavioral - Trauma/Stress Disorder; Physical - Cardiovascular Conditions - Hypertension; Physical - Developmental Disabilities; Physical - Disability; Physical - Gastrointestinal (GI) Conditions; Physical - Hematologic Conditions; Physical - Infectious Diseases; Physical - Metabolic - Diabetes; Physical - Neurologic Conditions; Physical - Oncologic Conditions; Physical - Renal Conditions; Physical - Respiratory Conditions; Physical - Other; Activities of Daily Living (ADL); Instrumental Activities of Daily Living (IADL); ED Utilization; High Risk Pregnancy; Cardiovascular - other: Chronic Heart Failure; Metabolic - other: Malnutrition, Failure to Thrive (over three years old), Adults with a Body Mass Index greater than 30, Pediatric (age <18) obesity 95-99% percentiles, Vitamin D deficiency or receiving Vitamin D supplements | H28: Experiencing homelessness; At risk of experiencing homelessness
A29: Tufts Health Together with UMass Memorial Health | B29: FlexibleServices@umassmemorial.org | C29: Nutrition Supports | D29: Food Vouchers; Nutrition Education; Nutrition Kitchen Supplies | E29: Project Bread | F29: Adams; Athol; Attleboro; Barnstable; Beverly; Boston - Primary; Brockton; Fall River; Falmouth; Framingham; Gloucester; Greenfield; Haverhill; Holyoke; Lawrence; Lowell; Lynn; Malden; Nantucket; New Bedford; Northampton; Oak Bluffs; Orleans; Pittsfield; Plymouth; Quincy; Revere; Salem; Somerville; Southbridge; Springfield; Taunton; Waltham; Wareham; Westfield; Woburn; Worcester; Gardner - Fitchburg | G29: Behavioral - Anxiety; Behavioral - Depression; Behavioral - Serious Emotional Disturbance; Behavioral - Serious Mental Illness; Behavioral - Substance Use Disorder; Behavioral - Trauma/Stress Disorder; Physical - Cardiovascular Conditions - Hypertension; Physical - Developmental Disabilities; Physical - Disability; Physical - Gastrointestinal (GI) Conditions; Physical - Hematologic Conditions; Physical - Infectious Diseases; Physical - Metabolic - Diabetes; Physical - Neurologic Conditions; Physical - Oncologic Conditions; Physical - Renal Conditions; Physical - Respiratory Conditions; Physical - Other; Activities of Daily Living (ADL); Instrumental Activities of Daily Living (IADL); ED Utilization; High Risk Pregnancy; Cardiovascular - other: Chronic Heart Failure; Metabolic - other: Malnutrition, Failure to Thrive (over three years old), Adults with a Body Mass Index greater than 30, Pediatric (age <18) obesity 95-99% percentiles, Vitamin D deficiency or receiving Vitamin D supplements | H29: At risk for nutrition deficiency or imbalance due to food insecurity
A30: WellSense Community Alliance | B30: Connor Fors, Flexible Services Project Coordinator, connor.fors@bmc.org | C30: Housing Supports | D30: Pre-Tenancy - Individual Supports; Pre-Tenancy - Transitional Supports - First/Last/Security; Pre-Tenancy - Transitional Supports - Moving Costs; Pre-Tenancy - Transitional Supports - Household Furniture; Tenancy Sustaining Supports - Prevention Services & Goods; Tenancy Sustaining Supports - Stabilization Services & Goods; Home Modifications - Asthma Interventions; Home Modifications - Physical Adaptations; Tenancy - Private Transportation; Tenancy - Public Transportation; Pre-Tenancy - Transitional Supports - Other: Back utilities, utility deposits, costs for filing applications, obtaining and correcting needed documentation (under $500); Home Modification - Other: Appliances (AC, Refrigerator), Pest Management | E30: Metro Housing Boston | F30: Attleboro; Barnstable; Boston - Primary; Brockton; Fall River; Falmouth; Greenfield; Holyoke; Lynn; Malden; New Bedford; Northampton; Plymouth; Quincy; Revere; Somerville; Southbridge; Taunton; Waltham; Wareham; Westfield; Woburn; Springfield | G30: Behavioral - Anxiety; Behavioral - Depression; Behavioral - Serious Emotional Disturbance; Behavioral - Serious Mental Illness; Behavioral - Substance Use Disorder; Behavioral - Trauma/Stress Disorder; Physical - Cardiovascular Conditions - Hypertension; Physical - Developmental Disabilities; Physical - Disability; Physical - Gastrointestinal (GI) Conditions; Physical - Hematologic Conditions; Physical - Metabolic - Diabetes; Physical - Infectious Diseases; Physical - Neurologic Conditions; Physical - Oncologic Conditions; Physical - Renal Conditions; Physical - Respiratory Conditions; Activities of Daily Living (ADL); Instrumental Activities of Daily Living (IADL); ED Utilization; High Risk Pregnancy; Cardiovascular - Other: Heart Disease, High Cholesterol; Metabolic - Other: Malnutrition, Obesity | H30: Experiencing homelessness; At risk of experiencing homelessness
A31: WellSense Community Alliance | B31: Connor Fors, Flexible Services Project Coordinator, connor.fors@bmc.org; Joy Willis (Codman) - Joy.Willis@codman.org, Tricia Greaves (DotHouse) - Tricia.Greaves@dothousehealth.org, Meaghan Groves (Harbor Health) - mgroves@hhsi.us, Eunide Edouarzin (Mattapan) - edouarzine@matchc.org, Emily Hames (South Boston) - EmHames@sbchc.org | C31: Housing Supports | D31: Pre-Tenancy - Individual Supports; Pre-Tenancy - Transitional Supports - First/Last/Security; Pre-Tenancy - Transitional Supports - Moving Costs; Pre-Tenancy - Transitional Supports - Household Furniture; Tenancy Sustaining Supports - Prevention Services & Goods; Tenancy Sustaining Supports - Stabilization Services & Goods; Home Modifications - Asthma Interventions; Home Modifications - Physical Adaptations; Tenancy - Private Transportation; Tenancy - Public Transportation; Pre-Tenancy - Transitional Supports - Other: Back utilities, utility deposits, costs for filing applications, obtaining and correcting needed documentation (under $500); Home Modification - Other: Appliances (AC, Refrigerator), Pest Management | E31: Massachusetts Coalition for the Homeless | F31: Boston - Primary | G31: Behavioral - Anxiety; Behavioral - Depression; Behavioral - Serious Emotional Disturbance; Behavioral - Serious Mental Illness; Behavioral - Substance Use Disorder; Behavioral - Trauma/Stress Disorder; Physical - Cardiovascular Conditions - Hypertension; Physical - Developmental Disabilities; Physical - Disability; Physical - Gastrointestinal (GI) Conditions; Physical - Hematologic Conditions; Physical - Metabolic - Diabetes; Physical - Infectious Diseases; Physical - Neurologic Conditions; Physical - Oncologic Conditions; Physical - Renal Conditions; Physical - Respiratory Conditions; Activities of Daily Living (ADL); Instrumental Activities of Daily Living (IADL); ED Utilization; High Risk Pregnancy; Cardiovascular - Other: Heart Disease, High Cholesterol; Metabolic - Other: Malnutrition, Obesity | H31: Experiencing homelessness; At risk of experiencing homelessness
A32: WellSense Community Alliance | B32: Michelle Hutcheson - mhutcheson@manetchc.org | C32: Housing Supports | D32: Pre-Tenancy - Individual Supports; Pre-Tenancy - Transitional Supports - First/Last/Security; Pre-Tenancy - Transitional Supports - Moving Costs; Pre-Tenancy - Transitional Supports - Household Furniture; Tenancy Sustaining Supports - Prevention Services & Goods; Tenancy Sustaining Supports - Stabilization Services & Goods; Home Modifications - Asthma Interventions; Home Modifications - Physical Adaptations; Pre-Tenancy - Transitional Supports - Other: Back utilities, utility deposits, costs for filing applications, obtaining and correcting needed documentation (under $500); Home Modifications - Other: Appliances (AC, Refrigerator), Pest Management | E32: Quincy Community Action Programs | F32: Quincy | G32: Behavioral - Anxiety; Behavioral - Depression; Behavioral - Serious Emotional Disturbance; Behavioral - Serious Mental Illness; Behavioral - Substance Use Disorder; Behavioral - Trauma/Stress Disorder; Physical - Cardiovascular Conditions - Hypertension; Cardiovascular - Other; Physical - Developmental Disabilities; Physical - Disability; Physical - Gastrointestinal (GI) Conditions; Physical - Hematologic Conditions; Physical - Metabolic - Diabetes; Physical - Infectious Diseases; Metabolic - Other; Physical - Neurologic Conditions; Physical - Oncologic Conditions; Physical - Renal Conditions; Physical - Respiratory Conditions; Activities of Daily Living (ADL); Instrumental Activities of Daily Living (IADL); ED Utilization; High Risk Pregnancy; Cardiovascular - Other: Heart Disease, High Cholesterol; Metabolic - Other: Malnutrition, Obesity | H32: Experiencing homelessness; At risk of experiencing homelessness
A33: WellSense Community Alliance | B33: Gioselys Pena - gpena@bhchp.org | C33: Housing Supports | D33: Pre-Tenancy - Individual Supports; Pre-Tenancy - Transitional Supports - First/Last/Security; Pre-Tenancy - Transitional Supports - Moving Costs; Pre-Tenancy - Transitional Supports - Household Furniture; Tenancy Sustaining Supports - Prevention Services & Goods; Tenancy Sustaining Supports - Stabilization Services & Goods; Home Modifications - Asthma Interventions; Home Modifications - Physical Adaptations; Tenancy - Private Transportation; Tenancy - Public Transportation; Pre-Tenancy - Transitional Supports - Other: Back utilities, utility deposits, costs for filing applications, obtaining and correcting needed documentation (under $500); Home Modifications - Other: Appliances (AC, Refrigerator), Pest Management | E33: Boston Healthcare for the Homeless | F33: Boston - Primary | G33: Behavioral - Anxiety; Behavioral - Depression; Behavioral - Serious Emotional Disturbance; Behavioral - Serious Mental Illness; Behavioral - Substance Use Disorder; Behavioral - Trauma/Stress Disorder; Physical - Cardiovascular Conditions - Hypertension; Physical - Developmental Disabilities; Physical - Disability; Physical - Gastrointestinal (GI) Conditions; Physical - Hematologic Conditions; Physical - Metabolic - Diabetes; Physical - Infectious Diseases; Physical - Neurologic Conditions; Physical - Oncologic Conditions; Physical - Renal Conditions; Physical - Respiratory Conditions; Activities of Daily Living (ADL); Instrumental Activities of Daily Living (IADL); ED Utilization; High Risk Pregnancy; Cardiovascular - Other: Heart Disease, High Cholesterol; Metabolic - Other: Malnutrition, Obesity | H33: Experiencing homelessness; At risk of experiencing homelessness
A34: WellSense Community Alliance | B34: Mary Jamieson, jamieson_mary@holyokehealth.com | C34: Housing Supports | D34: Pre-Tenancy - Individual Supports; Pre-Tenancy - Transitional Supports - First/Last/Security; Pre-Tenancy - Transitional Supports - Moving Costs; Pre-Tenancy - Transitional Supports - Household Furniture; Tenancy Sustaining Supports - Prevention Services & Goods; Tenancy Sustaining Supports - Stabilization Services & Goods; Home Modifications - Asthma Interventions; Home Modifications - Physical Adaptations; Tenancy - Private Transportation; Tenancy - Public Transportation; Pre-Tenancy - Transitional Supports - Other: Back utilities, utility deposits, costs for filing applications, obtaining and correcting needed documentation (under $500); Home Modifications - Other: Appliances (AC, Refrigerator), Pest Management | E34: Way Finders | F34: Holyoke; Northampton; Springfield; Westfield | G34: Behavioral - Anxiety; Behavioral - Depression; Behavioral - Serious Emotional Disturbance; Behavioral - Serious Mental Illness; Behavioral - Substance Use Disorder; Behavioral - Trauma/Stress Disorder; Physical - Cardiovascular Conditions - Hypertension; Physical - Developmental Disabilities; Physical - Disability; Physical - Gastrointestinal (GI) Conditions; Physical - Hematologic Conditions; Physical - Metabolic - Diabetes; Physical - Infectious Diseases; Physical - Neurologic Conditions; Physical - Oncologic Conditions; Physical - Renal Conditions; Physical - Respiratory Conditions; Activities of Daily Living (ADL); Instrumental Activities of Daily Living (IADL); ED Utilization; High Risk Pregnancy; Cardiovascular - Other: Heart Disease, High Cholesterol; Metabolic - Other: Malnutrition, Obesity | H34: Experiencing homelessness; At risk of experiencing homelessness
A35: WellSense Community Alliance | B35: Connor Fors, Flexible Services Project Coordinator, connor.fors@bmc.org | C35: Housing Supports | D35: Pre-Tenancy - Individual Supports; Pre-Tenancy - Transitional Supports - First/Last/Security; Pre-Tenancy - Transitional Supports - Moving Costs; Pre-Tenancy - Transitional Supports - Household Furniture; Tenancy Sustaining Supports - Prevention Services & Goods; Tenancy Sustaining Supports - Stabilization Services & Goods; Home Modifications - Asthma Interventions; Home Modifications - Physical Adaptations; Pre-Tenancy - Transitional Supports - Other: Household supplies, Back utilities, utility deposits, costs for filing applications, obtaining and correcting needed documentation, Storage; Home Modifications - Other: Appliances (AC, Refrigerator), Pest Management | E35: Community Counseling of Bristol County | F35: Attleboro; Brockton; Fall River; New Bedford; Plymouth; Taunton; Wareham | G35: Behavioral - Anxiety; Behavioral - Depression; Behavioral - Serious Emotional Disturbance; Behavioral - Serious Mental Illness; Behavioral - Substance Use Disorder; Behavioral - Trauma/Stress Disorder; Physical - Cardiovascular Conditions - Hypertension; Physical - Developmental Disabilities; Physical - Disability; Physical - Gastrointestinal (GI) Conditions; Physical - Hematologic Conditions; Physical - Metabolic - Diabetes; Physical - Infectious Diseases; Physical - Neurologic Conditions; Physical - Oncologic Conditions; Physical - Renal Conditions; Physical - Respiratory Conditions; Activities of Daily Living (ADL); Instrumental Activities of Daily Living (IADL); ED Utilization; High Risk Pregnancy; Cardiovascular - Other: Heart Disease, High Cholesterol; Metabolic - Other: Malnutrition, Obesity | H35: Experiencing homelessness; At risk of experiencing homelessness
A36: WellSense Community Alliance | B36: Connor Fors, Flexible Services Project Coordinator, connor.fors@bmc.org | C36: Housing Supports | D36: Pre-Tenancy - Individual Supports; Pre-Tenancy - Transitional Supports - First/Last/Security; Pre-Tenancy - Transitional Supports - Moving Costs; Pre-Tenancy - Transitional Supports - Household Furniture; Tenancy Sustaining Supports - Prevention Services & Goods; Tenancy Sustaining Supports - Stabilization Services & Goods; Home Modifications - Asthma Interventions; Home Modifications - Physical Adaptation; Tenancy - Private Transportation; Tenancy - Public Transportation; Pre-Tenancy - Transitional Supports - Other: Back utilities, utility deposits, costs for filing applications, obtaining and correcting needed documentation (under $500); Home Modifications - Other: Appliances (AC, Refrigerator), Pest Management | E36: Eliot | F36: Boston - Primary; Lynn; Malden; Revere; Somerville; Waltham; Woburn | G36: Behavioral - Anxiety; Behavioral - Depression; Behavioral - Serious Emotional Disturbance; Behavioral - Serious Mental Illness; Behavioral - Substance Use Disorder; Behavioral - Trauma/Stress Disorder; Physical - Cardiovascular Conditions - Hypertension; Physical - Developmental Disabilities; Physical - Disability; Physical - Gastrointestinal (GI) Conditions; Physical - Hematologic Conditions; Physical - Metabolic - Diabetes; Physical - Infectious Diseases; Physical - Neurologic Conditions; Physical - Oncologic Conditions; Physical - Renal Conditions; Physical - Respiratory Conditions; Activities of Daily Living (ADL); Instrumental Activities of Daily Living (IADL); ED Utilization; High Risk Pregnancy; Cardiovascular - Other: Heart Disease, High Cholesterol; Metabolic - Other: Malnutrition, Obesity | H36: Experiencing homelessness; At risk of experiencing homelessness
A37: WellSense Community Alliance | B37: Connor Fors, Flexible Services Project Coordinator, connor.fors@bmc.org | C37: Housing Supports | D37: Pre-Tenancy - Individual Supports; Pre-Tenancy - Transitional Supports - First/Last/Security; Pre-Tenancy - Transitional Supports - Moving Costs; Pre-Tenancy - Transitional Supports - Household Furniture; Tenancy Sustaining Supports - Prevention Services & Goods; Tenancy Sustaining Supports - Stabilization Services & Goods; Home Modifications - Asthma Interventions; Home Modifications - Physical Adaptations; Pre-Tenancy - Transitional Supports - Other: Back utilities, utility deposits, costs for filing applications, obtaining and correcting needed documentation (under $500); Home Modifications - Other: Appliances (AC, Refrigerator), Pest Management | E37: Housing Assistance Corporation | F37: Barnstable; Falmouth | G37: Behavioral - Anxiety; Behavioral - Depression; Behavioral - Serious Emotional Disturbance; Behavioral - Serious Mental Illness; Behavioral - Substance Use Disorder; Behavioral - Trauma/Stress Disorder; Physical - Cardiovascular Conditions - Hypertension; Physical - Developmental Disabilities; Physical - Disability; Physical - Gastrointestinal (GI) Conditions; Physical - Hematologic Conditions; Physical - Metabolic - Diabetes; Physical - Infectious Diseases; Physical - Neurologic Conditions; Physical - Oncologic Conditions; Physical - Renal Conditions; Physical - Respiratory Conditions; Activities of Daily Living (ADL); Instrumental Activities of Daily Living (IADL); ED Utilization; High Risk Pregnancy; Cardiovascular - Other: Heart Disease, High Cholesterol; Metabolic - Other: Malnutrition, Obesity | H37: Experiencing homelessness; At risk of experiencing homelessness
A38: WellSense Community Alliance | B38: Connor Fors, Flexible Services Project Coordinator, connor.fors@bmc.org | C38: Housing Supports | D38: Pre-Tenancy - Individual Supports; Tenancy Sustaining Supports - Prevention Services & Goods; Tenancy Sustaining Supports - Stabilization Services & Goods | E38: Medical Legal Partnership Boston | F38: Attleboro; Barnstable; Boston - Primary; Brockton; Fall River; Falmouth; Greenfield; Holyoke; Lynn; Malden; New Bedford; Northampton; Plymouth; Quincy; Revere; Somerville; Southbridge; Taunton; Waltham; Wareham; Westfield; Woburn; Springfield | G38: Behavioral - Anxiety; Behavioral - Depression; Behavioral - Serious Emotional Disturbance; Behavioral - Serious Mental Illness; Behavioral - Substance Use Disorder; Behavioral - Trauma/Stress Disorder; Physical - Cardiovascular Conditions - Hypertension; Physical - Developmental Disabilities; Physical - Disability; Physical - Gastrointestinal (GI) Conditions; Physical - Hematologic Conditions; Physical - Metabolic - Diabetes; Physical - Infectious Diseases; Physical - Neurologic Conditions; Physical - Oncologic Conditions; Physical - Renal Conditions; Physical - Respiratory Conditions; Activities of Daily Living (ADL); Instrumental Activities of Daily Living (IADL); ED Utilization; High Risk Pregnancy; Cardiovascular - Other: Heart Disease, High Cholesterol; Metabolic - Other: Malnutrition, Obesity | H38: Experiencing homelessness; At risk of experiencing homelessness
A39: WellSense Community Alliance | B39: Danielle MacPherson, dmacpherson@sturdymemorial.org | C39: Nutrition Supports | D39: Food Boxes; Home Delivered Meals | E39: Sturdy & Attleboro YMCA | F39: Attleboro | G39: Behavioral - Anxiety; Behavioral - Depression; Behavioral - Serious Emotional Disturbance; Behavioral - Serious Mental Illness; Behavioral - Substance Use Disorder; Behavioral - Trauma/Stress Disorder; Physical - Cardiovascular Conditions - Hypertension; Physical - Developmental Disabilities; Physical - Disability; Physical - Gastrointestinal (GI) Conditions; Physical - Hematologic Conditions; Physical - Metabolic - Diabetes; Physical - Infectious Diseases; Physical - Neurologic Conditions; Physical - Oncologic Conditions; Physical - Renal Conditions; Physical - Respiratory Conditions; Activities of Daily Living (ADL); Instrumental Activities of Daily Living (IADL); ED Utilization; High Risk Pregnancy; Cardiovascular - Other: Heart Disease, High Cholesterol; Metabolic - Other: Malnutrition, Obesity | H39: At risk for nutrition deficiency or imbalance due to food insecurity
A40: WellSense Community Alliance | B40: Connor Fors, Flexible Services Project Coordinator, connor.fors@bmc.org; Joy Willis (Codman) - Joy.Willis@codman.org, Tricia Greaves (DotHouse) - Tricia.Greaves@dothousehealth.org, Meaghan Groves (Harbor Health) - mgroves@hhsi.us, Eunide Edouarzin (Mattapan) - edouarzine@matchc.org, Emily Hames (South Boston) - EmHames@sbchc.org | C40: Nutrition Supports | D40: Medically Tailored Meals (MTM) | E40: Community Servings | F40: Attleboro; Barnstable; Boston - Primary; Brockton; Fall River; Falmouth; Lynn; Malden; New Bedford; Plymouth; Quincy; Revere; Somerville; Taunton; Waltham; Wareham; Woburn | G40: Behavioral - Anxiety; Behavioral - Depression; Behavioral - Serious Emotional Disturbance; Behavioral - Serious Mental Illness; Behavioral - Substance Use Disorder; Behavioral - Trauma/Stress Disorder; Physical - Cardiovascular Conditions - Hypertension; Physical - Developmental Disabilities; Physical - Disability; Physical - Gastrointestinal (GI) Conditions; Physical - Hematologic Conditions; Physical - Metabolic - Diabetes; Physical - Infectious Diseases; Physical - Neurologic Conditions; Physical - Oncologic Conditions; Physical - Renal Conditions; Physical - Respiratory Conditions; Activities of Daily Living (ADL); Instrumental Activities of Daily Living (IADL); ED Utilization; High Risk Pregnancy; Cardiovascular - Other: Heart Disease, High Cholesterol; Metabolic - Other: Malnutrition, Obesity | H40: At risk for nutrition deficiency or imbalance due to food insecurity
A41: WellSense Community Alliance | B41: Kimberly Hoffman - khoffman2@southshorehealth.org | C41: Nutrition Supports | D41: Home Delivered Meals | E41: Wellspring | F41: Plymouth; Quincy | G41: Behavioral - Anxiety; Behavioral - Depression; Behavioral - Serious Emotional Disturbance; Behavioral - Serious Mental Illness; Behavioral - Substance Use Disorder; Behavioral - Trauma/Stress Disorder; Physical - Cardiovascular Conditions - Hypertension; Physical - Developmental Disabilities; Physical - Disability; Physical - Gastrointestinal (GI) Conditions; Physical - Hematologic Conditions; Physical - Metabolic - Diabetes; Physical - Infectious Diseases; Physical - Neurologic Conditions; Physical - Oncologic Conditions; Physical - Renal Conditions; Physical - Respiratory Conditions; Activities of Daily Living (ADL); Instrumental Activities of Daily Living (IADL); ED Utilization; High Risk Pregnancy; Cardiovascular - Other: Heart Disease, High Cholesterol; Metabolic - Other: Malnutrition, Obesity | H41: At risk for nutrition deficiency or imbalance due to food insecurity
A42: WellSense Community Alliance | B42: Connor Fors, Flexible Services Project Coordinator, connor.fors@bmc.org | C42: Nutrition Supports | D42: Food Boxes; Food Vouchers | E42: The Guild | F42: Boston - Primary; Revere; Woburn; Lynn; Malden; Somerville; Salem | G42: Behavioral - Anxiety; Behavioral - Depression; Behavioral - Serious Emotional Disturbance; Behavioral - Serious Mental Illness; Behavioral - Substance Use Disorder; Behavioral - Trauma/Stress Disorder; Physical - Cardiovascular Conditions - Hypertension; Physical - Developmental Disabilities; Physical - Disability; Physical - Gastrointestinal (GI) Conditions; Physical - Hematologic Conditions; Physical - Metabolic - Diabetes; Physical - Infectious Diseases; Physical - Neurologic Conditions; Physical - Oncologic Conditions; Physical - Renal Conditions; Physical - Respiratory Conditions; Activities of Daily Living (ADL); Instrumental Activities of Daily Living (IADL); ED Utilization; High Risk Pregnancy; Cardiovascular - Other: Heart Disease, High Cholesterol; Metabolic - Other: Malnutrition, Obesity | H42: At risk for nutrition deficiency or imbalance due to food insecurity
A43: WellSense Community Alliance | B43: Connor Fors, Flexible Services Project Coordinator, connor.fors@bmc.org | C43: Nutrition Supports | D43: Food Vouchers; Nutrition Education; Nutrition Kitchen Supplies | E43: Project Bread | F43: Attleboro; Barnstable; Boston - Primary; Brockton; Fall River; Falmouth; Greenfield; Holyoke; Lynn; Malden; New Bedford; Northampton; Plymouth; Quincy; Revere; Somerville; Southbridge; Taunton; Waltham; Wareham; Westfield; Woburn; Springfield | G43: Behavioral - Anxiety; Behavioral - Depression; Behavioral - Serious Emotional Disturbance; Behavioral - Serious Mental Illness; Behavioral - Substance Use Disorder; Behavioral - Trauma/Stress Disorder; Physical - Cardiovascular Conditions - Hypertension; Physical - Developmental Disabilities; Physical - Disability; Physical - Gastrointestinal (GI) Conditions; Physical - Hematologic Conditions; Physical - Metabolic - Diabetes; Physical - Infectious Diseases; Physical - Neurologic Conditions; Physical - Oncologic Conditions; Physical - Renal Conditions; Physical - Respiratory Conditions; Activities of Daily Living (ADL); Instrumental Activities of Daily Living (IADL); ED Utilization; High Risk Pregnancy; Cardiovascular - Other: Heart Disease, High Cholesterol; Metabolic - Other: Malnutrition, Obesity | H43: At risk for nutrition deficiency or imbalance due to food insecurity
A44: WellSense Boston Children's ACO | B44: Sara Donahue, BCHACO.FlexServices@childrens.harvard.edu, 617-919-1568 | C44: Housing Supports | D44: Pre-Tenancy - Individual Supports; Pre-Tenancy - Transitional Supports - First/Last/Security; Pre-Tenancy - Transitional Supports - Moving Costs; Pre-Tenancy - Transitional Supports - Household Furniture; Tenancy Sustaining Supports - Prevention Services & Goods; Tenancy Sustaining Supports - Stabilization Services & Goods; Home Modifications - Physical Adaptations; Tenancy - Private Transportation; Pre-Tenancy – Transitional Assistance - Other: Back utilities, utility deposits (e.g., electricity, gas, heating fuel, water, sewer), costs for filing applications, obtaining and correcting needed documentation, pest eradication | E44: FamilyAid Boston | F44: Boston - Primary; Brockton; Framingham; Lawrence; Lowell; Lynn; Malden; Quincy; Revere; Somerville; Taunton; Waltham; Woburn | G44: Behavioral - Anxiety; Behavioral - Depression; Behavioral - Serious Emotional Disturbance; Behavioral - Serious Mental Illness; Behavioral - Substance Use Disorder; Behavioral - Trauma/Stress Disorder; Behavioral - Other; Physical - Respiratory Conditions; ED Utilization; Physical - Other; Behavioral - Other: other mental, emotional, or behavioral health symptom or condition; Accidental or Undetermined Poisoning; ADHD; Autism Spectrum Disorder; Bipolar and Related Disorders; Communication Disorders; Developmental Delay or Unspecified Neurodevelopmental Disorder; Disruptive, Impulse Control and Conduct Disorders; Dissociative Disorders; Elimination Disorders; Feeding and Eating Disorders; Intellectual Disability; Mental Health Symptom; Motor Disorders; Neurocognitive Disorders; Obsessive-Compulsive and Related Disorders; Personality Disorders; Schizophrenia Spectrum and Other Psychotic Disorders; Sexuality and Gender Identity Disorders; Sleep-Wake Disorders; Somatic Symptom and Related Disorders; Specific Learning Disorders; Suicide or Self-Injury; Alcohol abuse counseling and surveillance of alcoholic; Alcohol abuse, in remission; Avoidant/restrictive food intake disorder; Behavioral insomnia of childhood; Cannabis abuse, in remission; Child neglect or abandonment, confirmed, initial encounter; Child neglect or abandonment, confirmed, sequela; Child psychological abuse, confirmed, initial encounter; Child psychological abuse, confirmed, sequela; Child psychological abuse, confirmed, subsequent encounter; Child psychological abuse, suspected, initial encounter; Child psychological abuse, suspected, sequela; Child psychological abuse, suspected, subsequent encounter; Delayed milestone in childhood; Depression, unspecified; Dual sensory impairment; Educational maladjustment and discord with teachers and classmates; Exposure to disaster, war and other hostilities; Failed school examinations; Fluency disorder in conditions classified elsewhere; Gambling and betting; Illiteracy and low-level literacy; Inadequate social skills, not elsewhere classified; Inhalant abuse, in remission; Lack of relaxation and leisure; Limitation of activities due to disability; Newborn affected by maternal postpartum depression; Opioid abuse, in remission; Other personal history of psychological trauma, not elsewhere classified; Other physical and mental strain related to work; Other problems related to education and literacy; Other problems related to life management difficulty; Other problems related to lifestyle; Other psychoactive substance abuse, in remission; Other specified problems related to primary support group; Other specified problems related to psychosocial circumstances; Other speech disturbances; Other stimulant abuse, in remission; Other stressful life events affecting family and household; Other symbolic dysfunctions; Other symptoms and signs involving appearance and behavior; Personal history of other mental and behavioral disorders; Personal history of physical and sexual abuse in childhood; Personal history of psychological abuse in childhood; Personal history of psychological trauma, not elsewhere classified; Problem related to life management difficulty, unspecified; Problem related to unspecified psychosocial circumstances; Problems related to education and literacy, unspecified; Problems related to life management difficulty; Sedative, hypnotic or anxiolytic abuse, in remission; Sibling rivalry; Social role conflict, not elsewhere classified; Stress, not elsewhere classified; Target of (perceived) adverse discrimination and persecution; Type A behavior pattern; Underachievement in school; Unspecified child maltreatment, confirmed, initial encounter; Unspecified child maltreatment, confirmed, sequela; Unspecified child maltreatment, confirmed, subsequent encounter; Unspecified lack of expected normal physiological development in childhood; Unspecified speech disturbances); Physical - Other: pediatric BMI percentile classified as underweight or overweight or obese | H44: Experiencing homelessness; At risk of experiencing homelessness
A45: WellSense Boston Children's ACO | B45: Sara Donahue, BCHACO.FlexServices@childrens.harvard.edu, 617-919-1568 | C45: Nutrition Supports | D45: Food Boxes; Nutrition Education; Nutrition Kitchen Supplies; Assisting the member with obtaining discretionary or entitlement benefits and credit | E45: Just Roots | F45: Adams; Beverly; Boston - Primary; Framingham; Gardner - Fitchburg; Greenfield; Haverhill; Holyoke; Lawrence; Lowell; Lynn; Malden; Northampton; Pittsfield; Revere; Salem; Springfield; Waltham; Westfield; Woburn; Worcester | G45: Behavioral - Anxiety; Behavioral - Depression; Behavioral - Serious Emotional Disturbance; Behavioral - Serious Mental Illness; Behavioral - Substance Use Disorder; Behavioral - Trauma/Stress Disorder; Behavioral - Other; Physical - Respiratory Conditions; ED Utilization; Physical - Other; Behavioral - Other: other mental, emotional, or behavioral health symptom or condition; Accidental or Undetermined Poisoning; ADHD; Autism Spectrum Disorder; Bipolar and Related Disorders; Communication Disorders; Developmental Delay or Unspecified Neurodevelopmental Disorder; Disruptive, Impulse Control and Conduct Disorders; Dissociative Disorders; Elimination Disorders; Feeding and Eating Disorders; Intellectual Disability; Mental Health Symptom; Motor Disorders; Neurocognitive Disorders; Obsessive-Compulsive and Related Disorders; Personality Disorders; Schizophrenia Spectrum and Other Psychotic Disorders; Sexuality and Gender Identity Disorders; Sleep-Wake Disorders; Somatic Symptom and Related Disorders; Specific Learning Disorders; Suicide or Self-Injury; Alcohol abuse counseling and surveillance of alcoholic; Alcohol abuse, in remission; Avoidant/restrictive food intake disorder; Behavioral insomnia of childhood; Cannabis abuse, in remission; Child neglect or abandonment, confirmed, initial encounter; Child neglect or abandonment, confirmed, sequela; Child psychological abuse, confirmed, initial encounter; Child psychological abuse, confirmed, sequela; Child psychological abuse, confirmed, subsequent encounter; Child psychological abuse, suspected, initial encounter; Child psychological abuse, suspected, sequela; Child psychological abuse, suspected, subsequent encounter; Delayed milestone in childhood; Depression, unspecified; Dual sensory impairment; Educational maladjustment and discord with teachers and classmates; Exposure to disaster, war and other hostilities; Failed school examinations; Fluency disorder in conditions classified elsewhere; Gambling and betting; Illiteracy and low-level literacy; Inadequate social skills, not elsewhere classified; Inhalant abuse, in remission; Lack of relaxation and leisure; Limitation of activities due to disability; Newborn affected by maternal postpartum depression; Opioid abuse, in remission; Other personal history of psychological trauma, not elsewhere classified; Other physical and mental strain related to work; Other problems related to education and literacy; Other problems related to life management difficulty; Other problems related to lifestyle; Other psychoactive substance abuse, in remission; Other specified problems related to primary support group; Other specified problems related to psychosocial circumstances; Other speech disturbances; Other stimulant abuse, in remission; Other stressful life events affecting family and household; Other symbolic dysfunctions; Other symptoms and signs involving appearance and behavior; Personal history of other mental and behavioral disorders; Personal history of physical and sexual abuse in childhood; Personal history of psychological abuse in childhood; Personal history of psychological trauma, not elsewhere classified; Problem related to life management difficulty, unspecified; Problem related to unspecified psychosocial circumstances; Problems related to education and literacy, unspecified; Problems related to life management difficulty; Sedative, hypnotic or anxiolytic abuse, in remission; Sibling rivalry; Social role conflict, not elsewhere classified; Stress, not elsewhere classified; Target of (perceived) adverse discrimination and persecution; Type A behavior pattern; Underachievement in school; Unspecified child maltreatment, confirmed, initial encounter; Unspecified child maltreatment, confirmed, sequela; Unspecified child maltreatment, confirmed, subsequent encounter; Unspecified lack of expected normal physiological development in childhood; Unspecified speech disturbances); Physical - Other: pediatric BMI percentile classified as underweight or overweight or obese" | H45: At risk for nutrition deficiency or imbalance due to food insecurity
A46: WellSense Boston Children's ACO | B46: Sara Donahue, BCHACO.FlexServices@childrens.harvard.edu, 617-919-1568 | C46: Nutrition Supports | D46: Food Vouchers; Nutrition Education; Nutrition Kitchen Supplies; Assisting the member with obtaining discretionary or entitlement benefits and credit | E46: Project Bread | F46: Adams; Barnstable; Beverly; Boston - Primary; Falmouth; Greenfield; Haverhill; Holyoke; Lawrence; Lowell; Lynn; Malden; New Bedford; Northampton; Orleans; Plymouth; Revere; Salem; Springfield; Taunton; Wareham; Westfield; Woburn; Brockton; Framingham; Quincy; Somerville; Waltham | G46: Behavioral - Anxiety; Behavioral - Depression; Behavioral - Serious Emotional Disturbance; Behavioral - Serious Mental Illness; Behavioral - Substance Use Disorder; Behavioral - Trauma/Stress Disorder; Behavioral - Other; Physical - Respiratory Conditions; ED Utilization; Physical - Other; Behavioral - Other: other mental, emotional, or behavioral health symptom or condition; Accidental or Undetermined Poisoning; ADHD; Autism Spectrum Disorder; Bipolar and Related Disorders; Communication Disorders; Developmental Delay or Unspecified Neurodevelopmental Disorder; Disruptive, Impulse Control and Conduct Disorders; Dissociative Disorders; Elimination Disorders; Feeding and Eating Disorders; Intellectual Disability; Mental Health Symptom; Motor Disorders; Neurocognitive Disorders; Obsessive-Compulsive and Related Disorders; Personality Disorders; Schizophrenia Spectrum and Other Psychotic Disorders; Sexuality and Gender Identity Disorders; Sleep-Wake Disorders; Somatic Symptom and Related Disorders; Specific Learning Disorders; Suicide or Self-Injury; Alcohol abuse counseling and surveillance of alcoholic; Alcohol abuse, in remission; Avoidant/restrictive food intake disorder; Behavioral insomnia of childhood; Cannabis abuse, in remission; Child neglect or abandonment, confirmed, initial encounter; Child neglect or abandonment, confirmed, sequela; Child psychological abuse, confirmed, initial encounter; Child psychological abuse, confirmed, sequela; Child psychological abuse, confirmed, subsequent encounter; Child psychological abuse, suspected, initial encounter; Child psychological abuse, suspected, sequela; Child psychological abuse, suspected, subsequent encounter; Delayed milestone in childhood; Depression, unspecified; Dual sensory impairment; Educational maladjustment and discord with teachers and classmates; Exposure to disaster, war and other hostilities; Failed school examinations; Fluency disorder in conditions classified elsewhere; Gambling and betting; Illiteracy and low-level literacy; Inadequate social skills, not elsewhere classified; Inhalant abuse, in remission; Lack of relaxation and leisure; Limitation of activities due to disability; Newborn affected by maternal postpartum depression; Opioid abuse, in remission; Other personal history of psychological trauma, not elsewhere classified; Other physical and mental strain related to work; Other problems related to education and literacy; Other problems related to life management difficulty; Other problems related to lifestyle; Other psychoactive substance abuse, in remission; Other specified problems related to primary support group; Other specified problems related to psychosocial circumstances; Other speech disturbances; Other stimulant abuse, in remission; Other stressful life events affecting family and household; Other symbolic dysfunctions; Other symptoms and signs involving appearance and behavior; Personal history of other mental and behavioral disorders; Personal history of physical and sexual abuse in childhood; Personal history of psychological abuse in childhood; Personal history of psychological trauma, not elsewhere classified; Problem related to life management difficulty, unspecified; Problem related to unspecified psychosocial circumstances; Problems related to education and literacy, unspecified; Problems related to life management difficulty; Sedative, hypnotic or anxiolytic abuse, in remission; Sibling rivalry; Social role conflict, not elsewhere classified; Stress, not elsewhere classified; Target of (perceived) adverse discrimination and persecution; Type A behavior pattern; Underachievement in school; Unspecified child maltreatment, confirmed, initial encounter; Unspecified child maltreatment, confirmed, sequela; Unspecified child maltreatment, confirmed, subsequent encounter; Unspecified lack of expected normal physiological development in childhood; Unspecified speech disturbances) Physical - Other: pediatric BMI percentile classified as underweight or overweight or obese Behavioral - Other and Physical - Other: complex physical and mental health conditions related to pediatric feeding disorders and/or slow weight gain" | H46: At risk for nutrition deficiency or imbalance due to food insecurity
A47: Community Care Cooperative (C3) | B47: Annie Pham, Director Flexible Services, flexibleservices@c3aco.org | C47: Nutrition Supports | D47: Food Vouchers; Nutrition Education; Nutrition Kitchen Supplies; Nutrition Referral Coordination | E47: Project Bread | F47: Athol; Attleboro; Barnstable; Beverly; Boston - Primary; Brockton; Fall River; Falmouth; Framingham; Gardner - Fitchburg; Gloucester; Haverhill; Lawrence; Lowell; Lynn; Malden; Nantucket; New Bedford; Orleans; Plymouth; Quincy; Revere; Salem; Somerville; Southbridge; Taunton; Waltham; Wareham; Worcester; Oak Bluffs | G47: Behavioral - Anxiety; Behavioral - Depression; Behavioral - Serious Emotional Disturbance; Behavioral - Serious Mental Illness; Behavioral - Substance Use Disorder; Behavioral - Trauma/Stress Disorder; Physical - Cardiovascular Conditions - Hypertension; Physical - Cardiovascular Conditions - Other; Physical - Developmental Disabilities; Physical - Disability; Physical - Gastrointestinal (GI) Conditions; Physical - Hematologic Conditions; Physical - Infectious Diseases; Physical - Metabolic - Diabetes; Physical - Neurologic Conditions; Physical - Oncologic Conditions; Physical - Renal Conditions; Physical - Respiratory Conditions; ED Utilization; High Risk Pregnancy; Metabolic - Other: Malnutrition, Obesity | H47: At risk for nutrition deficiency or imbalance due to food insecurity
A48: Community Care Cooperative (C3) | B48: Annie Pham, Director Flexible Services, flexibleservices@c3aco.org | C48: Nutrition Supports | D48: Food Boxes; Food Vouchers; Home Delivered Meals; Nutrition Education; Nutrition Kitchen Supplies; Nutrition Referral Coordination | E48: Food Bank of Western MA; WestMass Elder Care; Greater Springfield Senior Services; LifePath; Highland Valley | F48: Adams; Greenfield; Holyoke; Northampton; Springfield; Westfield | G48: Behavioral - Anxiety; Behavioral - Depression; Behavioral - Serious Emotional Disturbance; Behavioral - Serious Mental Illness; Behavioral - Substance Use Disorder; Behavioral - Trauma/Stress Disorder; Physical - Cardiovascular Conditions - Hypertension; Physical - Cardiovascular Conditions - Other; Physical - Developmental Disabilities; Physical - Disability; Physical - Gastrointestinal (GI) Conditions; Physical - Hematologic Conditions; Physical - Infectious Diseases; Physical - Metabolic - Diabetes; Physical - Neurologic Conditions; Physical - Oncologic Conditions; Physical - Renal Conditions; Physical - Respiratory Conditions; ED Utilization; High Risk Pregnancy; Metabolic - Other: Malnutrition, Obesity | H48: At risk for nutrition deficiency or imbalance due to food insecurity
A49: Community Care Cooperative (C3) | B49: Annie Pham, Director Flexible Services, flexibleservices@c3aco.org | C49: Nutrition Supports | D49: Medically Tailored Meals (MTM); Nutrition Referral Coordination & Education | E49: Community Servings | F49: Athol; Attleboro; Barnstable; Beverly; Boston - Primary; Brockton; Fall River; Falmouth; Framingham; Gardner - Fitchburg; Gloucester; Haverhill; Lawrence; Lowell; Lynn; Malden; New Bedford; Orleans; Plymouth; Quincy; Revere; Salem; Taunton; Waltham; Wareham | G49: Behavioral - Anxiety; Behavioral - Depression; Behavioral - Serious Emotional Disturbance; Behavioral - Serious Mental Illness; Behavioral - Substance Use Disorder; Behavioral - Trauma/Stress Disorder; Physical - Cardiovascular Conditions - Hypertension; Physical - Cardiovascular Conditions - Other; Physical - Developmental Disabilities; Physical - Disability; Physical - Gastrointestinal (GI) Conditions; Physical - Hematologic Conditions; Physical - Infectious Diseases; Physical - Metabolic - Diabetes; Physical - Neurologic Conditions; Physical - Oncologic Conditions; Physical - Renal Conditions; Physical - Respiratory Conditions; ED Utilization; High Risk Pregnancy; Metabolic - Other: Malnutrition, Obesity | H49: At risk for nutrition deficiency or imbalance due to food insecurity
A50: Community Care Cooperative (C3) | B50: Annie Pham, Director Flexible Services, flexibleservices@c3aco.org | C50: Nutrition Supports | D50: Food Boxes; Home Delivered Meals; Medically Tailored Meals (MTM); Nutrition Education; Nutrition Kitchen Supplies; Nutrition Referral Coordination | E50: Elder Services of Worcester Area; EatWell | F50: Worcester; Gardner - Fitchburg | G50: Behavioral - Anxiety; Behavioral - Depression; Behavioral - Serious Emotional Disturbance; Behavioral - Serious Mental Illness; Behavioral - Substance Use Disorder; Behavioral - Trauma/Stress Disorder; Physical - Cardiovascular Conditions - Hypertension; Physical - Cardiovascular Conditions - Other; Physical - Developmental Disabilities; Physical - Disability; Physical - Gastrointestinal (GI) Conditions; Physical - Hematologic Conditions; Physical - Infectious Diseases; Physical - Metabolic - Diabetes; Physical - Neurologic Conditions; Physical - Oncologic Conditions; Physical - Renal Conditions; Physical - Respiratory Conditions; ED Utilization; High Risk Pregnancy; Metabolic - Other: Malnutrition, Obesity | H50: At risk for nutrition deficiency or imbalance due to food insecurity
A51: Community Care Cooperative (C3) | B51: Annie Pham, Director Flexible Services, flexibleservices@c3aco.org | C51: Nutrition Supports | D51: Food Boxes; Nutrition Education; Nutrition Kitchen Supplies; Nutrition Referral Coordination | E51: Sustainable CAPE | F51: Orleans | G51: Behavioral - Anxiety; Behavioral - Depression; Behavioral - Serious Emotional Disturbance; Behavioral - Serious Mental Illness; Behavioral - Substance Use Disorder; Behavioral - Trauma/Stress Disorder; Physical - Cardiovascular Conditions - Hypertension; Physical - Cardiovascular Conditions - Other; Physical - Developmental Disabilities; Physical - Disability; Physical - Gastrointestinal (GI) Conditions; Physical - Hematologic Conditions; Physical - Infectious Diseases; Physical - Metabolic - Diabetes; Physical - Neurologic Conditions; Physical - Oncologic Conditions; Physical - Renal Conditions; Physical - Respiratory Conditions; ED Utilization; High Risk Pregnancy; Metabolic - Other: Malnutrition, Obesity | H51: At risk for nutrition deficiency or imbalance due to food insecurity
A52: Community Care Cooperative (C3) | B52: Annie Pham, Director Flexible Services, flexibleservices@c3aco.org | C52: Nutrition Supports | D52: Food Vouchers; Nutrition Referral Coordination | E52: About Fresh | F52: Athol; Attleboro; Barnstable; Beverly; Boston - Primary; Brockton; Fall River; Falmouth; Framingham; Gardner - Fitchburg; Gloucester; Haverhill; Lawrence; Lowell; Lynn; Malden; Nantucket; New Bedford; Orleans; Plymouth; Quincy; Revere; Salem; Somerville; Southbridge; Taunton; Waltham; Wareham; Worcester; Oak Bluffs; Adams; Greenfield; Holyoke; Northampton; Springfield; Westfield | G52: Behavioral - Anxiety; Behavioral - Depression; Behavioral - Serious Emotional Disturbance; Behavioral - Serious Mental Illness; Behavioral - Substance Use Disorder; Behavioral - Trauma/Stress Disorder; Physical - Cardiovascular Conditions - Hypertension; Physical - Cardiovascular Conditions - Other; Physical - Developmental Disabilities; Physical - Disability; Physical - Gastrointestinal (GI) Conditions; Physical - Hematologic Conditions; Physical - Infectious Diseases; Physical - Metabolic - Diabetes; Physical - Neurologic Conditions; Physical - Oncologic Conditions; Physical - Renal Conditions; Physical - Respiratory Conditions; ED Utilization; High Risk Pregnancy; Metabolic - Other: Malnutrition, Obesity | H52: At risk for nutrition deficiency or imbalance due to food insecurity
A53: Community Care Cooperative (C3) | B53: Annie Pham, Director Flexible Services, flexibleservices@c3aco.org | C53: Nutrition Supports | D53: Food Vouchers; Nutrition Kitchen Supplies | E53: Community Care Cooperative | F53: Athol; Attleboro; Barnstable; Beverly; Boston - Primary; Brockton; Fall River; Falmouth; Framingham; Gardner - Fitchburg; Gloucester; Haverhill; Lawrence; Lowell; Lynn; Malden; Nantucket; New Bedford; Orleans; Plymouth; Quincy; Revere; Salem; Somerville; Southbridge; Taunton; Waltham; Wareham; Worcester; Oak Bluffs; Adams; Greenfield; Holyoke; Northampton; Springfield; Westfield | G53: Behavioral - Anxiety; Behavioral - Depression; Behavioral - Serious Emotional Disturbance; Behavioral - Serious Mental Illness; Behavioral - Substance Use Disorder; Behavioral - Trauma/Stress Disorder; Physical - Cardiovascular Conditions - Hypertension; Physical - Cardiovascular Conditions - Other; Physical - Developmental Disabilities; Physical - Disability; Physical - Gastrointestinal (GI) Conditions; Physical - Hematologic Conditions; Physical - Infectious Diseases; Physical - Metabolic - Diabetes; Physical - Neurologic Conditions; Physical - Oncologic Conditions; Physical - Renal Conditions; Physical - Respiratory Conditions; ED Utilization; High Risk Pregnancy; Metabolic - Other: Malnutrition, Obesity | H53: At risk for nutrition deficiency or imbalance due to food insecurity
A54: Community Care Cooperative (C3) | B54: Annie Pham, Director Flexible Services, flexibleservices@c3aco.org | C54: Housing Supports | D54: Home Modifications - Physical Adaptations; Home Modifications - Asthma Interventions; Pre-Tenancy - Individual Supports; Pre-Tenancy - Transitional Supports - First/Last/Security; Pre-Tenancy - Transitional Supports - Moving Costs; Pre-Tenancy - Transitional Supports - Household Furniture; Tenancy Sustaining Supports - Prevention Services & Goods; Tenancy Sustaining Supports - Stabilization Services & Goods; Pre-Tenancy - Transitional Supports - Other: Utility arrears, application fees, pantry stocking | E54: Behavioral Health Network; Way Finders | F54: Adams; Holyoke; Northampton; Pittsfield; Springfield; Westfield | G54: Behavioral - Anxiety; Behavioral - Depression; Behavioral - Serious Emotional Disturbance; Behavioral - Serious Mental Illness; Behavioral - Substance Use Disorder; Behavioral - Trauma/Stress Disorder; Physical - Cardiovascular Conditions - Hypertension; Physical - Cardiovascular Conditions - Other; Physical - Developmental Disabilities; Physical - Disability; Physical - Gastrointestinal (GI) Conditions; Physical - Hematologic Conditions; Physical - Infectious Diseases; Physical - Metabolic - Diabetes; Physical - Neurologic Conditions; Physical - Oncologic Conditions; Physical - Renal Conditions; Physical - Respiratory Conditions; ED Utilization; High Risk Pregnancy | H54: Experiencing homelessness; At risk of experiencing homelessness
A55: Community Care Cooperative (C3) | B55: Annie Pham, Director Flexible Services, flexibleservices@c3aco.org | C55: Housing Supports | D55: Pre-Tenancy - Individual Supports; Pre-Tenancy - Transitional Supports - First/Last/Security; Pre-Tenancy - Transitional Supports - Moving Costs; Pre-Tenancy - Transitional Supports - Household Furniture; Tenancy Sustaining Supports - Prevention Services & Goods; Tenancy Sustaining Supports - Stabilization Services & Goods; Tenancy - Private Transportation; Home Modifications - Physical Adaptations; Pre-Tenancy - Transitional Supports - Other: Utility arrears, application fees, pantry stocking | E55: Eliot | F55: Beverly; Lawrence; Lowell; Lynn; Malden; Salem; Gloucester | G55: Behavioral - Anxiety; Behavioral - Depression; Behavioral - Serious Emotional Disturbance; Behavioral - Serious Mental Illness; Behavioral - Substance Use Disorder; Behavioral - Trauma/Stress Disorder; Physical - Cardiovascular Conditions - Hypertension; Physical - Cardiovascular Conditions - Other; Physical - Developmental Disabilities; Physical - Disability; Physical - Gastrointestinal (GI) Conditions; Physical - Hematologic Conditions; Physical - Infectious Diseases; Physical - Metabolic - Diabetes; Physical - Neurologic Conditions; Physical - Oncologic Conditions; Physical - Renal Conditions; Physical - Respiratory Conditions; ED Utilization; High Risk Pregnancy | H55: Experiencing homelessness; At risk of experiencing homelessness
A56: Community Care Cooperative (C3) | B56: Annie Pham, Director Flexible Services, flexibleservices@c3aco.org | C56: Housing Supports | D56: Pre-Tenancy - Individual Supports; Pre-Tenancy - Transitional Supports - First/Last/Security; Pre-Tenancy - Transitional Supports - Moving Costs; Pre-Tenancy - Transitional Supports - Household Furniture; Tenancy Sustaining Supports - Prevention Services & Goods; Tenancy Sustaining Supports - Stabilization Services & Goods; Home Modifications - Asthma Interventions; Home Modifications - Physical Adaptations; Tenancy - Private Transportation; Pre-Tenancy - Transitional Supports - Other: Utility arrears, application fees, pantry stocking | E56: Massachusetts Coalition for the Homeless | F56: Beverly; Lawrence; Lowell; Lynn; Malden; Salem; Boston - Primary; Brockton; Framingham; Gardner - Fitchburg; Gloucester; New Bedford; Waltham | G56: Behavioral - Anxiety; Behavioral - Depression; Behavioral - Serious Emotional Disturbance; Behavioral - Serious Mental Illness; Behavioral - Substance Use Disorder; Behavioral - Trauma/Stress Disorder; Physical - Cardiovascular Conditions - Hypertension; Physical - Cardiovascular Conditions - Other; Physical - Developmental Disabilities; Physical - Disability; Physical - Gastrointestinal (GI) Conditions; Physical - Hematologic Conditions; Physical - Infectious Diseases; Physical - Metabolic - Diabetes; Physical - Neurologic Conditions; Physical - Oncologic Conditions; Physical - Renal Conditions; Physical - Respiratory Conditions; ED Utilization; High Risk Pregnancy | H56: Experiencing homelessness; At risk of experiencing homelessness
A57: Community Care Cooperative (C3) | B57: Annie Pham, Director Flexible Services, flexibleservices@c3aco.org | C57: Housing Supports | D57: Pre-Tenancy - Individual Supports; Pre-Tenancy - Transitional Supports - First/Last/Security; Pre-Tenancy - Transitional Supports - Moving Costs; Pre-Tenancy - Transitional Supports - Household Furniture; Tenancy Sustaining Supports - Prevention Services & Goods; Tenancy Sustaining Supports - Stabilization Services & Goods; Pre-Tenancy - Transitional Supports - Other: Utility arrears, application fees, pantry stocking | E57: Metro Housing Boston | F57: Boston - Primary | G57: Behavioral - Anxiety; Behavioral - Depression; Behavioral - Serious Emotional Disturbance; Behavioral - Serious Mental Illness; Behavioral - Substance Use Disorder; Behavioral - Trauma/Stress Disorder; Physical - Cardiovascular Conditions - Hypertension; Physical - Cardiovascular Conditions - Other; Physical - Developmental Disabilities; Physical - Disability; Physical - Gastrointestinal (GI) Conditions; Physical - Hematologic Conditions; Physical - Infectious Diseases; Physical - Metabolic - Diabetes; Physical - Neurologic Conditions; Physical - Oncologic Conditions; Physical - Renal Conditions; Physical - Respiratory Conditions; ED Utilization; High Risk Pregnancy | H57: Experiencing homelessness; At risk of experiencing homelessness
A58: Community Care Cooperative (C3) | B58: Annie Pham, Director Flexible Services, flexibleservices@c3aco.org | C58: Housing Supports | D58: Pre-Tenancy - Individual Supports; Pre-Tenancy - Transitional Supports - First/Last/Security; Pre-Tenancy - Transitional Supports - Moving Costs; Pre-Tenancy - Transitional Supports - Household Furniture; Pre-Tenancy - Transitional Supports - Other: Utility arrears, application fees, pantry stocking | E58: Father Bill's & MainSpring | F58: Brockton; Quincy | G58: Behavioral - Anxiety; Behavioral - Depression; Behavioral - Serious Emotional Disturbance; Behavioral - Serious Mental Illness; Behavioral - Substance Use Disorder; Behavioral - Trauma/Stress Disorder; Physical - Cardiovascular Conditions - Hypertension; Physical - Cardiovascular Conditions - Other; Physical - Developmental Disabilities; Physical - Disability; Physical - Gastrointestinal (GI) Conditions; Physical - Hematologic Conditions; Physical - Infectious Diseases; Physical - Metabolic - Diabetes; Physical - Neurologic Conditions; Physical - Oncologic Conditions; Physical - Renal Conditions; Physical - Respiratory Conditions; ED Utilization; High Risk Pregnancy | H58: Experiencing homelessness
A59: Community Care Cooperative (C3) | B59: Annie Pham, Director Flexible Services, flexibleservices@c3aco.org | C59: Housing Supports | D59: Medically Tailored Meals (MTM); Pre-Tenancy - Individual Supports; Pre-Tenancy - Transitional Supports - First/Last/Security; Pre-Tenancy - Transitional Supports - Household Furniture; Tenancy Sustaining Supports - Prevention Services & Goods; Tenancy Sustaining Supports - Stabilization Services & Goods; Pre-Tenancy - Transitional Supports - Other: Utility arrears, application fees, pantry stocking | E59: Project Hope | F59: Boston - Primary | G59: Behavioral - Anxiety; Behavioral - Depression; Behavioral - Serious Emotional Disturbance; Behavioral - Serious Mental Illness; Behavioral - Substance Use Disorder; Behavioral - Trauma/Stress Disorder; Physical - Cardiovascular Conditions - Hypertension; Physical - Cardiovascular Conditions - Other; Physical - Developmental Disabilities; Physical - Disability; Physical - Gastrointestinal (GI) Conditions; Physical - Hematologic Conditions; Physical - Infectious Diseases; Physical - Metabolic - Diabetes; Physical - Neurologic Conditions; Physical - Oncologic Conditions; Physical - Renal Conditions; Physical - Respiratory Conditions; ED Utilization; High Risk Pregnancy | H59: Experiencing homelessness; At risk of experiencing homelessness
A60: Community Care Cooperative (C3) | B60: Annie Pham, Director Flexible Services, flexibleservices@c3aco.org | C60: Housing Supports | D60: Pre-Tenancy - Individual Supports; Pre-Tenancy - Transitional Supports - First/Last/Security; Pre-Tenancy - Transitional Supports - Moving Costs; Pre-Tenancy - Transitional Supports - Household Furniture; Home Modifications - Physical Adaptations; Tenancy - Private Transportation; Pre-Tenancy - Transitional Supports - Other: Utility arrears, application fees, pantry stocking | E60: Housing Assistance Corporation | F60: Falmouth; Oak Bluffs; Orleans; Nantucket | G60: Behavioral - Anxiety; Behavioral - Depression; Behavioral - Serious Emotional Disturbance; Behavioral - Serious Mental Illness; Behavioral - Substance Use Disorder; Behavioral - Trauma/Stress Disorder; Physical - Cardiovascular Conditions - Hypertension; Physical - Cardiovascular Conditions - Other; Physical - Developmental Disabilities; Physical - Disability; Physical - Gastrointestinal (GI) Conditions; Physical - Hematologic Conditions; Physical - Infectious Diseases; Physical - Metabolic - Diabetes; Physical - Neurologic Conditions; Physical - Oncologic Conditions; Physical - Renal Conditions; Physical - Respiratory Conditions; ED Utilization; High Risk Pregnancy | H60: Experiencing homelessness; At risk of experiencing homelessness
A61: Community Care Cooperative (C3) | B61: Annie Pham, Director Flexible Services, flexibleservices@c3aco.org | C61: Housing Supports | D61: Pre-Tenancy - Individual Supports; Pre-Tenancy - Transitional Supports - First/Last/Security; Pre-Tenancy - Transitional Supports - Moving Costs; Pre-Tenancy - Transitional Supports - Household Furniture; Tenancy Sustaining Supports - Prevention Services & Goods; Tenancy Sustaining Supports - Stabilization Services & Goods; Pre-Tenancy - Transitional Supports - Other: Utility arrears, application fees, pantry stocking | E61: Community Action of the Pioneer Valley | F61: Greenfield | G61: Behavioral - Anxiety; Behavioral - Depression; Behavioral - Serious Emotional Disturbance; Behavioral - Serious Mental Illness; Behavioral - Substance Use Disorder; Behavioral - Trauma/Stress Disorder; Physical - Cardiovascular Conditions - Hypertension; Physical - Cardiovascular Conditions - Other; Physical - Developmental Disabilities; Physical - Disability; Physical - Gastrointestinal (GI) Conditions; Physical - Hematologic Conditions; Physical - Infectious Diseases; Physical - Metabolic - Diabetes; Physical - Neurologic Conditions; Physical - Oncologic Conditions; Physical - Renal Conditions; Physical - Respiratory Conditions; ED Utilization; High Risk Pregnancy | H61: Experiencing homelessness; At risk of experiencing homelessness
A62: Community Care Cooperative (C3) | B62: Annie Pham, Director Flexible Services, flexibleservices@c3aco.org | C62: Housing Supports | D62: Pre-Tenancy - Individual Supports; Pre-Tenancy - Transitional Supports - First/Last/Security; Pre-Tenancy - Transitional Supports - Moving Costs; Pre-Tenancy - Transitional Supports - Household Furniture; Tenancy Sustaining Supports - Prevention Services & Goods; Tenancy Sustaining Supports - Stabilization Services & Goods; Pre-Tenancy - Transitional Supports - Other: Utility arrears, application fees, pantry stocking | E62: Making Opportunity Count | F62: Gardner - Fitchburg; Athol | G62: Behavioral - Anxiety; Behavioral - Depression; Behavioral - Serious Emotional Disturbance; Behavioral - Serious Mental Illness; Behavioral - Substance Use Disorder; Behavioral - Trauma/Stress Disorder; Physical - Cardiovascular Conditions - Hypertension; Physical - Cardiovascular Conditions - Other; Physical - Developmental Disabilities; Physical - Disability; Physical - Gastrointestinal (GI) Conditions; Physical - Hematologic Conditions; Physical - Infectious Diseases; Physical - Metabolic - Diabetes; Physical - Neurologic Conditions; Physical - Oncologic Conditions; Physical - Renal Conditions; Physical - Respiratory Conditions; ED Utilization; High Risk Pregnancy | H62: Experiencing homelessness; At risk of experiencing homelessness
A63: Community Care Cooperative (C3) | B63: Annie Pham, Director Flexible Services, flexibleservices@c3aco.org | C63: Housing Supports | D63: Pre-Tenancy - Individual Supports; Pre-Tenancy - Transitional Supports - First/Last/Security; Pre-Tenancy - Transitional Supports - Moving Costs; Pre-Tenancy - Transitional Supports - Household Furniture; Tenancy Sustaining Supports - Prevention Services & Goods; Tenancy Sustaining Supports - Stabilization Services & Goods; Pre-Tenancy - Transitional Supports - Other: Utility arrears, application fees, pantry stocking | E63: South Middlesex Opportunity Council | F63: Framingham; Worcester | G63: Behavioral - Anxiety; Behavioral - Depression; Behavioral - Serious Emotional Disturbance; Behavioral - Serious Mental Illness; Behavioral - Substance Use Disorder; Behavioral - Trauma/Stress Disorder; Physical - Cardiovascular Conditions - Hypertension; Physical - Cardiovascular Conditions - Other; Physical - Developmental Disabilities; Physical - Disability; Physical - Gastrointestinal (GI) Conditions; Physical - Hematologic Conditions; Physical - Infectious Diseases; Physical - Metabolic - Diabetes; Physical - Neurologic Conditions; Physical - Oncologic Conditions; Physical - Renal Conditions; Physical - Respiratory Conditions; ED Utilization; High Risk Pregnancy | H63: Experiencing homelessness; At risk of experiencing homelessness
A64: Community Care Cooperative (C3) | B64: Annie Pham, Director Flexible Services, flexibleservices@c3aco.org | C64: Housing Supports | D64: Pre-Tenancy - Individual Supports; Pre-Tenancy - Transitional Supports - First/Last/Security; Pre-Tenancy - Transitional Supports - Moving Costs; Pre-Tenancy - Transitional Supports - Household Furniture; Tenancy Sustaining Supports - Prevention Services & Goods; Tenancy Sustaining Supports - Stabilization Services & Goods; Pre-Tenancy - Transitional Supports - Other: Utility arrears, application fees, pantry stocking | E64: Open Sky | F64: Worcester | G64: Behavioral - Anxiety; Behavioral - Depression; Behavioral - Serious Emotional Disturbance; Behavioral - Serious Mental Illness; Behavioral - Substance Use Disorder; Behavioral - Trauma/Stress Disorder; Physical - Cardiovascular Conditions - Hypertension; Physical - Cardiovascular Conditions - Other; Physical - Developmental Disabilities; Physical - Disability; Physical - Gastrointestinal (GI) Conditions; Physical - Hematologic Conditions; Physical - Infectious Diseases; Physical - Metabolic - Diabetes; Physical - Neurologic Conditions; Physical - Oncologic Conditions; Physical - Renal Conditions; Physical - Respiratory Conditions; ED Utilization; High Risk Pregnancy | H64: Experiencing homelessness; At risk of experiencing homelessness
A65: Community Care Cooperative (C3) | B65: Annie Pham, Director Flexible Services, flexibleservices@c3aco.org | C65: Housing Supports | D65: Home Modifications - Asthma Interventions; Home Modifications - Physical Adaptations; Home Modifications - Other: Home Modifications Referral Coordination Services | E65: Revitalize CDC | F65: Adams; Holyoke; Northampton; Pittsfield; Springfield; Westfield; Greenfield; Worcester; Athol; Gardner - Fitchburg | G65: Physical - Cardiovascular Conditions - Hypertension; Physical - Cardiovascular Conditions - Other; Physical - Disability; Physical - Hematologic Conditions; Physical - Metabolic - Diabetes; Physical - Neurologic Conditions; Physical - Oncologic Conditions; Physical - Respiratory Conditions | H65: At risk of experiencing homelessness
A66: Community Care Cooperative (C3) | B66: Annie Pham, Director Flexible Services, flexibleservices@c3aco.org | C66: Housing Supports | D66: Pre-Tenancy - Individual Supports; Pre-Tenancy - Transitional Supports - First/Last/Security; Pre-Tenancy - Transitional Supports - Moving Costs; Pre-Tenancy - Transitional Supports - Household Furniture; Tenancy Sustaining Supports - Prevention Services & Goods; Tenancy Sustaining Supports - Stabilization Services & Goods; Pre-Tenancy - Transitional Supports - Other: Utility arrears, application fees, pantry stocking | E66: NeighborWorks Housing Solutions | F66: New Bedford | G66: Behavioral - Anxiety; Behavioral - Depression; Behavioral - Serious Emotional Disturbance; Behavioral - Serious Mental Illness; Behavioral - Substance Use Disorder; Behavioral - Trauma/Stress Disorder; Physical - Cardiovascular Conditions - Hypertension; Physical - Cardiovascular Conditions - Other; Physical - Developmental Disabilities; Physical - Disability; Physical - Gastrointestinal (GI) Conditions; Physical - Hematologic Conditions; Physical - Infectious Diseases; Physical - Metabolic - Diabetes; Physical - Neurologic Conditions; Physical - Oncologic Conditions; Physical - Renal Conditions; Physical - Respiratory Conditions; ED Utilization; High Risk Pregnancy | H66: Experiencing homelessness; At risk of experiencing homelessness
A67: Community Care Cooperative (C3) | B67: Annie Pham, Director Flexible Services, flexibleservices@c3aco.org | C67: Housing Supports | D67: Pre-Tenancy - Individual Supports; Tenancy Sustaining Supports - Stabilization Services & Goods | E67: Medical Legal Partnership Boston | F67: Athol; Attleboro; Barnstable; Beverly; Boston - Primary; Brockton; Fall River; Falmouth; Framingham; Gardner - Fitchburg; Gloucester; Haverhill; Lawrence; Lowell; Lynn; Malden; Nantucket; New Bedford; Orleans; Plymouth; Quincy; Revere; Salem; Somerville; Southbridge; Taunton; Waltham; Wareham; Worcester; Oak Bluffs; Adams; Greenfield; Holyoke; Northampton; Springfield; Westfield | G67: Behavioral - Anxiety; Behavioral - Depression; Behavioral - Serious Emotional Disturbance; Behavioral - Serious Mental Illness; Behavioral - Substance Use Disorder; Behavioral - Trauma/Stress Disorder; Physical - Cardiovascular Conditions - Hypertension; Physical - Cardiovascular Conditions - Other; Physical - Developmental Disabilities; Physical - Disability; Physical - Gastrointestinal (GI) Conditions; Physical - Hematologic Conditions; Physical - Infectious Diseases; Physical - Metabolic - Diabetes; Physical - Neurologic Conditions; Physical - Oncologic Conditions; Physical - Renal Conditions; Physical - Respiratory Conditions; ED Utilization; High Risk Pregnancy | H67: Experiencing homelessness; At risk of experiencing homelessness
A68: Berkshire Fallon Health Collaborative | B68: Jeffrey Peck, JeffreyP@bcrha.com, 413-443-7138 | C68: Housing Supports | D68: Tenancy Sustaining Supports - Stabilization Services & Goods; Tenancy Sustaining Supports - Prevention Services & Goods | E68: Berkshire County Regional Housing Authority | F68: Pittsfield | G68: Behavioral - Substance Use Disorder; Activities of Daily Living (ADL); Instrumental Activities of Daily Living (IADL); Physical - Disability | H68: At risk of experiencing homelessness
A69: Berkshire Fallon Health Collaborative | B69: Stacy Strain, sstrain@chpberkshirew.org, 413-528-9311 | C69: Nutrition Supports | D69: Nutrition Education; Nutrition Kitchen Supplies; Food/formula vouchers to supplement WIC benefits | E69: Community Health Program | F69: Pittsfield | G69: Physical - Metabolic - Diabetes; High Risk Pregnancy | H69: At risk for nutrition deficiency or imbalance due to food insecurity
A70: Berkshire Fallon Health Collaborative | B70: Karen Vogel, flexibleservicescoordination@bhs1.org, 413-553-9090 | C70: Nutrition Supports | D70: Medically Tailored Meals (MTM); Nutrition Kitchen Supplies | E70: Berkshire Fallon Health Collaborative & Berkshire County Sheriff's Office | F70: Pittsfield | G70: Physical - Cardiovascular Conditions - Hypertension; Physical - Metabolic - Diabetes; Physical - Renal Conditions; Physical - Cardiovascular Conditions - Other | H70: At risk for nutrition deficiency or imbalance due to food insecurity
A71: Berkshire Fallon Health Collaborative | B71: Karen Vogel, flexibleservicescoordination@bhs1.org, 413-553-9090 | C71: Nutrition Supports | D71: Food Boxes; Nutrition Kitchen Supplies; Tenancy - Public Transportation | E71: Berkshire Fallon Health Collaborative & Berkshire County Sheriff's Office | F71: Pittsfield | G71: Behavioral - Substance Use Disorder; ED Utilization; Behavioral - Trauma/Stress Disorder; Behavioral - Depression | H71: At risk of experiencing homelessness; At risk for Nutrition deficiency or imbalance due to food insecurity
A72: Fallon 365 Care | B72: Mike Hebert, Michael.Hebert@reliantmedicalgroup.org | C72: Nutrition Supports | D72: Home Delivered Meals | E72: Elder Services of Worcester Area | F72: Gardner - Fitchburg; Framingham; Southbridge; Worcester | G72: Behavioral - Anxiety; Behavioral - Depression; Behavioral - Serious Emotional Disturbance; Behavioral - Serious Mental Illness; Behavioral - Substance Use Disorder; Behavioral - Trauma/Stress Disorder; Behavioral - Other; Physical - Cardiovascular Conditions - Hypertension; Physical - Cardiovascular Conditions - Other; Physical - Developmental Disabilities; Physical - Disability; Physical - Gastrointestinal (GI) Conditions; Physical - Hematologic Conditions; Physical - Infectious Diseases; Physical - Metabolic - Diabetes; Physical - Metabolic - Other; Physical - Oncologic Conditions; Physical - Renal Conditions; Physical - Respiratory Conditions; Physical - Other; High Risk Pregnancy | H72: At risk for nutrition deficiency or imbalance due to food insecurity
A73: Fallon 365 Care | B73: Mike Hebert, Michael.Hebert@reliantmedicalgroup.org | C73: Housing Supports | D73: Pre-Tenancy - Individual Supports; Pre-Tenancy - Transitional Supports - First/Last/Security; Pre-Tenancy - Transitional Supports - Moving Costs; Pre-Tenancy - Transitional Supports - Other; Pre-Tenancy - Transitional Supports - Household Furniture; Tenancy Sustaining Supports - Prevention Services & Goods; Tenancy Sustaining Supports - Stabilization Services & Goods; Home Modifications - Asthma Interventions; Home Modifications - Physical Adaptations; Home Modifications - Other; Tenancy - Private Transportation; Tenancy - Public Transportation | E73: Open Sky | F73: Framingham; Southbridge; Worcester; Gardner - Fitchburg | G73: Behavioral - Anxiety; Behavioral - Depression; Behavioral - Serious Emotional Disturbance; Behavioral - Serious Mental Illness; Behavioral - Substance Use Disorder; Behavioral - Trauma/Stress Disorder; Behavioral - Other; Physical - Cardiovascular Conditions - Hypertension; Physical - Cardiovascular Conditions - Other; Physical - Developmental Disabilities; Physical - Disability; Physical - Gastrointestinal (GI) Conditions; Physical - Hematologic Conditions; Physical - Infectious Diseases; Physical - Metabolic - Diabetes; Physical - Metabolic - Other; Physical - Oncologic Conditions; Physical - Renal Conditions; Physical - Respiratory Conditions; Physical - Other; High Risk Pregnancy | H73: Experiencing homelessness; At risk of experiencing homelessness
A74: Fallon 365 Care | B74: Mike Hebert, Michael.Hebert@reliantmedicalgroup.org | C74: Nutrition Supports | D74: Food Vouchers; Nutrition - Private Transportation; Nutrition - Public Transportation; Nutrition Kitchen Supplies; Case Management (Salary + fringe) | E74: About Fresh; Open Sky | F74: Framingham; Southbridge; Worcester; Gardner - Fitchburg | G74: Behavioral - Anxiety; Behavioral - Depression; Behavioral - Serious Emotional Disturbance; Behavioral - Serious Mental Illness; Behavioral - Substance Use Disorder; Behavioral - Trauma/Stress Disorder; Behavioral - Other; Physical - Cardiovascular Conditions - Hypertension; Physical - Cardiovascular Conditions - Other; Physical - Developmental Disabilities; Physical - Disability; Physical - Gastrointestinal (GI) Conditions; Physical - Hematologic Conditions; Physical - Infectious Diseases; Physical - Metabolic - Diabetes; Physical - Metabolic - Other; Physical - Oncologic Conditions; Physical - Renal Conditions; Physical - Respiratory Conditions; Physical - Other; High Risk Pregnancy | H74: At risk for nutrition deficiency or imbalance due to food insecurity
A75: WellSense Care Alliance | B75: PHO.resourcebank@tuftsmedicine.org | C75: Nutrition Supports | D75: Medically Tailored Meals (MTM) | E75: Community Servings | F75: Beverly; Boston - Primary; Brockton; Framingham; Haverhill; Lawrence; Lowell; Lynn; Malden; Quincy; Revere; Salem; Somerville; Waltham; Wareham; Woburn | G75: Behavioral - Anxiety; Behavioral - Depression; Behavioral - Serious Emotional Disturbance; Behavioral - Serious Mental Illness; Behavioral - Substance Use Disorder; Behavioral - Trauma/Stress Disorder; Physical - Cardiovascular Conditions - Hypertension; Physical - Developmental Disabilities; Physical - Disability; Physical - Gastrointestinal (GI) Conditions; Physical - Hematologic Conditions; Physical - Metabolic - Diabetes; Physical - Infectious Diseases; Physical - Neurologic Conditions; Physical - Oncologic Conditions; Physical - Renal Conditions; Physical - Respiratory Conditions; Activities of Daily Living (ADL); Instrumental Activities of Daily Living (IADL); ED Utilization; High Risk Pregnancy; Cardiovascular - Other: Heart Disease, High Cholesterol; Metabolic - Other: Malnutrition, Obesity | H75: At risk for nutrition deficiency or imbalance due to food insecurity
A76: WellSense Care Alliance | B76: PHO.resourcebank@tuftsmedicine.org | C76: Nutrition Supports | D76: Food Boxes; Food Vouchers; Nutrition Education | E76: Mill City Grows | F76: Lowell; Lawrence | G76: Behavioral - Anxiety; Behavioral - Depression; Behavioral - Serious Emotional Disturbance; Behavioral - Serious Mental Illness; Behavioral - Substance Use Disorder; Behavioral - Trauma/Stress Disorder; Physical - Cardiovascular Conditions - Hypertension; Physical - Developmental Disabilities; Physical - Disability; Physical - Gastrointestinal (GI) Conditions; Physical - Hematologic Conditions; Physical - Metabolic - Diabetes; Physical - Infectious Diseases; Physical - Neurologic Conditions; Physical - Oncologic Conditions; Physical - Renal Conditions; Physical - Respiratory Conditions; Activities of Daily Living (ADL); Instrumental Activities of Daily Living (IADL); ED Utilization; High Risk Pregnancy; Cardiovascular - Other: Heart Disease, High Cholesterol; Metabolic - Other: Malnutrition, Obesity | H76: At risk for nutrition deficiency or imbalance due to food insecurity
A77: WellSense Care Alliance | B77: PHO.resourcebank@tuftsmedicine.org | C77: Nutrition Supports | D77: Food Vouchers; Nutrition Education; Nutrition Kitchen Supplies; Intake and Follow up | E77: Project Bread | F77: Beverly; Boston - Primary; Brockton; Framingham; Haverhill; Lawrence; Lowell; Lynn; Malden; Quincy; Revere; Salem; Somerville; Waltham; Wareham; Woburn | G77: Behavioral - Anxiety; Behavioral - Depression; Behavioral - Serious Emotional Disturbance; Behavioral - Serious Mental Illness; Behavioral - Substance Use Disorder; Behavioral - Trauma/Stress Disorder; Physical - Cardiovascular Conditions - Hypertension; Physical - Developmental Disabilities; Physical - Disability; Physical - Gastrointestinal (GI) Conditions; Physical - Hematologic Conditions; Physical - Metabolic - Diabetes; Physical - Infectious Diseases; Physical - Neurologic Conditions; Physical - Oncologic Conditions; Physical - Renal Conditions; Physical - Respiratory Conditions; Activities of Daily Living (ADL); Instrumental Activities of Daily Living (IADL); ED Utilization; High Risk Pregnancy; Cardiovascular - Other: Heart Disease, High Cholesterol; Metabolic - Other: Malnutrition, Obesity | H77: At risk for nutrition deficiency or imbalance due to food insecurity
A78: WellSense Care Alliance | B78: PHO.resourcebank@tuftsmedicine.org | C78: Housing Supports | D78: Pre-Tenancy - Individual Supports; Pre-Tenancy - Transitional Supports - First/Last/Security; Pre-Tenancy - Transitional Supports - Moving Costs; Pre-Tenancy - Transitional Supports - Household Furniture; Tenancy Sustaining Supports - Prevention Services & Goods; Tenancy Sustaining Supports - Stabilization Services & Goods; Home Modifications - Asthma Interventions; Home Modifications - Physical Adaptations; Tenancy - Private Transportation; Tenancy - Public Transportation; Pre-Tenancy - Transitional Supports - Other: Back utilities, utility deposits, costs for filing applications, obtaining and correcting needed documentation (under $500); Home Modifications - Other: Appliances (AC, Refrigerator), Pest Management | E78: Vinfen | F78: Haverhill; Lawrence; Lowell; Lynn; Malden; Revere; Somerville; Woburn; Boston - Primary | G78: Behavioral - Anxiety; Behavioral - Depression; Behavioral - Serious Emotional Disturbance; Behavioral - Serious Mental Illness; Behavioral - Substance Use Disorder; Behavioral - Trauma/Stress Disorder; Physical - Cardiovascular Conditions - Hypertension; Physical - Developmental Disabilities; Physical - Disability; Physical - Gastrointestinal (GI) Conditions; Physical - Hematologic Conditions; Physical - Metabolic - Diabetes; Physical - Infectious Diseases; Physical - Neurologic Conditions; Physical - Oncologic Conditions; Physical - Renal Conditions; Physical - Respiratory Conditions; Activities of Daily Living (ADL); Instrumental Activities of Daily Living (IADL); ED Utilization; High Risk Pregnancy; Cardiovascular - Other: Heart Disease, High Cholesterol; Metabolic - Other: Malnutrition, Obesity | H78: Experiencing homelessness; At risk of experiencing homelessness
A79: WellSense Care Alliance | B79: PHO.resourcebank@tuftsmedicine.org | C79: Housing Supports | D79: Pre-Tenancy - Individual Supports; Pre-Tenancy - Transitional Supports - First/Last/Security; Pre-Tenancy - Transitional Supports - Moving Costs; Pre-Tenancy - Transitional Supports - Household Furniture; Tenancy Sustaining Supports - Prevention Services & Goods; Tenancy Sustaining Supports - Stabilization Services & Goods; Home Modifications - Asthma Interventions; Home Modifications - Physical Adaptations; Pre-Tenancy - Transitional Supports - Other: Back utilities, utility deposits, costs for filing applications, obtaining and correcting needed documentation (under $500); Home Modifications - Other: Appliances (Refrigerator, AC), Pest Management | E79: South Middlesex Opportunity Council | F79: Lowell; Lawrence; Lynn; Framingham | G79: Behavioral - Anxiety; Behavioral - Depression; Behavioral - Serious Emotional Disturbance; Behavioral - Serious Mental Illness; Behavioral - Substance Use Disorder; Behavioral - Trauma/Stress Disorder; Physical - Cardiovascular Conditions - Hypertension; Physical - Developmental Disabilities; Physical - Disability; Physical - Gastrointestinal (GI) Conditions; Physical - Hematologic Conditions; Physical - Metabolic - Diabetes; Physical - Infectious Diseases; Physical - Neurologic Conditions; Physical - Oncologic Conditions; Physical - Renal Conditions; Physical - Respiratory Conditions; Activities of Daily Living (ADL); Instrumental Activities of Daily Living (IADL); ED Utilization; High Risk Pregnancy; Cardiovascular - Other: Heart Disease, High Cholesterol; Metabolic - Other: Malnutrition, Obesity | H79: Experiencing homelessness; At risk of experiencing homelessness
A80: WellSense Care Alliance | B80: PHO.resourcebank@tuftsmedicine.org | C80: Housing Supports | D80: Pre-Tenancy - Individual Supports; Pre-Tenancy - Transitional Supports - First/Last/Security; Pre-Tenancy - Transitional Supports - Moving Costs; Pre-Tenancy - Transitional Supports - Household Furniture; Tenancy Sustaining Supports - Prevention Services & Goods; Tenancy Sustaining Supports - Stabilization Services & Goods; Home Modifications - Asthma Interventions; Home Modifications - Physical Adaptations; Pre-Tenancy - Transitional Supports - Other: Back utilities, utility deposits, costs for filing applications, obtaining and correcting needed documentation (under $500); Home Modifications - Other: Appliances (Refrigerator, AC), Pest Management | E80: Quincy Community Action Programs | F80: Brockton; Quincy | G80: Behavioral - Anxiety; Behavioral - Depression; Behavioral - Serious Emotional Disturbance; Behavioral - Serious Mental Illness; Behavioral - Substance Use Disorder; Behavioral - Trauma/Stress Disorder; Physical - Cardiovascular Conditions - Hypertension; Physical - Developmental Disabilities; Physical - Disability; Physical - Gastrointestinal (GI) Conditions; Physical - Hematologic Conditions; Physical - Metabolic - Diabetes; Physical - Infectious Diseases; Physical - Neurologic Conditions; Physical - Oncologic Conditions; Physical - Renal Conditions; Physical - Respiratory Conditions; Activities of Daily Living (ADL); Instrumental Activities of Daily Living (IADL); ED Utilization; High Risk Pregnancy; Cardiovascular - Other: Heart Disease, High Cholesterol; Metabolic - Other: Malnutrition, Obesity | H80: Experiencing homelessness; At risk of experiencing homelessness
A81: East Boston Neighborhood Health WellSense Alliance | B81: Wendy Olivares-Herrera, Manager of Operations EBNHC, olivarew@ebnhc.org, 617-568-4485 ext. 2718 | C81: Nutrition Supports | D81: Food Vouchers; Nutrition Education; Nutrition Kitchen Supplies; Intake and Follow up | E81: Project Bread | F81: Boston - Primary; Malden; Revere | G81: Behavioral - Anxiety; Behavioral - Depression; Behavioral - Serious Emotional Disturbance; Behavioral - Serious Mental Illness; Behavioral - Substance Use Disorder; Behavioral - Trauma/Stress Disorder; Physical - Cardiovascular Conditions - Hypertension; Physical - Developmental Disabilities; Physical - Disability; Physical - Gastrointestinal (GI) Conditions; Physical - Hematologic Conditions; Physical - Metabolic - Diabetes; Physical - Infectious Diseases; Physical - Neurologic Conditions; Physical - Oncologic Conditions; Physical - Renal Conditions; Physical - Respiratory Conditions; Activities of Daily Living (ADL); Instrumental Activities of Daily Living (IADL); ED Utilization; High Risk Pregnancy; Cardiovascular - Other: Heart Disease, High Cholesterol; Metabolic - Other: Malnutrition, Obesity | H81: At risk for nutrition deficiency or imbalance due to food insecurity
A82: East Boston Neighborhood Health WellSense Alliance | B82: Wendy Olivares-Herrera, Manager of Operations EBNHC, olivarew@ebnhc.org, 617-568-4485 ext. 2718 | C82: Nutrition Supports | D82: Medically Tailored Meals (MTM) | E82: Community Servings | F82: Boston - Primary; Malden; Revere | G82: Behavioral - Anxiety; Behavioral - Depression; Behavioral - Serious Emotional Disturbance; Behavioral - Serious Mental Illness; Behavioral - Substance Use Disorder; Behavioral - Trauma/Stress Disorder; Physical - Cardiovascular Conditions - Hypertension; Physical - Developmental Disabilities; Physical - Disability; Physical - Gastrointestinal (GI) Conditions; Physical - Hematologic Conditions; Physical - Metabolic - Diabetes; Physical - Infectious Diseases; Physical - Neurologic Conditions; Physical - Oncologic Conditions; Physical - Renal Conditions; Physical - Respiratory Conditions; Activities of Daily Living (ADL); Instrumental Activities of Daily Living (IADL); ED Utilization; High Risk Pregnancy; Cardiovascular - Other: Heart Disease, High Cholesterol; Metabolic - Other: Malnutrition, Obesity | H82: At risk for nutrition deficiency or imbalance due to food insecurity
A83: East Boston Neighborhood Health WellSense Alliance | B83: Wendy Olivares-Herrera, Manager of Operations EBNHC, olivarew@ebnhc.org, 617-568-4485 ext. 2718 | C83: Housing Supports | D83: Pre-Tenancy - Individual Supports; Pre-Tenancy - Transitional Supports - First/Last/Security; Pre-Tenancy - Transitional Supports - Moving Costs; Pre-Tenancy - Transitional Supports - Household Furniture; Tenancy Sustaining Supports - Prevention Services & Goods; Tenancy Sustaining Supports - Stabilization Services & Goods; Home Modifications - Asthma Interventions; Home Modifications - Physical Adaptations; Tenancy - Private Transportation; Tenancy - Public Transportation; Pre-Tenancy - Transitional Supports - Other: Back utilities, utility deposits, costs for filing applications, obtaining and correcting needed documentation (under $500); Home Modifications - Other: Appliances (AC, Refrigerator), Pest Management | E83: Eliot | F83: Boston - Primary; Malden; Revere | G83: Behavioral - Anxiety; Behavioral - Depression; Behavioral - Serious Emotional Disturbance; Behavioral - Serious Mental Illness; Behavioral - Substance Use Disorder; Behavioral - Trauma/Stress Disorder; Physical - Cardiovascular Conditions - Hypertension; Physical - Developmental Disabilities; Physical - Disability; Physical - Gastrointestinal (GI) Conditions; Physical - Hematologic Conditions; Physical - Metabolic - Diabetes; Physical - Infectious Diseases; Physical - Neurologic Conditions; Physical - Oncologic Conditions; Physical - Renal Conditions; Physical - Respiratory Conditions; Activities of Daily Living (ADL); Instrumental Activities of Daily Living (IADL); ED Utilization; High Risk Pregnancy; Cardiovascular - Other: Heart Disease, High Cholesterol; Metabolic - Other: Malnutrition, Obesity | H83: Experiencing homelessness; At risk of experiencing homelessness
A84: East Boston Neighborhood Health WellSense Alliance | B84: Wendy Olivares-Herrera, Manager of Operations EBNHC, olivarew@ebnhc.org, 617-568-4485 ext. 2718 | C84: Housing Supports | D84: Pre-Tenancy - Individual Supports; Pre-Tenancy - Transitional Supports - First/Last/Security; Pre-Tenancy - Transitional Supports - Moving Costs; Pre-Tenancy - Transitional Supports - Household Furniture; Tenancy Sustaining Supports - Prevention Services & Goods; Tenancy Sustaining Supports - Stabilization Services & Goods; Home Modifications - Asthma Interventions; Home Modifications - Physical Adaptations; Tenancy - Private Transportation; Tenancy - Public Transportation; Pre-Tenancy - Transitional Supports - Other: Back utilities, utility deposits, costs for filing applications, obtaining and correcting needed documentation (under $500); Home Modifications - Other: Appliances (AC, Refrigerator), Pest Management | E84: Metro Housing Boston | F84: Boston - Primary; Malden; Revere | G84: Behavioral - Anxiety; Behavioral - Depression; Behavioral - Serious Emotional Disturbance; Behavioral - Serious Mental Illness; Behavioral - Substance Use Disorder; Behavioral - Trauma/Stress Disorder; Physical - Cardiovascular Conditions - Hypertension; Physical - Developmental Disabilities; Physical - Disability; Physical - Gastrointestinal (GI) Conditions; Physical - Hematologic Conditions; Physical - Metabolic - Diabetes; Physical - Infectious Diseases; Physical - Neurologic Conditions; Physical - Oncologic Conditions; Physical - Renal Conditions; Physical - Respiratory Conditions; Activities of Daily Living (ADL); Instrumental Activities of Daily Living (IADL); ED Utilization; High Risk Pregnancy; Cardiovascular - Other: Heart Disease, High Cholesterol; Metabolic - Other: Malnutrition, Obesity | H84: Experiencing homelessness; At risk of experiencing homelessness
A85: Fallon Health-Atrius Health Care Collaborative | B85: Nicole Foster, nicole.foster@fallonhealth.org, (508) 368-9341; Lindsay Veillette, Lindsay_Veillette@atriushealth.org, 617-541-6545 | C85: Nutrition Supports | D85: Medically Tailored Meals (MTM) | E85: Community Servings | F85: Attleboro; Beverly; Boston - Primary; Brockton; Falmouth; Framingham; Gardner - Fitchburg; Lawrence; Lowell; Lynn; Malden; Plymouth; Quincy; Revere; Salem; Somerville; Waltham; Wareham; Woburn | G85: Physical - Metabolic - Diabetes; Physical - Cardiovascular Conditions - Hypertension; High Risk Pregnancy; Behavioral - Anxiety; Behavioral - Depression; Behavioral - Serious Mental Illness; Physical - Developmental Disabilities; Physical - Disability; Cardiovascular - Other: Congestive Heart Failure; Metabolic - Other: Obesity and morbid obesity (Co-morbid HTN for adults) | H85: At risk of experiencing homelessness; At risk for Nutrition deficiency or imbalance due to food insecurity
A86: Fallon Health-Atrius Health Care Collaborative | B86: Nicole Foster, nicole.foster@fallonhealth.org, (508) 368-9341; Lindsay Veillette, Lindsay_Veillette@atriushealth.org, 617-541-6545 | C86: Housing Supports | D86: Pre-Tenancy - Individual Supports; Pre-Tenancy - Transitional Supports - First/Last/Security; Pre-Tenancy - Transitional Supports - Moving Costs; Pre-Tenancy - Transitional Supports - Household Furniture; Home Modifications - Physical Adaptations; Home Modifications - Asthma Interventions | E86: Massachusetts Coalition for the Homeless | F86: Attleboro; Beverly; Boston - Primary; Brockton; Falmouth; Framingham; Gardner - Fitchburg; Lawrence; Lowell; Lynn; Malden; Plymouth; Quincy; Revere; Salem; Somerville; Waltham; Wareham; Woburn | G86: Behavioral - Anxiety; Behavioral - Depression; Behavioral - Serious Mental Illness; Physical - Cardiovascular Conditions - Hypertension; Physical - Developmental Disabilities; Physical - Disability; Behavioral - Serious Emotional Disturbance; Behavioral - Substance Use Disorder; Behavioral - Trauma/Stress Disorder; Physical - Gastrointestinal (GI) Conditions; Physical - Hematologic Conditions; Physical - Infectious Diseases; Physical - Metabolic - Diabetes; Physical - Neurologic Conditions; Physical - Oncologic Conditions; Physical - Renal Conditions; Physical - Respiratory Conditions; ED Utilization | H86: At risk of experiencing homelessness
A87: Fallon Health-Atrius Health Care Collaborative | B87: Nicole Foster, nicole.foster@fallonhealth.org, (508) 368-9341; Lindsay Veillette, Lindsay_Veillette@atriushealth.org, 617-541-6545 | C87: Nutrition Supports | D87: Food Boxes; Nutrition Education; Nutrition Kitchen Supplies | E87: Just Roots | F87: Gardner - Fitchburg; Worcester; Brockton; Framingham; Lowell | G87: Behavioral - Anxiety; Behavioral - Depression; Behavioral - Serious Mental Illness; Physical - Developmental Disabilities; Physical - Disability; Physical - Metabolic - Diabetes; High Risk Pregnancy; Metabolic - Other: Obesity and morbid obesity | H87: At risk for nutrition deficiency or imbalance due to food insecurity
A88: Steward Health Choice | B88: aclarke@comcounseling.org | C88: Nutrition & Housing Supports | D88: Nutrition Kitchen Supplies; Food Vouchers; Nutrition - Private Transportation; Pre-Tenancy - Individual Supports; Pre-Tenancy - Transitional Supports - First/Last/Security; Pre-Tenancy - Transitional Supports - Moving Costs; Pre-Tenancy - Transitional Supports - Household Furniture; Tenancy Sustaining Supports - Prevention Services & Goods; Tenancy Sustaining Supports - Stabilization Services & Goods; Tenancy - Private Transportation; Home Modifications - Physical Adaptations; Pre-Tenancy - Transitional Supports – Other: Back utilities, Utility deposits (e.g., electricity, gas, heating fuel, water, sewer), Costs for filing applications, Obtaining and correcting needed documentation, Pantry Stocking, Pest Eradication, Home Modifications - Other: Grab bars and Hand Showers and Doorway Modifications, In-home Environmental risk assessments, Remediation of mold, Refrigerators for medicine such as insulin, HEPA filters, Vacuum cleaners, Pest Management supplies and services, Air conditioner units, Hypoallergenic mattresses and pillow covers, Traction or non-skid strips, Night Lights, Training to use such supplies and modifications correctly | E88: Community Counseling of Bristol County | F88: Attleboro; Brockton; Fall River; New Bedford; Taunton | G88: Behavioral - Serious Mental Illness; Behavioral - Substance Use Disorder; Behavioral - Depression; Behavioral - Anxiety; Physical - Cardiovascular Conditions - Hypertension; Physical - Metabolic - Diabetes; Activities of Daily Living (ADL); Instrumental Activities of Daily Living (IADL); ED Utilization; High Risk Pregnancy; Physical - Developmental Disabilities; Behavioral - Other: ADHD, Adjustment Reaction, Altered Mental Status, Autism Spectrum Disorder, Behavioral Challenges, Bipolar, Conduct Disorder, Generalized Anxiety Disorder, Homicidal Ideation, OCD, Oppositional Defiant Disorder, Opioid Use, Personality/Mood Disorder, Post-Traumatic Stress Disorder, Psychosomatic Disorder, Schizophrenia, Suicidal Ideation, Suicide Attempt(s); Physical - Other: Alzheimer's, Anemia, Asthma, Atrial Fibrillation, Autoimmune Disorder, Blood Dyscrasia/Bleeding Disorder, Bone Marrow / Stem Cell Transplant, Bone Marrow Failure, Cancer, Cellulitis, Chronic Pain, Cirrhosis, Coagulopathy, Cognitive Delay, Cognitive Impairment, Conduct Disorder, COPD, Coronary Artery Disease, COVID, Decubitus Ulcers or Pressure Sores, Dehydration, Dementia, Diabetes, DVT/PE, End of Life, End Stage Renal Disease, Failure to Thrive, Falls, Fluid and Electrolyte Disorders, Fracture, GERD, GI Bleed, Heart Failure, Hepatitis, HIV-AIDS, Hyperlipidemia, Hypertension, Hyperthyroidism, Hypotension, Hypothyroidism, IBD, Intellectual Delay, Joint Replacement, Kidney Disease - Acute or Chronic, Liver Disease, Lupus, Lymphoma, Malnutrition, Migraine, Multiple Sclerosis, Myocardial Infarction, Obesity, Paralysis, Pediatric Developmental Delay, Peripheral Vascular Disease, Pneumonia, Postpartum, Pregnancy, Pulmonary Hypertension, Respiratory Failure, Rheumatoid Arthritis, Sepsis, Small Bowel Obstruction, Smoking Cessation, Social/Emotional Needs, Solid Organ Transplant, Stroke (Cerebral Vascular Accident), TIA, Trauma | H88: Experiencing homelessness; At risk of experiencing homelessness; At risk for nutrition deficiency or imbalance due to food insecurity
A89: Steward Health Choice | B89: jgilbert@mlpb.health | C89: Housing Supports | D89: Tenancy Sustaining Supports - Prevention Services & Goods; Home Modifications - Physical Adaptations; Home Modifications - Other: Grab bars and Hand Showers and Doorway Modifications, In-home Environmental risk assessments, Remediation of mold, Refrigerators for medicine such as insulin, HEPA filters, Vacuum cleaners, Pest Management supplies and services, Air conditioner units, Hypoallergenic mattresses and pillow covers, Traction or non-skid strips, Night Lights, Training to use such supplies and modifications correctly | E89: Medical Legal Partnership Boston | F89: Attleboro; Beverly; Boston - Primary; Brockton; Fall River; Falmouth; Framingham; Gloucester; Lynn; Malden; Quincy; Woburn; Worcester; Taunton; Southbridge; Salem; Somerville | G89: Behavioral - Serious Mental Illness; Behavioral - Substance Use Disorder; Behavioral - Depression; Behavioral - Anxiety; Physical - Cardiovascular Conditions - Hypertension; Physical - Metabolic - Diabetes; Activities of Daily Living (ADL); Instrumental Activities of Daily Living (IADL); ED Utilization; High Risk Pregnancy; Behavioral - Other: ADHD, Adjustment Reaction, Altered Mental Status, Autism Spectrum Disorder, Behavioral Challenges, Bipolar, Conduct Disorder, Generalized Anxiety Disorder, Homicidal Ideation, OCD, Oppositional Defiant Disorder, Opioid Use, Personality/Mood Disorder, Post-Traumatic Stress Disorder, Psychosomatic Disorder, Schizophrenia, Suicidal Ideation, Suicide Attempt(s); Physical - Other: Alzheimer's, Anemia, Asthma, Atrial Fibrillation, Autoimmune Disorder, Blood Dyscrasia/Bleeding Disorder, Bone Marrow / Stem Cell Transplant, Bone Marrow Failure, Cancer, Cellulitis, Chronic Pain, Cirrhosis, Coagulopathy, Cognitive Delay, Cognitive Impairment, Conduct Disorder, COPD, Coronary Artery Disease, COVID, Decubitus Ulcers or Pressure Sores, Dehydration, Dementia, Diabetes, DVT/PE, End of Life, End Stage Renal Disease, Failure to Thrive, Falls, Fluid and Electrolyte Disorders, Fracture, GERD, GI Bleed, Heart Failure, Hepatitis, HIV-AIDS, Hyperlipidemia, Hypertension, Hyperthyroidism, Hypotension, Hypothyroidism, IBD, Intellectual Delay, Joint Replacement, Kidney Disease - Acute or Chronic, Liver Disease, Lupus, Lymphoma, Malnutrition, Migraine, Multiple Sclerosis, Myocardial Infarction, Obesity, Paralysis, Pediatric Developmental Delay, Peripheral Vascular Disease, Pneumonia, Postpartum, Pregnancy, Pulmonary Hypertension, Respiratory Failure, Rheumatoid Arthritis, Sepsis, Small Bowel Obstruction, Smoking Cessation, Social/Emotional Needs, Solid Organ Transplant, Stroke (Cerebral Vascular Accident), TIA, Trauma | H89: Experiencing homelessness; At risk of experiencing homelessness
A90: Steward Health Choice | B90: dkiely@eliotchs.org | C90: Housing Supports | D90: Nutrition Kitchen Supplies; Food Vouchers; Nutrition - Private Transportation; Pre-Tenancy - Individual Supports; Pre-Tenancy - Transitional Supports - First/Last/Security; Pre-Tenancy - Transitional Supports - Moving Costs; Pre-Tenancy - Transitional Supports - Household Furniture; Tenancy Sustaining Supports - Prevention Services & Goods; Tenancy Sustaining Supports - Stabilization Services & Goods; Tenancy - Private Transportation; Home Modifications - Physical Adaptations; Pre-Tenancy - Transitional Supports – Other: Back utilities, Utility deposits (e.g., electricity, gas, heating fuel, water, sewer), Costs for filing applications, Obtaining and correcting needed documentation, Pantry Stocking, Pest Eradication, Home Modifications - Other: Grab bars and Hand Showers and Doorway Modifications, In-home Environmental risk assessments, Remediation of mold, Refrigerators for medicine such as insulin, HEPA filters, Vacuum cleaners, Pest Management supplies and services, Air conditioner units, Hypoallergenic mattresses and pillow covers, Traction or non-skid strips, Night Lights, Training to use such supplies and modifications correctly | E90: Eliot | F90: Boston - Primary; Somerville; Malden; Framingham; Lowell; Quincy; Waltham | G90: Behavioral - Serious Mental Illness; Behavioral - Substance Use Disorder; Behavioral - Depression; Behavioral - Anxiety; Physical - Cardiovascular Conditions - Hypertension; Physical - Metabolic - Diabetes; Activities of Daily Living (ADL); Instrumental Activities of Daily Living (IADL); ED Utilization; High Risk Pregnancy; Behavioral - Other: ADHD, Adjustment Reaction, Altered Mental Status, Autism Spectrum Disorder, Behavioral Challenges, Bipolar, Conduct Disorder, Generalized Anxiety Disorder, Homicidal Ideation, OCD, Oppositional Defiant Disorder, Opioid Use, Personality/Mood Disorder, Post-Traumatic Stress Disorder, Psychosomatic Disorder, Schizophrenia, Suicidal Ideation, Suicide Attempt(s); Physical - Other: Alzheimer's, Anemia, Asthma, Atrial Fibrillation, Autoimmune Disorder, Blood Dyscrasia/Bleeding Disorder, Bone Marrow / Stem Cell Transplant, Bone Marrow Failure, Cancer, Cellulitis, Chronic Pain, Cirrhosis, Coagulopathy, Cognitive Delay, Cognitive Impairment, Conduct Disorder, COPD, Coronary Artery Disease, COVID, Decubitus Ulcers or Pressure Sores, Dehydration, Dementia, Diabetes, DVT/PE, End of Life, End Stage Renal Disease, Failure to Thrive, Falls, Fluid and Electrolyte Disorders, Fracture, GERD, GI Bleed, Heart Failure, Hepatitis, HIV-AIDS, Hyperlipidemia, Hypertension, Hyperthyroidism, Hypotension, Hypothyroidism, IBD, Intellectual Delay, Joint Replacement, Kidney Disease - Acute or Chronic, Liver Disease, Lupus, Lymphoma, Malnutrition, Migraine, Multiple Sclerosis, Myocardial Infarction, Obesity, Paralysis, Pediatric Developmental Delay, Peripheral Vascular Disease, Pneumonia, Postpartum, Pregnancy, Pulmonary Hypertension, Respiratory Failure, Rheumatoid Arthritis, Sepsis, Small Bowel Obstruction, Smoking Cessation, Social/Emotional Needs, Solid Organ Transplant, Stroke (Cerebral Vascular Accident), TIA, Trauma | H90: Experiencing homelessness; At risk of experiencing homelessness
A91: Steward Health Choice | B91: MGraham@commteam.org | C91: Nutrition & Housing Supports | D91: Nutrition Kitchen Supplies; Food Vouchers; Nutrition - Private Transportation; Pre-Tenancy - Individual Supports; Pre-Tenancy - Transitional Supports - First/Last/Security; Pre-Tenancy - Transitional Supports - Moving Costs; Pre-Tenancy - Transitional Supports - Household Furniture; Tenancy Sustaining Supports - Prevention Services & Goods; Tenancy Sustaining Supports - Stabilization Services & Goods; Tenancy - Private Transportation; Home Modifications - Physical Adaptations; Pre-Tenancy - Transitional Supports – Other: Back utilities, Utility deposits (e.g., electricity, gas, heating fuel, water, sewer), Costs for filing applications, Obtaining and correcting needed documentation, Pantry Stocking, Pest Eradication, Home Modifications - Other: Grab bars and Hand Showers and Doorway Modifications, In-home Environmental risk assessments, Remediation of mold, Refrigerators for medicine such as insulin, HEPA filters, Vacuum cleaners, Pest Management supplies and services, Air conditioner units, Hypoallergenic mattresses and pillow covers, Traction or non-skid strips, Night Lights, Training to use such supplies and modifications correctly | E91: Community TeamWork Inc. | F91: Lawrence; Lowell | G91: Behavioral - Serious Mental Illness; Behavioral - Substance Use Disorder; Behavioral - Depression; Behavioral - Anxiety; Physical - Cardiovascular Conditions - Hypertension; Physical - Metabolic - Diabetes; Activities of Daily Living (ADL); Instrumental Activities of Daily Living (IADL); ED Utilization; High Risk Pregnancy; Behavioral - Other: ADHD, Adjustment Reaction, Altered Mental Status, Autism Spectrum Disorder, Behavioral Challenges, Bipolar, Conduct Disorder, Generalized Anxiety Disorder, Homicidal Ideation, OCD, Oppositional Defiant Disorder, Opioid Use, Personality/Mood Disorder, Post-Traumatic Stress Disorder, Psychosomatic Disorder, Schizophrenia, Suicidal Ideation, Suicide Attempt(s); Physical - Other: Alzheimer's, Anemia, Asthma, Atrial Fibrillation, Autoimmune Disorder, Blood Dyscrasia/Bleeding Disorder, Bone Marrow / Stem Cell Transplant, Bone Marrow Failure, Cancer, Cellulitis, Chronic Pain, Cirrhosis, Coagulopathy, Cognitive Delay, Cognitive Impairment, Conduct Disorder, COPD, Coronary Artery Disease, COVID, Decubitus Ulcers or Pressure Sores, Dehydration, Dementia, Diabetes, DVT/PE, End of Life, End Stage Renal Disease, Failure to Thrive, Falls, Fluid and Electrolyte Disorders, Fracture, GERD, GI Bleed, Heart Failure, Hepatitis, HIV-AIDS, Hyperlipidemia, Hypertension, Hyperthyroidism, Hypotension, Hypothyroidism, IBD, Intellectual Delay, Joint Replacement, Kidney Disease - Acute or Chronic, Liver Disease, Lupus, Lymphoma, Malnutrition, Migraine, Multiple Sclerosis, Myocardial Infarction, Obesity, Paralysis, Pediatric Developmental Delay, Peripheral Vascular Disease, Pneumonia, Postpartum, Pregnancy, Pulmonary Hypertension, Respiratory Failure, Rheumatoid Arthritis, Sepsis, Small Bowel Obstruction, Smoking Cessation, Social/Emotional Needs, Solid Organ Transplant, Stroke (Cerebral Vascular Accident), TIA, Trauma | H91: Experiencing homelessness; At risk of experiencing homelessness; At risk for nutrition deficiency or imbalance due to food insecurity
A92: Steward Health Choice | B92: vwright@nhsmass.org | C92: Nutrition & Housing Supports | D92: Nutrition Kitchen Supplies; Food Vouchers; Nutrition - Private Transportation; Pre-Tenancy - Individual Supports; Pre-Tenancy - Transitional Supports - First/Last/Security; Pre-Tenancy - Transitional Supports - Moving Costs; Pre-Tenancy - Transitional Supports - Household Furniture; Tenancy Sustaining Supports - Prevention Services & Goods; Tenancy Sustaining Supports - Stabilization Services & Goods; Tenancy - Private Transportation; Home Modifications - Physical Adaptations; Pre-Tenancy - Transitional Supports – Other: Back utilities, Utility deposits (e.g., electricity, gas, heating fuel, water, sewer), Costs for filing applications, Obtaining and correcting needed documentation, Pantry Stocking, Pest Eradication, Home Modifications - Other: Grab bars and Hand Showers and Doorway Modifications, In-home Environmental risk assessments, Remediation of mold, Refrigerators for medicine such as insulin, HEPA filters, Vacuum cleaners, Pest Management supplies and services, Air conditioner units, Hypoallergenic mattresses and pillow covers, Traction or non-skid strips, Night Lights, Training to use such supplies and modifications correctly | E92: NeighborWorks Housing Solutions | F92: Framingham; New Bedford | G92: Behavioral - Serious Mental Illness; Behavioral - Substance Use Disorder; Behavioral - Depression; Behavioral - Anxiety; Physical - Cardiovascular Conditions - Hypertension; Physical - Metabolic - Diabetes; Activities of Daily Living (ADL); Instrumental Activities of Daily Living (IADL); ED Utilization; High Risk Pregnancy; Behavioral - Other: ADHD, Adjustment Reaction, Altered Mental Status, Autism Spectrum Disorder, Behavioral Challenges, Bipolar, Conduct Disorder, Generalized Anxiety Disorder, Homicidal Ideation, OCD, Oppositional Defiant Disorder, Opioid Use, Personality/Mood Disorder, Post-Traumatic Stress Disorder, Psychosomatic Disorder, Schizophrenia, Suicidal Ideation, Suicide Attempt(s); Physical - Other: Alzheimer's, Anemia, Asthma, Atrial Fibrillation, Autoimmune Disorder, Blood Dyscrasia/Bleeding Disorder, Bone Marrow / Stem Cell Transplant, Bone Marrow Failure, Cancer, Cellulitis, Chronic Pain, Cirrhosis, Coagulopathy, Cognitive Delay, Cognitive Impairment, Conduct Disorder, COPD, Coronary Artery Disease, COVID, Decubitus Ulcers or Pressure Sores, Dehydration, Dementia, Diabetes, DVT/PE, End of Life, End Stage Renal Disease, Failure to Thrive, Falls, Fluid and Electrolyte Disorders, Fracture, GERD, GI Bleed, Heart Failure, Hepatitis, HIV-AIDS, Hyperlipidemia, Hypertension, Hyperthyroidism, Hypotension, Hypothyroidism, IBD, Intellectual Delay, Joint Replacement, Kidney Disease - Acute or Chronic, Liver Disease, Lupus, Lymphoma, Malnutrition, Migraine, Multiple Sclerosis, Myocardial Infarction, Obesity, Paralysis, Pediatric Developmental Delay, Peripheral Vascular Disease, Pneumonia, Postpartum, Pregnancy, Pulmonary Hypertension, Respiratory Failure, Rheumatoid Arthritis, Sepsis, Small Bowel Obstruction, Smoking Cessation, Social/Emotional Needs, Solid Organ Transplant, Stroke (Cerebral Vascular Accident), TIA, Trauma | H92: Experiencing homelessness; At risk of experiencing homelessness; At risk for nutrition deficiency or imbalance due to food insecurity
A93: Steward Health Choice | B93: William.Nall@Openskycs.org | C93: Nutrition & Housing Supports | D93: Nutrition Kitchen Supplies; Food Vouchers; Nutrition - Private Transportation; Pre-Tenancy - Individual Supports; Pre-Tenancy - Transitional Supports - First/Last/Security; Pre-Tenancy - Transitional Supports - Moving Costs; Pre-Tenancy - Transitional Supports - Household Furniture; Tenancy Sustaining Supports - Prevention Services & Goods; Tenancy Sustaining Supports - Stabilization Services & Goods; Tenancy - Private Transportation; Home Modifications - Physical Adaptations; Pre-Tenancy - Transitional Supports – Other: Back utilities, Utility deposits (e.g., electricity, gas, heating fuel, water, sewer), Costs for filing applications, Obtaining and correcting needed documentation, Pantry Stocking, Pest Eradication, Home Modifications - Other: Grab bars and Hand Showers and Doorway Modifications, In-home Environmental risk assessments, Remediation of mold, Refrigerators for medicine such as insulin, HEPA filters, Vacuum cleaners, Pest Management supplies and services, Air conditioner units, Hypoallergenic mattresses and pillow covers, Traction or non-skid strips, Night Lights, Training to use such supplies and modifications correctly | E93: Open Sky | F93: Framingham; Gardner - Fitchburg; Worcester; Southbridge; Waltham | G93: Behavioral - Serious Mental Illness; Behavioral - Substance Use Disorder; Behavioral - Depression; Behavioral - Anxiety; Physical - Cardiovascular Conditions - Hypertension; Physical - Metabolic - Diabetes; Activities of Daily Living (ADL); Instrumental Activities of Daily Living (IADL); ED Utilization; High Risk Pregnancy; Physical - Disability; Behavioral - Other: ADHD, Adjustment Reaction, Altered Mental Status, Autism Spectrum Disorder, Behavioral Challenges, Bipolar, Conduct Disorder, Generalized Anxiety Disorder, Homicidal Ideation, OCD, Oppositional Defiant Disorder, Opioid Use, Personality/Mood Disorder, Post-Traumatic Stress Disorder, Psychosomatic Disorder, Schizophrenia, Suicidal Ideation, Suicide Attempt(s); Physical - Other: Alzheimer's, Anemia, Asthma, Atrial Fibrillation, Autoimmune Disorder, Blood Dyscrasia/Bleeding Disorder, Bone Marrow / Stem Cell Transplant, Bone Marrow Failure, Cancer, Cellulitis, Chronic Pain, Cirrhosis, Coagulopathy, Cognitive Delay, Cognitive Impairment, Conduct Disorder, COPD, Coronary Artery Disease, COVID, Decubitus Ulcers or Pressure Sores, Dehydration, Dementia, Diabetes, DVT/PE, End of Life, End Stage Renal Disease, Failure to Thrive, Falls, Fluid and Electrolyte Disorders, Fracture, GERD, GI Bleed, Heart Failure, Hepatitis, HIV-AIDS, Hyperlipidemia, Hypertension, Hyperthyroidism, Hypotension, Hypothyroidism, IBD, Intellectual Delay, Joint Replacement, Kidney Disease - Acute or Chronic, Liver Disease, Lupus, Lymphoma, Malnutrition, Migraine, Multiple Sclerosis, Myocardial Infarction, Obesity, Paralysis, Pediatric Developmental Delay, Peripheral Vascular Disease, Pneumonia, Postpartum, Pregnancy, Pulmonary Hypertension, Respiratory Failure, Rheumatoid Arthritis, Sepsis, Small Bowel Obstruction, Smoking Cessation, Social/Emotional Needs, Solid Organ Transplant, Stroke (Cerebral Vascular Accident), TIA, Trauma | H93: Experiencing homelessness; At risk of experiencing homelessness; At risk for nutrition deficiency or imbalance due to food insecurity
A94: Steward Health Choice | B94: IAvelar@smoc.org | C94: Nutrition & Housing Supports | D94: Nutrition Kitchen Supplies; Food Vouchers; Nutrition - Private Transportation; Pre-Tenancy - Individual Supports; Pre-Tenancy - Transitional Supports - First/Last/Security; Pre-Tenancy - Transitional Supports - Moving Costs; Pre-Tenancy - Transitional Supports - Household Furniture; Tenancy Sustaining Supports - Prevention Services & Goods; Tenancy Sustaining Supports - Stabilization Services & Goods; Tenancy - Private Transportation; Home Modifications - Physical Adaptations; Pre-Tenancy - Transitional Supports – Other: Back utilities, Utility deposits (e.g., electricity, gas, heating fuel, water, sewer), Costs for filing applications, Obtaining and correcting needed documentation, Pantry Stocking, Pest Eradication, Home Modifications - Other: Grab bars and Hand Showers and Doorway Modifications, In-home Environmental risk assessments, Remediation of mold, Refrigerators for medicine such as insulin, HEPA filters, Vacuum cleaners, Pest Management supplies and services, Air conditioner units, Hypoallergenic mattresses and pillow covers, Traction or non-skid strips, Night Lights, Training to use such supplies and modifications correctly | E94: South Middlesex Opportunity Council | F94: Framingham; Gardner - Fitchburg; Worcester; Southbridge; Waltham | G94: Behavioral - Serious Mental Illness; Behavioral - Substance Use Disorder; Behavioral - Depression; Behavioral - Anxiety; Physical - Cardiovascular Conditions - Hypertension; Physical - Metabolic - Diabetes; Activities of Daily Living (ADL); Instrumental Activities of Daily Living (IADL); ED Utilization; High Risk Pregnancy; Physical - Developmental Disabilities; Physical - Disability; Behavioral - Other: ADHD, Adjustment Reaction, Altered Mental Status, Autism Spectrum Disorder, Behavioral Challenges, Bipolar, Conduct Disorder, Generalized Anxiety Disorder, Homicidal Ideation, OCD, Oppositional Defiant Disorder, Opioid Use, Personality/Mood Disorder, Post-Traumatic Stress Disorder, Psychosomatic Disorder, Schizophrenia, Suicidal Ideation, Suicide Attempt(s); Physical - Other: Alzheimer's, Anemia, Asthma, Atrial Fibrillation, Autoimmune Disorder, Blood Dyscrasia/Bleeding Disorder, Bone Marrow / Stem Cell Transplant, Bone Marrow Failure, Cancer, Cellulitis, Chronic Pain, Cirrhosis, Coagulopathy, Cognitive Delay, Cognitive Impairment, Conduct Disorder, COPD, Coronary Artery Disease, COVID, Decubitus Ulcers or Pressure Sores, Dehydration, Dementia, Diabetes, DVT/PE, End of Life, End Stage Renal Disease, Failure to Thrive, Falls, Fluid and Electrolyte Disorders, Fracture, GERD, GI Bleed, Heart Failure, Hepatitis, HIV-AIDS, Hyperlipidemia, Hypertension, Hyperthyroidism, Hypotension, Hypothyroidism, IBD, Intellectual Delay, Joint Replacement, Kidney Disease - Acute or Chronic, Liver Disease, Lupus, Lymphoma, Malnutrition, Migraine, Multiple Sclerosis, Myocardial Infarction, Obesity, Paralysis, Pediatric Developmental Delay, Peripheral Vascular Disease, Pneumonia, Postpartum, Pregnancy, Pulmonary Hypertension, Respiratory Failure, Rheumatoid Arthritis, Sepsis, Small Bowel Obstruction, Smoking Cessation, Social/Emotional Needs, Solid Organ Transplant, Stroke (Cerebral Vascular Accident), TIA, Trauma | H94: Experiencing homelessness; At risk of experiencing homelessness; At risk for nutrition deficiency or imbalance due to food insecurity
A95: Steward Health Choice | B95: Felisha.Marshall@metrohousingboston.org | C95: Nutrition & Housing Supports | D95: Nutrition Kitchen Supplies; Food Vouchers; Nutrition - Private Transportation; Pre-Tenancy - Individual Supports; Pre-Tenancy - Transitional Supports - First/Last/Security; Pre-Tenancy - Transitional Supports - Moving Costs; Pre-Tenancy - Transitional Supports - Household Furniture; Tenancy Sustaining Supports - Prevention Services & Goods; Tenancy Sustaining Supports - Stabilization Services & Goods; Home Modifications - Asthma Interventions; Tenancy - Private Transportation; Pre-Tenancy - Transitional Supports – Other: Back utilities, Utility deposits (e.g., electricity, gas, heating fuel, water, sewer), Costs for filing applications, Obtaining and correcting needed documentation, Pantry Stocking, Pest Eradication | E95: Metro Housing Boston | F95: Boston - Primary | G95: Behavioral - Serious Mental Illness; Behavioral - Substance Use Disorder; Behavioral - Depression; Behavioral - Anxiety; Physical - Cardiovascular Conditions - Hypertension; Physical - Metabolic - Diabetes; Activities of Daily Living (ADL); Instrumental Activities of Daily Living (IADL); ED Utilization; High Risk Pregnancy; Physical - Developmental Disabilities; Behavioral - Other: ADHD, Adjustment Reaction, Altered Mental Status, Autism Spectrum Disorder, Behavioral Challenges, Bipolar, Conduct Disorder, Generalized Anxiety Disorder, Homicidal Ideation, OCD, Oppositional Defiant Disorder, Opioid Use, Personality/Mood Disorder, Post-Traumatic Stress Disorder, Psychosomatic Disorder, Schizophrenia, Suicidal Ideation, Suicide Attempt(s); Physical - Other: Alzheimer's, Anemia, Asthma, Atrial Fibrillation, Autoimmune Disorder, Blood Dyscrasia/Bleeding Disorder, Bone Marrow / Stem Cell Transplant, Bone Marrow Failure, Cancer, Cellulitis, Chronic Pain, Cirrhosis, Coagulopathy, Cognitive Delay, Cognitive Impairment, Conduct Disorder, COPD, Coronary Artery Disease, COVID, Decubitus Ulcers or Pressure Sores, Dehydration, Dementia, Diabetes, DVT/PE, End of Life, End Stage Renal Disease, Failure to Thrive, Falls, Fluid and Electrolyte Disorders, Fracture, GERD, GI Bleed, Heart Failure, Hepatitis, HIV-AIDS, Hyperlipidemia, Hypertension, Hyperthyroidism, Hypotension, Hypothyroidism, IBD, Intellectual Delay, Joint Replacement, Kidney Disease - Acute or Chronic, Liver Disease, Lupus, Lymphoma, Malnutrition, Migraine, Multiple Sclerosis, Myocardial Infarction, Obesity, Paralysis, Pediatric Developmental Delay, Peripheral Vascular Disease, Pneumonia, Postpartum, Pregnancy, Pulmonary Hypertension, Respiratory Failure, Rheumatoid Arthritis, Sepsis, Small Bowel Obstruction, Smoking Cessation, Social/Emotional Needs, Solid Organ Transplant, Stroke (Cerebral Vascular Accident), TIA, Trauma | H95: Experiencing homelessness; At risk of experiencing homelessness; At risk for nutrition deficiency or imbalance due to food insecurity
A96: Steward Health Choice | B96: jsmith@seasonhealth.com | C96: Nutrition Supports | D96: Medically Tailored Meals (MTM) | E96: Season Health | F96: Adams; Athol; Attleboro; Barnstable; Beverly; Boston - Primary; Brockton; Attleboro; Beverly; Boston - Primary; Brockton; Fall River; Falmouth; Framingham; Gloucester; Lynn; Malden; Quincy; Woburn; Worcester; Taunton; Southbridge; Salem; Somerville | G96: Behavioral - Serious Mental Illness; Behavioral - Substance Use Disorder; Behavioral - Depression; Behavioral - Anxiety; Physical - Cardiovascular Conditions - Hypertension; High Risk Pregnancy; ED Utilization; Instrumental Activities of Daily Living (IADL); Activities of Daily Living (ADL); Physical - Metabolic - Diabetes; Physical - Disability; Behavioral - Other: ADHD, Adjustment Reaction, Altered Mental Status, Autism Spectrum Disorder, Behavioral Challenges, Bipolar, Conduct Disorder, Generalized Anxiety Disorder, Homicidal Ideation, OCD, Oppositional Defiant Disorder, Opioid Use, Personality/Mood Disorder, Post-Traumatic Stress Disorder, Psychosomatic Disorder, Schizophrenia, Suicidal Ideation, Suicide Attempt(s); Physical - Other: Alzheimer's, Anemia, Asthma, Atrial Fibrillation, Autoimmune Disorder, Blood Dyscrasia/Bleeding Disorder, Bone Marrow / Stem Cell Transplant, Bone Marrow Failure, Cancer, Cellulitis, Chronic Pain, Cirrhosis, Coagulopathy, Cognitive Delay, Cognitive Impairment, Conduct Disorder, COPD, Coronary Artery Disease, COVID, Decubitus Ulcers or Pressure Sores, Dehydration, Dementia, Diabetes, DVT/PE, End of Life, End Stage Renal Disease, Failure to Thrive, Falls, Fluid and Electrolyte Disorders, Fracture, GERD, GI Bleed, Heart Failure, Hepatitis, HIV-AIDS, Hyperlipidemia, Hypertension, Hyperthyroidism, Hypotension, Hypothyroidism, IBD, Intellectual Delay, Joint Replacement, Kidney Disease - Acute or Chronic, Liver Disease, Lupus, Lymphoma, Malnutrition, Migraine, Multiple Sclerosis, Myocardial Infarction, Obesity, Paralysis, Pediatric Developmental Delay, Peripheral Vascular Disease, Pneumonia, Postpartum, Pregnancy, Pulmonary Hypertension, Respiratory Failure, Rheumatoid Arthritis, Sepsis, Small Bowel Obstruction, Smoking Cessation, Social/Emotional Needs, Solid Organ Transplant, Stroke (Cerebral Vascular Accident), TIA, Trauma | H96: At risk for nutrition deficiency or imbalance due to food insecurity
A97: Steward Health Choice | B97: Valerie Machinist, Lead RD, vmachinist@servings.org; Erin DiBacco, Director, edibacco@servings.org | C97: Nutrition Supports | D97: Medically Tailored Meals (MTM) | E97: Community Servings | F97: Attleboro; Beverly; Boston - Primary; Brockton; Fall River; Falmouth; Framingham; Gloucester; Lynn; Malden; Quincy; Woburn; Worcester; Taunton; Southbridge; Salem; Somerville | G97: Behavioral - Serious Mental Illness; Behavioral - Substance Use Disorder; Behavioral - Depression; Behavioral - Anxiety; Physical - Cardiovascular Conditions - Hypertension; Physical - Metabolic - Diabetes; Activities of Daily Living (ADL); Instrumental Activities of Daily Living (IADL); ED Utilization; High Risk Pregnancy; Physical - Disability; Behavioral - Other: ADHD, Adjustment Reaction, Altered Mental Status, Autism Spectrum Disorder, Behavioral Challenges, Bipolar, Conduct Disorder, Generalized Anxiety Disorder, Homicidal Ideation, OCD, Oppositional Defiant Disorder, Opioid Use, Personality/Mood Disorder, Post-Traumatic Stress Disorder, Psychosomatic Disorder, Schizophrenia, Suicidal Ideation, Suicide Attempt(s); Physical - Other:Alzheimer's, Anemia, Asthma, Atrial Fibrillation, Autoimmune Disorder, Blood Dyscrasia/Bleeding Disorder, Bone Marrow / Stem Cell Transplant, Bone Marrow Failure, Cancer, Cellulitis, Chronic Pain, Cirrhosis, Coagulopathy, Cognitive Delay, Cognitive Impairment, Conduct Disorder, COPD, Coronary Artery Disease, COVID, Decubitus Ulcers or Pressure Sores, Dehydration, Dementia, Diabetes, DVT/PE, End of Life, End Stage Renal Disease, Failure to Thrive, Falls, Fluid and Electrolyte Disorders, Fracture, GERD, GI Bleed, Heart Failure, Hepatitis, HIV-AIDS, Hyperlipidemia, Hypertension, Hyperthyroidism, Hypotension, Hypothyroidism, IBD, Intellectual Delay, Joint Replacement, Kidney Disease - Acute or Chronic, Liver Disease, Lupus, Lymphoma, Malnutrition, Migraine, Multiple Sclerosis, Myocardial Infarction, Obesity, Paralysis, Pediatric Developmental Delay, Peripheral Vascular Disease, Pneumonia, Postpartum, Pregnancy, Pulmonary Hypertension, Respiratory Failure, Rheumatoid Arthritis, Sepsis, Small Bowel Obstruction, Smoking Cessation, Social/Emotional Needs, Solid Organ Transplant, Stroke (Cerebral Vascular Accident), TIA, Trauma | H97: At risk for nutrition deficiency or imbalance due to food insecurity
A98: WellSense Mercy Alliance | B98: Jessica.Letourneau001@TrinityHealthOfNE.org | C98: Nutrition Supports | D98: Food Boxes; Food Vouchers; Home Delivered Meals; Nutrition Education; Nutrition Kitchen Supplies; Intake and Follow up | E98: Food Bank of Western MA | F98: Holyoke; Northampton; Springfield; Westfield | G98: Behavioral - Anxiety; Behavioral - Depression; Behavioral - Serious Emotional Disturbance; Behavioral - Serious Mental Illness; Behavioral - Substance Use Disorder; Behavioral - Trauma/Stress Disorder; Physical - Cardiovascular Conditions - Hypertension; Physical - Developmental Disabilities; Physical - Disability; Physical - Gastrointestinal (GI) Conditions; Physical - Hematologic Conditions; Physical - Metabolic - Diabetes; Physical - Infectious Diseases; Physical - Neurologic Conditions; Physical - Oncologic Conditions; Physical - Renal Conditions; Physical - Respiratory Conditions; Activities of Daily Living (ADL); Instrumental Activities of Daily Living (IADL); ED Utilization; High Risk Pregnancy; Physical - Cardiovascular - Other: Heart Disease, High Cholesterol; Metabolic - Other: Malnutrition, Obesity | H98: At risk for nutrition deficiency or imbalance due to food insecurity
A99: WellSense Mercy Alliance | B99: Jessica.Letourneau001@TrinityHealthOfNE.org | C99: Nutrition Supports | D99: Food Vouchers; Nutrition Education; Nutrition Kitchen Supplies; Intake and Follow up | E99: Project Bread | F99: Holyoke; Northampton; Springfield; Westfield | G99: Behavioral - Anxiety; Behavioral - Depression; Behavioral - Serious Emotional Disturbance; Behavioral - Serious Mental Illness; Behavioral - Substance Use Disorder; Behavioral - Trauma/Stress Disorder; Physical - Cardiovascular Conditions - Hypertension; Physical - Developmental Disabilities; Physical - Disability; Physical - Gastrointestinal (GI) Conditions; Physical - Hematologic Conditions; Physical - Metabolic - Diabetes; Physical - Infectious Diseases; Physical - Neurologic Conditions; Physical - Oncologic Conditions; Physical - Renal Conditions; Physical - Respiratory Conditions; Activities of Daily Living (ADL); Instrumental Activities of Daily Living (IADL); ED Utilization; High Risk Pregnancy; Physical - Cardiovascular - Other: Heart Disease, High Cholesterol; Metabolic - Other: Malnutrition, Obesity | H99: At risk for nutrition deficiency or imbalance due to food insecurity
A100: WellSense Mercy Alliance | B100: Jessica.Letourneau001@TrinityHealthOfNE.org | C100: Housing Supports | D100: Pre-Tenancy - Individual Supports; Pre-Tenancy - Transitional Supports - First/Last/Security; Pre-Tenancy - Transitional Supports - Moving Costs; Pre-Tenancy - Transitional Supports - Household Furniture; Tenancy Sustaining Supports - Prevention Services & Goods; Tenancy Sustaining Supports - Stabilization Services & Goods; Home Modifications - Asthma Interventions; Home Modifications - Physical Adaptations; Tenancy - Private Transportation; Tenancy - Public Transportation; Pre-Tenancy - Transitional Supports - Other: Back utilities, utility deposits, costs for filing applications, obtaining and correcting needed documentation (under $500); Home Modification - Other: Appliances (AC, Refrigerator), Pest Management | E100: Way Finders | F100: Holyoke; Northampton; Springfield; Westfield | G100: Behavioral - Anxiety; Behavioral - Depression; Behavioral - Serious Emotional Disturbance; Behavioral - Serious Mental Illness; Behavioral - Substance Use Disorder; Behavioral - Trauma/Stress Disorder; Physical - Cardiovascular Conditions - Hypertension; Physical - Developmental Disabilities; Physical - Disability; Physical - Gastrointestinal (GI) Conditions; Physical - Hematologic Conditions; Physical - Metabolic - Diabetes; Physical - Infectious Diseases; Physical - Neurologic Conditions; Physical - Oncologic Conditions; Physical - Renal Conditions; Physical - Respiratory Conditions; Activities of Daily Living (ADL); Instrumental Activities of Daily Living (IADL); ED Utilization; High Risk Pregnancy; Physical - Cardiovascular - Other: Heart Disease, High Cholesterol; Metabolic - Other: Malnutrition, Obesity | H100: Experiencing homelessness; At risk of experiencing homelessness
A101: WellSense Mercy Alliance | B101: Jessica.Letourneau001@TrinityHealthOfNE.org | C101: Housing Supports | D101: Tenancy Sustaining Supports - Stabilization Services & Goods; Home Modifications - Asthma Interventions; Home Modifications - Physical Adaptations; Home Modification - Other: Appliances (AC, Refrigerator), Pest Management | E101: Revitalize CDC | F101: Holyoke; Northampton; Springfield; Westfield | G101: Behavioral - Anxiety; Behavioral - Depression; Behavioral - Serious Emotional Disturbance; Behavioral - Serious Mental Illness; Behavioral - Substance Use Disorder; Behavioral - Trauma/Stress Disorder; Physical - Cardiovascular Conditions - Hypertension; Physical - Developmental Disabilities; Physical - Disability; Physical - Gastrointestinal (GI) Conditions; Physical - Hematologic Conditions; Physical - Metabolic - Diabetes; Physical - Infectious Diseases; Physical - Neurologic Conditions; Physical - Oncologic Conditions; Physical - Renal Conditions; Physical - Respiratory Conditions; Activities of Daily Living (ADL); Instrumental Activities of Daily Living (IADL); ED Utilization; High Risk Pregnancy; Physical - Cardiovascular - Other: Heart Disease, High Cholesterol; Metabolic - Other: Malnutrition, Obesity | H101: At risk of experiencing homelessness
A102: WellSense Signature Alliance | B102: Abby Hodgson, Flexible Services Project Coordinator, Ahodgson@Signature-Healthcare.org, 508-565-0073 | C102: Nutrition Supports | D102: Nutrition Kitchen Supplies; Food Boxes; Food Vouchers; Nutrition Education | E102: Old Colony YMCA | F102: Attleboro; Brockton; Plymouth; Quincy; Taunton | G102: Behavioral - Anxiety; Behavioral - Depression; Behavioral - Serious Emotional Disturbance; Behavioral - Serious Mental Illness; Behavioral - Substance Use Disorder; Behavioral - Trauma/Stress Disorder; Physical - Cardiovascular Conditions - Hypertension; Physical - Developmental Disabilities; Physical - Disability; Physical - Gastrointestinal (GI) Conditions; Physical - Hematologic Conditions; Physical - Metabolic - Diabetes; Physical - Infectious Diseases; Physical - Neurologic Conditions; Physical - Oncologic Conditions; Physical - Renal Conditions; Physical - Respiratory Conditions; Activities of Daily Living (ADL); Instrumental Activities of Daily Living (IADL); ED Utilization; High Risk Pregnancy; Physical - Cardiovascular - Other: Heart Disease, High Cholesterol; Metabolic - Other: Malnutrition, Obesity | H102: At risk for nutrition deficiency or imbalance due to food insecurity
A103: WellSense Signature Alliance | B103: Abby Hodgson, Flexible Services Project Coordinator, Ahodgson@Signature-Healthcare.org, 508-565-0073 | C103: Housing Supports | D103: Pre-Tenancy - Individual Supports; Pre-Tenancy - Transitional Supports - First/Last/Security; Pre-Tenancy - Transitional Supports - Moving Costs; Pre-Tenancy - Transitional Supports - Household Furniture; Tenancy Sustaining Supports - Prevention Services & Goods; Tenancy Sustaining Supports - Stabilization Services & Goods; Home Modifications - Asthma Interventions; Home Modifications - Physical Adaptations; Tenancy - Private Transportation; Tenancy - Public Transportation; Pre-Tenancy - Transitional Supports - Other: Household supplies, Back utilities, utility deposits, costs for filing applications, obtaining and correcting needed documentation, Storage; Home Modification - Other: Appliance (AC, Refrigerator), Pest Management | E103: Old Colony YMCA | F103: Attleboro; Brockton; Plymouth; Quincy; Taunton | G103: Behavioral - Anxiety; Behavioral - Depression; Behavioral - Serious Emotional Disturbance; Behavioral - Serious Mental Illness; Behavioral - Substance Use Disorder; Behavioral - Trauma/Stress Disorder; Physical - Cardiovascular Conditions - Hypertension; Physical - Developmental Disabilities; Physical - Disability; Physical - Gastrointestinal (GI) Conditions; Physical - Hematologic Conditions; Physical - Metabolic - Diabetes; Physical - Infectious Diseases; Physical - Neurologic Conditions; Physical - Oncologic Conditions; Physical - Renal Conditions; Physical - Respiratory Conditions; Activities of Daily Living (ADL); Instrumental Activities of Daily Living (IADL); ED Utilization; High Risk Pregnancy; Physical - Cardiovascular - Other: Heart Disease, High Cholesterol; Metabolic - Other: Malnutrition, Obesity | H103: Experiencing homelessness
A104: WellSense Signature Alliance | B104: Abby Hodgson, Flexible Services Project Coordinator, Ahodgson@Signature-Healthcare.org, 508-565-0073 | C104: Housing Supports | D104: Pre-Tenancy - Individual Supports; Pre-Tenancy - Transitional Supports - First/Last/Security; Pre-Tenancy - Transitional Supports - Moving Costs; Pre-Tenancy - Transitional Supports - Household Furniture; Tenancy Sustaining Supports - Prevention Services & Goods; Tenancy Sustaining Supports - Stabilization Services & Goods; Home Modifications - Asthma Interventions; Home Modifications - Physical Adaptations; Tenancy - Private Transportation; Tenancy - Public Transportation; Pre-Tenancy - Transitional Supports - Other: Household supplies, Back utilities, utility deposits, costs for filing applications, obtaining and correcting needed documentation, Storage; Home Modification - Other: Appliance (AC, Refrigerator), Pest Management | E104: Community Counseling of Bristol County | F104: Attleboro; Brockton; Plymouth; Quincy; Taunton | G104: Behavioral - Anxiety; Behavioral - Depression; Behavioral - Serious Emotional Disturbance; Behavioral - Serious Mental Illness; Behavioral - Substance Use Disorder; Behavioral - Trauma/Stress Disorder; Physical - Cardiovascular Conditions - Hypertension; Physical - Developmental Disabilities; Physical - Disability; Physical - Gastrointestinal (GI) Conditions; Physical - Hematologic Conditions; Physical - Metabolic - Diabetes; Physical - Infectious Diseases; Physical - Neurologic Conditions; Physical - Oncologic Conditions; Physical - Renal Conditions; Physical - Respiratory Conditions; Activities of Daily Living (ADL); Instrumental Activities of Daily Living (IADL); ED Utilization; High Risk Pregnancy; Physical - Cardiovascular - Other: Heart Disease, High Cholesterol; Metabolic - Other: Malnutrition, Obesity | H104: Experiencing homelessness; At risk of experiencing homelessness
A105: WellSense Southcoast Alliance | B105: Peter Wilmot, 508-973-5399, wilmotp@southcoast.org ; Marc Chatterton, ChattertonM@southcoast.org | C105: Nutrition Supports | D105: Medically Tailored Meals (MTM) | E105: Community Servings | F105: Attleboro; Fall River; Falmouth; New Bedford; Plymouth; Taunton; Wareham | G105: Behavioral - Anxiety; Behavioral - Depression; Behavioral - Serious Emotional Disturbance; Behavioral - Serious Mental Illness; Behavioral - Substance Use Disorder; Behavioral - Trauma/Stress Disorder; Physical - Cardiovascular Conditions - Hypertension; Physical - Developmental Disabilities; Physical - Disability; Physical - Gastrointestinal (GI) Conditions; Physical - Hematologic Conditions; Physical - Metabolic - Diabetes; Physical - Infectious Diseases; Physical - Neurologic Conditions; Physical - Oncologic Conditions; Physical - Renal Conditions; Physical - Respiratory Conditions; Activities of Daily Living (ADL); Instrumental Activities of Daily Living (IADL); ED Utilization; High Risk Pregnancy; Physical - Cardiovascular - Other: Heart Disease, High Cholesterol; Metabolic - Other: Malnutrition, Obesity | H105: At risk for nutrition deficiency or imbalance due to food insecurity
A106: WellSense Southcoast Alliance | B106: Peter Wilmot, 508-973-5399, wilmotp@southcoast.org ; Marc Chatterton, ChattertonM@southcoast.org | C106: Housing Supports | D106: Pre-Tenancy - Individual Supports; Pre-Tenancy - Transitional Supports - First/Last/Security; Pre-Tenancy - Transitional Supports - Moving Costs; Pre-Tenancy - Transitional Supports - Household Furniture; Tenancy Sustaining Supports - Prevention Services & Goods; Tenancy Sustaining Supports - Stabilization Services & Goods; Home Modifications - Asthma Interventions; Home Modifications - Physical Adaptations; Tenancy - Private Transportation; Tenancy - Public Transportation; Pre-Tenancy - Transitional Supports - Other: Household supplies, Back utilities, utility deposits, costs for filing applications, obtaining and correcting needed documentation, Storage; Home Modification - Other: Appliance (AC, Refrigerator), Pest Management | E106: Community Counseling of Bristol County | F106: Attleboro; Fall River; New Bedford; Plymouth; Taunton; Wareham | G106: Behavioral - Anxiety; Behavioral - Depression; Behavioral - Serious Emotional Disturbance; Behavioral - Serious Mental Illness; Behavioral - Substance Use Disorder; Behavioral - Trauma/Stress Disorder; Physical - Cardiovascular Conditions - Hypertension; Physical - Developmental Disabilities; Physical - Disability; Physical - Gastrointestinal (GI) Conditions; Physical - Hematologic Conditions; Physical - Metabolic - Diabetes; Physical - Infectious Diseases; Physical - Neurologic Conditions; Physical - Oncologic Conditions; Physical - Renal Conditions; Physical - Respiratory Conditions; Activities of Daily Living (ADL); Instrumental Activities of Daily Living (IADL); ED Utilization; High Risk Pregnancy; Physical - Cardiovascular - Other: Heart Disease, High Cholesterol; Metabolic - Other: Malnutrition, Obesity | H106: Experiencing homelessness; At risk of experiencing homelessness
A107: WellSense Beth Israel Lahey Health (BILH) Performance Network ACO | B107: Matt McVety, Social and Behavioral Services Program Manager, masshealthchworker@bilhpn.org; 978-307-6307, ext 172308 | C107: Nutrition Supports | D107: Medically Tailored Meals (MTM) | E107: Community Servings | F107: Attleboro; Barnstable; Beverly; Boston - Primary; Brockton; Fall River; Falmouth; Framingham; Gardner - Fitchburg; Gloucester; Haverhill; Lawrence; Lowell; Lynn; Malden; New Bedford; Orleans; Plymouth; Quincy; Revere; Salem; Somerville; Taunton; Waltham; Wareham; Woburn | G107: Behavioral - Anxiety; Behavioral - Depression; Behavioral - Serious Emotional Disturbance; Behavioral - Serious Mental Illness; Behavioral - Substance Use Disorder; Behavioral - Trauma/Stress Disorder; Physical - Cardiovascular Conditions - Hypertension; Physical - Developmental Disabilities; Physical - Disability; Physical - Gastrointestinal (GI) Conditions; Physical - Hematologic Conditions; Physical - Metabolic - Diabetes; Physical - Infectious Diseases; Physical - Neurologic Conditions; Physical - Oncologic Conditions; Physical - Renal Conditions; Physical - Respiratory Conditions; Activities of Daily Living (ADL); Instrumental Activities of Daily Living (IADL); ED Utilization; High Risk Pregnancy; Physical - Cardiovascular - Other: Heart Disease, High Cholesterol; Metabolic - Other: Malnutrition, Obesity | H107: At risk for nutrition deficiency or imbalance due to food insecurity
A108: WellSense Beth Israel Lahey Health (BILH) Performance Network ACO | B108: Matt McVety, Social and Behavioral Services Program Manager, masshealthchworker@bilhpn.org; 978-307-6307, ext 172308 | C108: Nutrition Supports | D108: Food Vouchers | E108: About Fresh | F108: Attleboro; Barnstable; Beverly; Boston-Primary; Brockton; Fall River; Falmouth; Framingham; Gardner-Fitchburg; Gloucester; Haverhill; Lawrence; Lowell; Lynn; Malden; New Bedford; Orleans; Plymouth; Quincy; Revere; Salem; Somerville; Taunton; Waltham; Wareham; Woburn | G108: Behavioral - Anxiety; Behavioral - Depression; Behavioral - Serious Emotional Disturbance; Behavioral - Serious Mental Illness; Behavioral - Substance Use Disorder; Behavioral - Trauma/Stress Disorder; Physical - Cardiovascular Conditions - Hypertension; Physical - Developmental Disabilities; Physical - Disability; Physical - Gastrointestinal (GI) Conditions; Physical - Hematologic Conditions; Physical - Metabolic - Diabetes; Physical - Infectious Diseases; Physical - Neurologic Conditions; Physical - Oncologic Conditions; Physical - Renal Conditions; Physical - Respiratory Conditions; Activities of Daily Living (ADL); Instrumental Activities of Daily Living (IADL); ED Utilization; High Risk Pregnancy; Physical - Cardiovascular - Other: Heart Disease, High Cholesterol; Metabolic - Other: Malnutrition, Obesity | H108: At risk for nutrition deficiency or imbalance due to food insecurity
A109: WellSense Beth Israel Lahey Health (BILH) Performance Network ACO | B109: Matt McVety, Social and Behavioral Services Program Manager, masshealthchworker@bilhpn.org; 978-307-6307, ext 172308 | C109: Nutrition Supports | D109: Food Vouchers; Nutrition Education; Medically Tailored Meals (MTM); Nutrition Kitchen Supplies; Nutrition - Private Transportation; Nutrition - Public Transportation | E109: AgeSpan | F109: Beverly; Gloucester; Haverhill; Lawrence; Lowell; Salem; Gardner - Fitchburg; Woburn; Somerville; Framingham | G109: Behavioral - Anxiety; Behavioral - Depression; Behavioral - Serious Emotional Disturbance; Behavioral - Serious Mental Illness; Behavioral - Substance Use Disorder; Behavioral - Trauma/Stress Disorder; Physical - Cardiovascular Conditions - Hypertension; Physical - Developmental Disabilities; Physical - Disability; Physical - Gastrointestinal (GI) Conditions; Physical - Hematologic Conditions; Physical - Metabolic - Diabetes; Physical - Infectious Diseases; Physical - Neurologic Conditions; Physical - Oncologic Conditions; Physical - Renal Conditions; Physical - Respiratory Conditions; Activities of Daily Living (ADL); Instrumental Activities of Daily Living (IADL); ED Utilization; High Risk Pregnancy; Physical - Cardiovascular - Other: Heart Disease, High Cholesterol; Metabolic - Other: Malnutrition, Obesity | H109: At risk for nutrition deficiency or imbalance due to food insecurity
A110: WellSense Beth Israel Lahey Health (BILH) Performance Network ACO | B110: Matt McVety, Social and Behavioral Services Program Manager, masshealthchworker@bilhpn.org; 978-307-6307, ext 172308 | C110: Housing Supports | D110: Pre-Tenancy - Individual Supports; Pre-Tenancy - Transitional Supports - First/Last/Security; Pre-Tenancy - Transitional Supports - Moving Costs; Pre-Tenancy - Transitional Supports - Household Furniture; Tenancy Sustaining Supports - Prevention Services & Goods; Tenancy Sustaining Supports - Stabilization Services & Goods; Home Modifications - Asthma Interventions; Home Modifications - Physical Adaptations; Tenancy - Private Transportation; Tenancy - Public Transportation; Pre-Tenancy - Transitional Supports - Other: Back utilities, utility deposits, costs for filing applications, obtaining and correcting needed documentation (under $500); Home Modifications - Other: Appliances (AC, Refrigerator), Pest Management | E110: Eliot | F110: Beverly; Boston-Primary; Gloucester; Haverhill; Lawrence; Lowell; Lynn; Malden; Quincy; Revere; Salem; Somerville; Waltham; Woburn | G110: Behavioral - Anxiety; Behavioral - Depression; Behavioral - Serious Emotional Disturbance; Behavioral - Serious Mental Illness; Behavioral - Substance Use Disorder; Behavioral - Trauma/Stress Disorder; Physical - Cardiovascular Conditions - Hypertension; Physical - Developmental Disabilities; Physical - Disability; Physical - Gastrointestinal (GI) Conditions; Physical - Hematologic Conditions; Physical - Metabolic - Diabetes; Physical - Infectious Diseases; Physical - Neurologic Conditions; Physical - Oncologic Conditions; Physical - Renal Conditions; Physical - Respiratory Conditions; Activities of Daily Living (ADL); Instrumental Activities of Daily Living (IADL); ED Utilization; High Risk Pregnancy; Physical - Cardiovascular - Other: Heart Disease, High Cholesterol; Metabolic - Other: Malnutrition, Obesity | H110: Experiencing homelessness; At risk of experiencing homelessness
A111: WellSense Beth Israel Lahey Health (BILH) Performance Network ACO | B111: Matt McVety, Social and Behavioral Services Program Manager, masshealthchworker@bilhpn.org; 978-307-6307, ext 172308 | C111: Housing Supports | D111: Pre-Tenancy - Individual Supports; Pre-Tenancy - Transitional Supports - First/Last/Security; Pre-Tenancy - Transitional Supports - Moving Costs; Pre-Tenancy - Transitional Supports - Household Furniture; Pre-Tenancy - Transitional Supports - Other; Tenancy Sustaining Supports - Prevention Services & Goods; Tenancy Sustaining Supports - Stabilization Services & Goods; Home Modifications - Asthma Interventions; Home Modifications - Physical Adaptations; Home Modifications - Other; Tenancy - Private Transportation; Tenancy - Public Transportation; Pre-Tenancy - Transitional Supports - Other: Household supplies, Back utilities, utility deposits, costs for filing applications, obtaining and correcting needed documentation, Storage, Home modifications - Other: Appliance (AC, Refrigerator), Pest Management | E111: Community Counseling of Bristol County | F111: Attleboro; Brockton; Fall River; New Bedford; Plymouth; Taunton; Wareham | G111: Behavioral - Anxiety; Behavioral - Depression; Behavioral - Serious Emotional Disturbance; Behavioral - Serious Mental Illness; Behavioral - Substance Use Disorder; Behavioral - Trauma/Stress Disorder; Physical - Cardiovascular Conditions - Hypertension; Physical - Developmental Disabilities; Physical - Disability; Physical - Gastrointestinal (GI) Conditions; Physical - Hematologic Conditions; Physical - Metabolic - Diabetes; Physical - Infectious Diseases; Physical - Neurologic Conditions; Physical - Oncologic Conditions; Physical - Renal Conditions; Physical - Respiratory Conditions; Activities of Daily Living (ADL); Instrumental Activities of Daily Living (IADL); ED Utilization; High Risk Pregnancy; Physical - Cardiovascular - Other: Heart Disease, High Cholesterol; Metabolic - Other: Malnutrition, Obesity | H111: Experiencing homelessness; At risk of experiencing homelessness
A112: WellSense Beth Israel Lahey Health (BILH) Performance Network ACO | B112: Matt McVety, Social and Behavioral Services Program Manager, masshealthchworker@bilhpn.org; 978-307-6307, ext 172308 | C112: Housing Supports | D112: Pre-Tenancy - Individual Supports; Pre-Tenancy - Transitional Supports - First/Last/Security; Pre-Tenancy - Transitional Supports - Moving Costs; Pre-Tenancy - Transitional Supports - Household Furniture; Tenancy Sustaining Supports - Prevention Services & Goods; Tenancy Sustaining Supports - Stabilization Services & Goods; Home Modifications - Asthma Interventions; Home Modifications - Physical Adaptations; Tenancy - Private Transportation; Tenancy - Public Transportation; Pre-Tenancy - Transitional Supports - Other: Back utilities, utility deposits, costs for filing applications, obtaining and correcting needed documentation (under $500); Home Modifications - Other: Appliances (AC, Refrigerator), Pest Management | E112: Vinfen | F112: Boston - Primary; Haverhill; Lawrence; Lowell; Malden; Lynn; Revere; Somerville | G112: Behavioral - Anxiety; Behavioral - Depression; Behavioral - Serious Emotional Disturbance; Behavioral - Serious Mental Illness; Behavioral - Substance Use Disorder; Behavioral - Trauma/Stress Disorder; Physical - Cardiovascular Conditions - Hypertension; Physical - Developmental Disabilities; Physical - Disability; Physical - Gastrointestinal (GI) Conditions; Physical - Hematologic Conditions; Physical - Metabolic - Diabetes; Physical - Infectious Diseases; Physical - Neurologic Conditions; Physical - Oncologic Conditions; Physical - Renal Conditions; Physical - Respiratory Conditions; Activities of Daily Living (ADL); Instrumental Activities of Daily Living (IADL); ED Utilization; High Risk Pregnancy; Physical - Cardiovascular - Other: Heart Disease, High Cholesterol; Metabolic - Other: Malnutrition, Obesity | H112: Experiencing homelessness; At risk of experiencing homelessness

Sheet Pivot Table CY24 Prgm Tracker (hidden)
A1: CY23 Budget | B1: (Multiple Items)
A2: CY24 Budget | B2: All | C2: Cont'd CY23
A4: Count of Program Identifier | B4: Column Labels
A5: Row Labels | B5: Nutrition | C5: Nutrition & Tenancy | D5: Tenancy | E5: Grand Total
A6: AHP-MGB | B6: 8 | D6: 6 | E6: 14
A7: CCC | B7: 7 | D7: 14 | E7: 21
A8: FLN-Atrius | B8: 2 | D8: 1 | E8: 3
A9: FLN-Berkshire | B9: 3 | D9: 2 | E9: 5
A10: FLN-Reliant | B10: 2 | D10: 1 | E10: 3
A11: HNE-Be Healthy | B11: 1 | D11: 1 | E11: 2
A12: Steward | B12: 1 | C12: 6 | D12: 2 | E12: 9
A13: Tufts-CHA | B13: 3 | D13: 1 | E13: 4
A14: Tufts-UMMH | B14: 3 | D14: 1 | E14: 4
A15: WellSense-BACO | B15: 5 | D15: 9 | E15: 14
A16: WellSense-BCH | B16: 4 | D16: 1 | E16: 5
A17: WellSense-BILHNP | B17: 3 | D17: 3 | E17: 6
A18: WellSense-Care Alliance | B18: 2 | D18: 2 | E18: 4
A19: WellSense-EBHNC | B19: 2 | D19: 2 | E19: 4
A20: WellSense-Mercy | B20: 2 | D20: 2 | E20: 4
A21: WellSense-Signature | B21: 1 | D21: 2 | E21: 3
A22: WellSense-Southcoast | B22: 1 | D22: 1 | E22: 2
A23: Grand Total | B23: 50 | C23: 6 | D23: 51 | E23: 107
A35: CY23 Budget | B35: 0
A36: CY24 Budget | B36: All | C36: New CY24
A38: Count of Program Identifier | B38: Column Labels
A39: Row Labels | B39: Nutrition | C39: Tenancy | D39: Grand Total
A40: AHP-MGB | C40: 1 | D40: 1
A41: Steward | B41: 1 | D41: 1
A42: Tufts-UMMH | B42: 1 | D42: 1
A43: WellSense-Care Alliance | B43: 1 | C43: 1 | D43: 2
A44: Grand Total | B44: 3 | C44: 2 | D44: 5
A52: CY23 Budget | B52: All
A53: CY24 Budget | B53: All | C53: Total Progams
A55: Count of Program Identifier | B55: Column Labels
A56: Row Labels | B56: Nutrition | C56: Nutrition & Tenancy | D56: Tenancy | E56: Grand Total
A57: AHP-MGB | B57: 8 | D57: 7 | E57: 15
A58: CCC | B58: 7 | D58: 14 | E58: 21
A59: FLN-Atrius | B59: 2 | D59: 1 | E59: 3
A60: FLN-Berkshire | B60: 3 | D60: 2 | E60: 5
A61: FLN-Reliant | B61: 2 | D61: 1 | E61: 3
A62: HNE-Be Healthy | B62: 1 | D62: 1 | E62: 2
A63: Steward | B63: 2 | C63: 7 | D63: 2 | E63: 11
A64: Tufts-CHA | B64: 3 | D64: 1 | E64: 4
A65: Tufts-UMMH | B65: 5 | D65: 3 | E65: 8
A66: WellSense-BACO | B66: 5 | D66: 9 | E66: 14
A67: WellSense-BCH | B67: 4 | D67: 1 | E67: 5
A68: WellSense-BILHNP | B68: 3 | D68: 3 | E68: 6
A69: WellSense-Care Alliance | B69: 3 | D69: 3 | E69: 6
A70: WellSense-EBHNC | B70: 2 | D70: 2 | E70: 4
A71: WellSense-Mercy | B71: 2 | D71: 2 | E71: 4
A72: WellSense-Signature | B72: 1 | D72: 2 | E72: 3
A73: WellSense-Southcoast | B73: 1 | D73: 1 | E73: 2
A74: Grand Total | B74: 54 | C74: 7 | D74: 55 | E74: 116
A81: CY23 Budget | B81: All
A82: CY24 Budget | B82: All | C82: Anticipated Adult Members Served
A84: Row Labels | B84: Sum of CY 24 Unique Adult Members Served
A85: AHP-MGB | B85: 2130
A86: CCC | B86: 5598
A87: FLN-Atrius | B87: 335
A88: FLN-Berkshire | B88: 184
A89: FLN-Reliant | B89: 355
A90: HNE-Be Healthy | B90: 408
A91: Steward | B91: 831
A92: Tufts-CHA | B92: 921
A93: Tufts-UMMH | B93: 839
A94: WellSense-BACO | B94: 2334
A95: WellSense-BCH | B95: 115
A96: WellSense-BILHNP | B96: 1575
A97: WellSense-Care Alliance | B97: 738
A98: WellSense-EBHNC | B98: 381
A99: WellSense-Mercy | B99: 410
A100: WellSense-Signature | B100: 215
A101: WellSense-Southcoast | B101: 177
A102: Grand Total | B102: 17546
A105: CY23 Budget | B105: All
A106: CY24 Budget | B106: All
A108: Row Labels | B108: Sum of CY 24 Unique Pediatric Members Served | C108: Anticipated Pediatric Members Served
A109: AHP-MGB | B109: 1761
A110: CCC | B110: 1980
A111: FLN-Atrius | B111: 290
A112: FLN-Berkshire | B112: 55
A113: FLN-Reliant | B113: 355
A114: HNE-Be Healthy | B114: 412
A115: Steward | B115: 427
A116: Tufts-CHA | B116: 624
A117: Tufts-UMMH | B117: 574
A118: WellSense-BACO | B118: 1312
A119: WellSense-BCH | B119: 1935
A120: WellSense-BILHNP | B120: 497
A121: WellSense-Care Alliance | B121: 520
A122: WellSense-EBHNC | B122: 416
A123: WellSense-Mercy | B123: 267
A124: WellSense-Signature | B124: 111
A125: WellSense-Southcoast | B125: 66
A126: Grand Total | B126: 11602
A128: CY23 Budget | B128: All
A129: CY24 Budget | B129: All
A131: Row Labels | B131: Sum of CY 24 Unique Pediatric Members Served
A132: AHP-MGB | B132: 1761
A133: CCC | B133: 1980
A134: FLN-Atrius | B134: 290
A135: FLN-Berkshire | B135: 55
A136: FLN-Reliant | B136: 355
A137: HNE-Be Healthy | B137: 412
A138: Steward | B138: 427
A139: Tufts-CHA | B139: 624
A140: Tufts-UMMH | B140: 574
A141: WellSense-BACO | B141: 1312
A142: WellSense-BCH | B142: 1935
A143: WellSense-BILHNP | B143: 497
A144: WellSense-Care Alliance | B144: 520
A145: WellSense-EBHNC | B145: 416
A146: WellSense-Mercy | B146: 267
A147: WellSense-Signature | B147: 111
A148: WellSense-Southcoast | B148: 66
A149: Grand Total | B149: 11602
A152: CY23 Budget | B152: All | C152: Anticipated Mems served by Domain
A153: CY24 Budget | B153: All
A155: Row Labels | B155: Sum of CY 24 Unique Adult Members Served | C155: Sum of CY 24 Unique Pediatric Members Served
A156: Nutrition | B156: 11876 | C156: 8554
A157: Nutrition & Tenancy | B157: 525 | C157: 256
A158: Tenancy | B158: 5145 | C158: 2792
A159: Grand Total | B159: 17546 | C159: 11602
A164: CY23 Budget | B164: All
A165: CY24 Budget | B165: All
A167: Count of Program Identifier | B167: Column Labels
B168: Nutrition | C168: Nutrition & Tenancy | I168: Tenancy | AM168: Grand Total
A169: Row Labels | C169: Nutrition Kitchen Supplies, Food Vouchers, Nutrition - Private Transportation, Pre-Tenancy - Individual Supports, Pre-Tenancy - Transitional Supports - First/Last/Security, Pre-Tenancy - Transitional Supports - Moving Costs, Pre-Tenancy - Transitional Supports - Household Furniture, Pre-Tenancy - Transitional Supports - Other , Tenancy Sustaining Supports - Prevention Services & Goods, Tenancy Sustaining Supports - Stabilization Services & Goods , Tenancy - Private Transportation, Home Modifications - Physical Adaptations, Home Modifications - Other | D169: Nutrition Kitchen Supplies, Food Vouchers, Nutrition - Private Transportation, Pre-Tenancy - Individual Supports, Pre-Tenancy - Transitional Supports - First/Last/Security, Pre-Tenancy - Transitional Supports - Moving Costs, Pre-Tenancy - Transitional Supports - Household Furniture, Pre-Tenancy - Transitional Supports - Other , Tenancy Sustaining Supports - Prevention Services & Goods, Tenancy Sustaining Supports - Stabilization Services & Goods, Home Modifications - Asthma Interventions , Tenancy - Private Transportation | E169: Nutrition Kitchen Supplies, Food Vouchers, Nutrition - Private Transportation, Pre-Tenancy - Individual Supports, Pre-Tenancy - Transitional Supports - First/Last/Security, Pre-Tenancy - Transitional Supports - Moving Costs, Pre-Tenancy - Transitional Supports - Household Furniture, Pre-Tenancy - Transitional Supports - Other , Tenancy Sustaining Supports - Prevention Services & Goods, Tenancy Sustaining Supports - Stabilization Services & Goods, Tenancy - Private Transportation, Home Modifications - Physical Adaptations, Home Modifications - Other | F169: Nutrition Kitchen Supplies, Food Vouchers, Nutrition - Private Transportation, Pre-Tenancy - Individual Supports, Pre-Tenancy - Transitional Supports - First/Last/Security, Pre-Tenancy - Transitional Supports Pre-Tenancy - Transitional Supports - Household Furniture, Pre-Tenancy - Transitional Supports - Other , Tenancy Sustaining Supports - Prevention Services & Goods, Tenancy Sustaining Supports - Stabilization Services & Goods, Tenancy - Private Transportation, Home Modifications - Physical Adaptations, Home Modifications - Other | G169: Nutrition Kitchen Supplies, Food Vouchers, Pre-Tenancy - Individual Supports, Pre-Tenancy - Transitional Supports - First/Last/Security, Pre-Tenancy - Transitional Supports - Household Furniture, Pre-Tenancy - Transitional Supports - Other , Tenancy Sustaining Supports - Prevention Services & Goods, Tenancy Sustaining Supports - Stabilization Services & Goods , Tenancy - Private Transportation, Home Modifications - Physical Adaptations, Home Modifications - Other | H169: Nutrition Kitchen Supplies, Food Vouchers, Pre-Tenancy - Individual Supports, Pre-Tenancy - Transitional Supports - First/Last/Security, Pre-Tenancy - Transitional Supports - Moving Costs, Pre-Tenancy - Transitional Supports - Household Furniture, Pre-Tenancy - Transitional Supports - Other , Tenancy Sustaining Supports - Prevention Services & Goods, Tenancy Sustaining Supports - Stabilization Services & Goods , Home Modifications - Physical Adaptations, Home Modifications - Other | I169: Pre-Tenancy - Individual Supports, Pre-Tenancy - Transitional Supports - First/Last/Security, Pre-Tenancy - Transitional Supports - Moving Costs, Pre-Tenancy - Transitional Supports - Household Furniture, Pre-Tenancy - Transitional Supports - Other , Tenancy Sustaining Supports - Prevention Services & Goods, Tenancy Sustaining Supports - Stabilization Services & Goods, Home Modifications - Asthma Interventions , Home Modifications - Physical Adaptations, Home Modifications - Other | J169: Home Modifications - Asthma Interventions | K169: Home Modifications - Asthma Interventions , Home Modifications - Physical Adaptations, Home Modifications - Other | L169: Home Modifications - Physical Adaptations, Home Modifications - Asthma Interventions , Pre-Tenancy - Individual Supports, Pre-Tenancy - Transitional Supports - First/Last/Security, Pre-Tenancy - Transitional Supports - Moving Costs, Pre-Tenancy - Transitional Supports - Household Furniture, Pre-Tenancy - Transitional Supports - Other , Tenancy Sustaining Supports - Prevention Services & Goods, Tenancy Sustaining Supports - Stabilization Services & Goods | M169: Medically Tailored Meals (MTM), Pre-Tenancy - Individual Supports, Pre-Tenancy - Transitional Supports - First/Last/Security, Pre-Tenancy - Transitional Supports - Household Furniture, Pre-Tenancy - Transitional Supports - Other , Tenancy Sustaining Supports - Prevention Services & Goods, Tenancy Sustaining Supports - Stabilization Services & Goods | N169: Pre-Tenancy - Individual Supports | O169: Pre-Tenancy - Individual Supports, Pre-Tenancy - Transitional Supports - First/Last/Security, Pre-Tenancy - Transitional Supports - Moving Costs, Pre-Tenancy - Transitional Supports - Household Furniture, Home Modifications - Physical Adaptations, Home Modifications - Asthma Interventions | P169: Pre-Tenancy - Individual Supports, Pre-Tenancy - Transitional Supports - First/Last/Security, Pre-Tenancy - Transitional Supports - Moving Costs, Pre-Tenancy - Transitional Supports - Household Furniture, Pre-Tenancy - Transitional Supports - Other , Tenancy Sustaining Supports - Prevention Services & Goods, Tenancy Sustaining Supports - Stabilization Services & Goods, Home Modifications - Asthma Interventions , Home Modifications - Physical Adaptations, Home Modifications - Other | Q169: Pre-Tenancy - Individual Supports, Pre-Tenancy - Transitional Supports - First/Last/Security, Pre-Tenancy - Transitional Supports - Moving Costs, Pre-Tenancy - Transitional Supports - Household Furniture, Pre-Tenancy - Transitional Supports - Other , Tenancy Sustaining Supports - Prevention Services & Goods, Tenancy Sustaining Supports - Stabilization Services & Goods, Home Modifications - Asthma Interventions , Home Modifications - Physical Adaptations, Home Modifications - Other, Tenancy - Private Transportation, Tenancy - Public Transportation | R169: Pre-Tenancy - Individual Supports, Pre-Tenancy - Transitional Supports - First/Last/Security, Pre-Tenancy - Transitional Supports - Moving Costs, Pre-Tenancy - Transitional Supports - Household Furniture, Pre-Tenancy - Transitional Supports - Other , Tenancy Sustaining Supports - Prevention Services & Goods, Tenancy Sustaining Supports - Stabilization Services & Goods, Home Modifications - Asthma Interventions , Home Modifications - Physical Adaptations, Tenancy - Private Transportation, Tenancy - Public Transportation, Home Modifications - Other | S169: Pre-Tenancy - Individual Supports, Pre-Tenancy - Transitional Supports - First/Last/Security, Pre-Tenancy - Transitional Supports - Moving Costs, Pre-Tenancy - Transitional Supports - Household Furniture, Pre-Tenancy - Transitional Supports - Other , Tenancy Sustaining Supports - Prevention Services & Goods, Tenancy Sustaining Supports - Stabilization Services & Goods, Home Modifications - Physical Adaptations, Home Modifications - Other | T169: Pre-Tenancy - Individual Supports, Pre-Tenancy - Transitional Supports - First/Last/Security, Pre-Tenancy - Transitional Supports - Moving Costs, Pre-Tenancy - Transitional Supports - Household Furniture, Pre-Tenancy - Transitional Supports - Other , Tenancy Sustaining Supports - Prevention Services & Goods, Tenancy Sustaining Supports - Stabilization Services & Goods, Home Modifications - Physical Adaptations, Home Modifications - Other, Tenancy - Private Transportation, Home Modifications - Asthma Interventions, Nutrition Kitchen Supplies | U169: Pre-Tenancy - Individual Supports, Pre-Tenancy - Transitional Supports - First/Last/Security, Pre-Tenancy - Transitional Supports - Moving Costs, Pre-Tenancy - Transitional Supports - Household Furniture, Pre-Tenancy - Transitional Supports - Other , Tenancy Sustaining Supports - Prevention Services & Goods, Tenancy Sustaining Supports - Stabilization Services & Goods, Home Modifications - Physical Adaptations, Tenancy - Private Transportation | V169: Pre-Tenancy - Individual Supports, Pre-Tenancy - Transitional Supports - First/Last/Security, Pre-Tenancy - Transitional Supports - Moving Costs, Pre-Tenancy - Transitional Supports - Household Furniture, Tenancy Sustaining Supports - Prevention Services & Goods, Home Modifications - Asthma Interventions , Home Modifications - Physical Adaptations, Tenancy - Private Transportation | W169: Pre-Tenancy - Individual Supports, Pre-Tenancy - Transitional Supports - First/Last/Security, Pre-Tenancy - Transitional Supports - Moving Costs, Pre-Tenancy - Transitional Supports - Household Furniture, Tenancy Sustaining Supports - Prevention Services & Goods, Home Modifications - Physical Adaptations | X169: Pre-Tenancy - Individual Supports, Pre-Tenancy - Transitional Supports - First/Last/Security, Pre-Tenancy - Transitional Supports - Moving Costs, Pre-Tenancy - Transitional Supports - Other , Pre-Tenancy - Transitional Supports - Household Furniture | Y169: Pre-Tenancy - Individual Supports, Pre-Tenancy - Transitional Supports - First/Last/Security, Pre-Tenancy - Transitional Supports - Moving Costs, Pre-Tenancy - Transitional Supports - Other , Pre-Tenancy - Transitional Supports - Household Furniture, Home Modifications - Physical Adaptations, Tenancy - Private Transportation | Z169: Pre-Tenancy - Individual Supports, Pre-Tenancy - Transitional Supports - First/Last/Security, Pre-Tenancy - Transitional Supports - Moving Costs, Pre-Tenancy - Transitional Supports - Other , Pre-Tenancy - Transitional Supports - Household Furniture, Tenancy Sustaining Supports - Prevention Services & Goods, Tenancy Sustaining Supports - Stabilization Services & Goods | AA169: Pre-Tenancy - Individual Supports, Pre-Tenancy - Transitional Supports - First/Last/Security, Pre-Tenancy - Transitional Supports - Moving Costs, Pre-Tenancy - Transitional Supports - Other , Pre-Tenancy - Transitional Supports - Household Furniture, Tenancy Sustaining Supports - Prevention Services & Goods, Tenancy Sustaining Supports - Stabilization Services & Goods, Home Modifications - Asthma Interventions , Home Modifications - Physical Adaptations, Home Modifications - Other, Tenancy - Private Transportation, Tenancy - Public Transportation | AB169: Pre-Tenancy - Individual Supports, Pre-Tenancy - Transitional Supports - First/Last/Security, Pre-Tenancy - Transitional Supports - Moving Costs, Pre-Tenancy - Transitional Supports - Other , Pre-Tenancy - Transitional Supports - Household Furniture, Tenancy Sustaining Supports - Prevention Services & Goods, Tenancy Sustaining Supports - Stabilization Services & Goods, Home Modifications - Asthma Interventions , Home Modifications - Physical Adaptations, Tenancy - Private Transportation | AC169: Pre-Tenancy - Individual Supports, Pre-Tenancy - Transitional Supports - First/Last/Security, Pre-Tenancy - Transitional Supports - Moving Costs, Pre-Tenancy - Transitional Supports - Other , Pre-Tenancy - Transitional Supports - Household Furniture, Tenancy Sustaining Supports - Prevention Services & Goods, Tenancy Sustaining Supports - Stabilization Services & Goods, Tenancy - Private Transportation, Home Modifications - Physical Adaptations | AD169: Pre-Tenancy - Individual Supports, Pre-Tenancy - Transitional Supports - First/Last/Security, Pre-Tenancy - Transitional Supports - Moving Costs, Tenancy Sustaining Supports - Prevention Services & Goods, Tenancy Sustaining Supports - Stabilization Services & Goods, Home Modifications - Asthma Interventions , Home Modifications - Physical Adaptations, Pre-Tenancy - Transitional Supports - Household Furniture, Home Modifications - Other, Tenancy - Private Transportation, Tenancy - Public Transportation, Pre-Tenancy - Transitional Supports - Other | AE169: Pre-Tenancy - Individual Supports, Tenancy Sustaining Supports - Prevention Services & Goods, Pre-Tenancy - Transitional Supports - First/Last/Security, Pre-Tenancy - Transitional Supports - Moving Costs, Pre-Tenancy - Transitional Supports - Other , Pre-Tenancy - Transitional Supports - Household Furniture, Tenancy Sustaining Supports - Stabilization Services & Goods | AF169: Pre-Tenancy - Individual Supports, Tenancy Sustaining Supports - Prevention Services & Goods, Tenancy Sustaining Supports - Stabilization Services & Goods | AG169: Pre-Tenancy - Individual Supports, Tenancy Sustaining Supports - Stabilization Services & Goods | AH169: Tenancy Sustaining Supports - Prevention Services & Goods, Home Modifications - Physical Adaptations, Home Modifications - Other | AI169: Tenancy Sustaining Supports - Prevention Services & Goods, Pre-Tenancy - Transitional Supports - First/Last/Security, Pre-Tenancy - Transitional Supports - Moving Costs, Pre-Tenancy - Transitional Supports - Household Furniture, Tenancy - Private Transportation, Home Modifications - Asthma Interventions , Home Modifications - Physical Adaptations, Tenancy Sustaining Supports - Stabilization Services & Goods | AJ169: Tenancy Sustaining Supports - Prevention Services & Goods, Tenancy Sustaining Supports - Stabilization Services & Goods, Pre-Tenancy - Individual Supports | AK169: Tenancy Sustaining Supports - Stabilization Services & Goods | AL169: Tenancy Sustaining Supports - Stabilization Services & Goods, Home Modifications - Asthma Interventions , Home Modifications - Physical Adaptations, Home Modifications - Other
A170: AHP-MGB | B170: 8 | V170: 6 | AJ170: 1 | AM170: 15
A171: CCC | B171: 7 | K171: 1 | L171: 1 | M171: 1 | X171: 1 | Y171: 1 | Z171: 6 | AB171: 1 | AC171: 1 | AG171: 1 | AM171: 21
A172: FLN-Atrius | B172: 2 | O172: 1 | AM172: 3
A173: FLN-Berkshire | B173: 3 | N173: 1 | AK173: 1 | AM173: 5
A174: FLN-Reliant | B174: 2 | AA174: 1 | AM174: 3
A175: HNE-Be Healthy | B175: 1 | J175: 1 | AM175: 2
A176: Steward | B176: 2 | C176: 1 | D176: 1 | E176: 2 | F176: 1 | G176: 1 | H176: 1 | S176: 1 | AH176: 1 | AM176: 11
A177: Tufts-CHA | B177: 3 | T177: 1 | AM177: 4
A178: Tufts-UMMH | B178: 5 | W178: 1 | AE178: 1 | AI178: 1 | AM178: 8
A179: WellSense-BACO | B179: 5 | P179: 3 | Q179: 3 | R179: 2 | AF179: 1 | AM179: 14
A180: WellSense-BCH | B180: 4 | U180: 1 | AM180: 5
A181: WellSense-BILHNP | B181: 3 | Q181: 3 | AM181: 6
A182: WellSense-Care Alliance | B182: 3 | I182: 1 | Q182: 1 | R182: 1 | AM182: 6
A183: WellSense-EBHNC | B183: 2 | Q183: 2 | AM183: 4
A184: WellSense-Mercy | B184: 2 | Q184: 1 | AL184: 1 | AM184: 4
A185: WellSense-Signature | B185: 1 | AD185: 2 | AM185: 3
A186: WellSense-Southcoast | B186: 1 | R186: 1 | AM186: 2
A187: Grand Total | B187: 54 | C187: 1 | D187: 1 | E187: 2 | F187: 1 | G187: 1 | H187: 1 | I187: 1 | J187: 1 | K187: 1 | L187: 1 | M187: 1 | N187: 1 | O187: 1 | P187: 3 | Q187: 10 | R187: 4 | S187: 1 | T187: 1 | U187: 1 | V187: 6 | W187: 1 | X187: 1 | Y187: 1 | Z187: 6 | AA187: 1 | AB187: 1 | AC187: 1 | AD187: 2 | AE187: 1 | AF187: 1 | AG187: 1 | AH187: 1 | AI187: 1 | AJ187: 1 | AK187: 1 | AL187: 1 | AM187: 116
A285: CY23 Budget | B285: All
A286: CY24 Budget | B286: All
A288: Count of ACO Name | B288: Column Labels
A289: Row Labels | B289: Nutrition | C289: Nutrition & Tenancy | D289: Tenancy | E289: Grand Total
A290: About Fresh | B290: 5 | E290: 5
A291: About Fresh, Open Sky | B291: 1 | E291: 1
A292: AgeSpan | B292: 1 | E292: 1
A293: BCH ACO | B293: 2 | E293: 2
A294: BCRHA | D294: 1 | E294: 1
A295: BFHC & BCSO | B295: 2 | E295: 2
A296: BHN, Way Finders | D296: 1 | E296: 1
A297: Boston Healthcare for the Homeless | D297: 1 | E297: 1
A298: CHP | B298: 1 | E298: 1
A299: Community Action of the Pioneer Valley | D299: 1 | E299: 1
A300: Community Care Cooperative | B300: 1 | E300: 1
A301: Community Counseling of Bristol County | C301: 1 | D301: 4 | E301: 5
A302: Community Servings | B302: 10 | E302: 10
A303: Community Teamwork Inc | D303: 1 | E303: 1
A304: Community TeamWork Inc. | C304: 1 | E304: 1
A305: Elder Services of Worcester | B305: 1 | E305: 1
A306: Eliot | D306: 5 | E306: 5
A307: ESWA of Worcester Area | B307: 1 | E307: 1
A308: ESWA, EatWell | B308: 1 | E308: 1
A309: FamilyAid Boston | D309: 1 | E309: 1
A310: Father Bill's & MainSpring | D310: 1 | E310: 1
A311: Father Bills Main Spring | C311: 1 | E311: 1
A312: Food Bank of Western MA | B312: 1 | E312: 1
A313: Food Bank of Western MA, WMEC, GSSS, LifePath, Highland Valley | B313: 1 | E313: 1
A314: Foodsmart | B314: 1 | E314: 1
A315: Fresh Food Generation | B315: 1 | E315: 1
A316: Good Measures | B316: 2 | E316: 2
A317: Housing Assistance Corporation | D317: 2 | E317: 2
A318: Housing Families Inc. | D318: 1 | E318: 1
A319: Just Roots | B319: 3 | E319: 3
A320: Making Opportunities Count | B320: 1 | D320: 1 | E320: 2
A321: Making Opportunity Count | D321: 1 | E321: 1
A322: Massachusetts Coalition for the Homeless | D322: 4 | E322: 4
A323: Medical Legal Partnership Boston (MLBP) | D323: 2 | E323: 2
A324: Metro Housing Boston | C324: 1 | D324: 4 | E324: 5
A325: MGH Food Pantry | B325: 1 | E325: 1
A326: Mill City Grows | B326: 1 | E326: 1
A327: MLPB | D327: 1 | E327: 1
A328: Neighbor Works Housing Solutions | C328: 1 | E328: 1
A329: NeighborWorks Housing Solutions | D329: 2 | E329: 2
A330: Old Colony YMCA | B330: 1 | D330: 1 | E330: 2
A331: Open Sky | C331: 1 | D331: 3 | E331: 4
A332: Project Bread | B332: 7 | E332: 7
A333: Project Hope | D333: 1 | E333: 1
A334: Quincy Community Action Programs | D334: 2 | E334: 2
A335: Revitalize CDC | B335: 1 | D335: 3 | E335: 4
A336: Season Health | B336: 1 | E336: 1
A337: Service Net | D337: 1 | E337: 1
A338: South Middlesex Opportunity Council | C338: 1 | D338: 2 | E338: 3
A339: Southern Middlesex Opportunity Council | D339: 1 | E339: 1
... 48 more rows

Sheet Sheet1 (hidden)
A1: Data returned for Count of Domain(s), Project Bread (First 1000 rows).
A3: Range[ACO Name] | B3: Range[Program Identifier] | C3: Range[Submission Type] | D3: Range[Program Type] | E3: Range[CY23 Budget] | F3: Range[CY24 Budget] | G3: Range[Domain(s)] | H3: Range[Goods & Services] | I3: Range[Goods & Services Other] | J3: Range[Length of Program (in weeks)] | K3: Range[Delivery Entity(ies)] | L3: Range[Service Area(s)] | M3: Range[HNBC & Associated Conditions] | N3: Range[HNBC & Associated Conditions Other] | O3: Range[Risk Factor(s)] | P3: Range[CY23 Est. Unique Adult Members Served] | Q3: Range[CY23 Est. Unique Pediatric Members Served] | R3: Range[CY 24 Unique Adult Members Served] | S3: Range[CY 24 Unique Pediatric Members Served] | T3: Range[Delivery Entity Contact (EOHHS Use)] | U3: Range[Referral Contact]
A4: Tufts-UMMH | B4: Project Bread Nutrition Program | C4: New | D4: External | E4: 0 | F4: 544758.75 | G4: Nutrition | H4: Food Vouchers | J4: 24 | K4: Project Bread | L4: Adams, Athol, Attleboro, Barnstable, Beverly, Boston - Primary, Brockton, Fall River, Falmouth, Framingham, Gloucester , Greenfield, Haverhill, Holyoke, Lawrence, Lowell, Lynn, Malden, Nantucket, New Bedford, Northhampton, Oak Bluffs, Orleans, Pittsfield, Plymouth, Quincy, Revere, Salem, Somerville, Southbridge, Springfield, Taunton, Waltham, Wareham, Westfield, Woburn, Worcester , Gardner - Fitchburg | M4: Behavioral - Anxiety, Behavioral - Depression, Behavioral - Serious Emotional Disturbance, Behavioral - Serious Mental Illness, Behavioral - Substance Use Disorder, Behavioral - Trauma/Stress Disorder, Physical - Cardiovascular Conditions - Hypertension, Physical - Cardiovascular Conditions - Other, Physical - Developmental Disabilities, Physical - Disability , Physical - Gastrointestinal (GI) Conditions, Physical - Hematologic Conditions, Physical - Infectious Diseases, Physical - Metabolic - Diabetes, Physical - Metabolic - Other, Physical - Neurologic Conditions, Physical - Oncologic Conditions, Physical - Renal Conditions, Physical - Respiratory Conditions, Physical - Other , Activities of Daily Living (ADL), Instrumental Activities of Daily Living (IADL) , ED Utilization , High Risk Pregnancy | N4: Chronic Hearth Failure; Malnutrition; Failure to Thrive (over three years old); Adults with a Body Mass Index greater than 30; Pediatric (age <18) obesity 95-99% percentiles; Vitamin D deficiency or receiving Vitamin D supplements | O4: At risk for nutritional deficiency or imbalance due to food insecurity | R4: 288 | S4: 192 | T4: jennifer_obadia@projectbread.org | U4: FlexibleServices@umassmemorial.org

Sheet Sheet4 (hidden)
A1: Data returned for Count of Domain(s), WellSense-Care Alliance, Mill City Grows (First 1000 rows).
A3: Range[ACO Name] | B3: Range[Program Identifier] | C3: Range[Submission Type] | D3: Range[Program Type] | E3: Range[CY23 Budget] | F3: Range[CY24 Budget] | G3: Range[Domain(s)] | H3: Range[Goods & Services] | I3: Range[Goods & Services Other] | J3: Range[Length of Program (in weeks)] | K3: Range[Delivery Entity(ies)] | L3: Range[Service Area(s)] | M3: Range[HNBC & Associated Conditions] | N3: Range[HNBC & Associated Conditions Other] | O3: Range[Risk Factor(s)] | P3: Range[CY23 Est. Unique Adult Members Served] | Q3: Range[CY23 Est. Unique Pediatric Members Served] | R3: Range[CY 24 Unique Adult Members Served] | S3: Range[CY 24 Unique Pediatric Members Served] | T3: Range[Delivery Entity Contact (EOHHS Use)] | U3: Range[Referral Contact]
A4: WellSense-Care Alliance | B4: N002 - Mill City Grows Nutrition Program | C4: New | D4: External | E4: 0 | F4: 292551.12 | G4: Nutrition | H4: Food Boxes, Food Vouchers, Nutrition Education | J4: 26 | K4: Mill City Grows | L4: Lowell, Lawrence | M4: Behavioral - Anxiety, Behavioral - Depression, Behavioral - Serious Emotional Disturbance, Behavioral - Serious Mental Illness, Behavioral - Substance Use Disorder, Behavioral - Trauma/Stress Disorder, Physical - Cardiovascular Conditions - Hypertension, Physical - Cardiovascular Conditions - Other, Physical - Developmental Disabilities, Physical - Disability , Physical - Gastrointestinal (GI) Conditions, Physical - Hematologic Conditions, Physical - Metabolic - Diabetes, Physical - Infectious Diseases, Physical - Metabolic - Other, Physical - Neurologic Conditions, Physical - Oncologic Conditions, Physical - Renal Conditions, Physical - Respiratory Conditions, Activities of Daily Living (ADL), Instrumental Activities of Daily Living (IADL) , ED Utilization , High Risk Pregnancy | N4: Physical - Cardiovascular Conditions - Other: Heart Disease, High Cholesterol; Physical - Metabolic - Other: Malnutrition, Obesity | O4: At risk for nutritional deficiency or imbalance due to food insecurity | P4: 60 | Q4: 40 | R4: 107 | S4: 76 | T4: Ali Jacobs, Director of Special Projects, 978-455-2620, ali@millcitygrows.org | U4: Nicole Ignachuck, Nicole.Ignachuck@tuftsmedicine.org

Sheet CY24 Line Items (hidden)
A1: ACO | B1: Program Identifier | C1: Funding Stream | D1: Line Item Category | E1: Line Item Sub Category | F1: Line Item Sub Category - Other | G1: Expense Type | H1: FTE | I1: Payment Mechanism (drop-down) | K1: CY24 Initial Budget | BL1: goods
G2: (drop-down) | H2: (for Service line items only) | AH2: General Flex Funding | AI2: Nutrition Kitchen Supplies | AJ2: Transportation | AK2: Total | AQ2: Bundle | AR2: ACO-Delivered | AS2: FFS | AT2: Prospective Lump Sum | AU2: total | AV2: prospective percent | BD2: Bundle | BE2: ACO-Delivered | BF2: FFS | BG2: Prospective Lump Sum | BH2: total | BI2: prospective percent | BL2: Prospective Lump Sum | BM2: percent of all lump sum | BN2: total goods | BO2: total prospective of goods | BP2: of total
A3: HNE-Be Healthy | B3: FS-1 | C3: General Flex Funding | D3: Tenancy Sustaining – Individual | E3: Home Modifications - Asthma Interventions | F3: PM, PC & Healthy Homes Evaluators | G3: Services | H3: 2.75 | I3: Prospective Lump Sum | K3: 249610.05 | O3: Nutrition Sustaining Support | P3: =SUMIF(D:D,O3,K:K) -> 28975665.96 | Q3: =P3 -> 28975665.96 | S3: Food Boxes | T3: =SUMIF(E:E,S3,K:K) -> 4052175.764 | U3: =T3 -> 4052175.764 | V3: =U3/$T$28 -> 0.07889820233 | W3: General Flex Funding | X3: =SUMIF(C:C,W3,K:K) -> 48584600.49 | AG3: CCC | AH3: =SUMIFS($K:$K, $A:$A, $AG3, $C:$C, AH$2) -> 8696583 | AI3: 629021 | AJ3: 2991.41 | AK3: =SUM(AH3:AJ3) -> 9328595.41 | AP3: All | AQ3: =COUNTIF($I:$I, AQ2) -> 9 | AR3: =COUNTIF($I:$I, AR2) -> 15 | AS3: =COUNTIF($I:$I, AS2) -> 566 | AT3: =COUNTIF($I:$I, AT2) -> 124 | AU3: =SUM(AQ3:AT3) -> 714 | AV3: =AT3/AU3 -> 0.1736694678 | AX3: Medically Tailored Meals (MTM)
A4: HNE-Be Healthy | B4: FS-1 | C4: General Flex Funding | D4: Tenancy Sustaining – Individual | E4: Home Modifications - Asthma Interventions | F4: Clean-living or air quality improvement goods and cleaning supplies | G4: Goods | H4: 0 | I4: Prospective Lump Sum | K4: 359160 | O4: Pre-Tenancy – Individual | P4: =SUMIF(D:D,O4,K:K) -> 7097934.612 | Q4: 7097934.612 | R4: =P4/$P$11 -> 0.3165553994 | S4: Food Vouchers | T4: 9542366.871 | U4: 9542366.871 | V4: =U4/$T$28 -> 0.1857953939 | W4: Nutrition Kitchen Supplies | X4: =SUMIF(C:C,W4,K:K) -> 3289868.393 | AG4: FLN-Berkshire | AH4: 707182.8317 | AI4: 49109.7925 | AJ4: 232 | AK4: 756524.6242 | AP4: Food Boxes | AQ4: =COUNTIFS($E:$E, $AP4, $I:$I,AQ$2) -> 1 | AR4: 2 | AS4: 13 | AT4: 4 | AU4: =SUM(AQ4:AT4) -> 20 | AV4: =AT4/AU4 -> 0.2 | AX4: Nutrition Education | BC4: Food Boxes | BD4: =SUMIFS($K:$K, $E:$E, $BC4, $I:$I, BD$2) -> 599059.12 | BE4: 277199 | BF4: 1326921.274 | BG4: 1848996.37 | BH4: =SUM(BD4:BG4) -> 4052175.764 | BI4: =BG4/BH4 -> 0.456297179 | BL4: =SUMIFS($K:$K, E:E, BC4, I:I, BL$2, G:G, BL$1) -> 1604484.2 | BM4: =BL4/BG4 -> 0.8677595186 | BN4: =SUMIFS(K:K, E:E, BC4, G:G, BL$1) -> 3503450.26 | BO4: =BL4/BN4 -> 0.457972593 | BP4: =BL4/BH4 -> 0.3959562204
A5: HNE-Be Healthy | B5: FS-2 | C5: General Flex Funding | D5: Nutrition Sustaining Support | E5: Nutrition Education | F5: Nutrition Support Staff | G5: Services | H5: 5.75 | I5: Prospective Lump Sum | K5: 495690 | O5: Pre-Tenancy – Transitional | P5: =SUMIF(D:D,O5,K:K) -> 6242791.413 | Q5: 6242791.413 | R5: =P5/$P$11 -> 0.2784175169 | S5: Home Delivered Meals | T5: 1035974.9 | U5: 1035974.9 | V5: 0.0201710296 | W5: Transportation | X5: =SUMIF(C:C,W5,K:K) -> 24838.5 | AG5: FLN-Reliant | AH5: 1513521.31 | AI5: 16131.31 | AJ5: 435 | AK5: 1530087.62 | AP5: Food Vouchers | AQ5: 1 | AR5: 1 | AS5: 13 | AT5: 18 | AU5: 33 | AV5: 0.5454545455 | AX5: Pre-Tenancy - Individual Supports | BC5: Food Vouchers | BD5: 1996863.74 | BE5: 3500 | BF5: 4769628 | BG5: 2772375.131 | BH5: =SUM(BD5:BG5) -> 9542366.871 | BI5: =BG5/BH5 -> 0.2905332785 | BL5: 2598847.319 | BM5: =BL5/BG5 -> 0.9374082495 | BN5: 8520839.059 | BO5: =BL5/BN5 -> 0.3049989914 | BP5: =BL5/BH5 -> 0.272348292
A6: HNE-Be Healthy | B6: FS-2 | C6: General Flex Funding | D6: Nutrition Sustaining Support | E6: Food Boxes | F6: Food and Nutrition Rx Delivery of Goods | G6: Goods | H6: 0 | I6: Prospective Lump Sum | K6: 1148707.95 | O6: Tenancy Sustaining – Individual | P6: =SUMIF(D:D,O6,K:K) -> 7649224.118 | Q6: 7649224.118 | R6: 0.3411419418 | S6: Medically Tailored Meals (MTM) | T6: 5319737.139 | U6: 5319737.139 | V6: 0.1035783543 | AG6: FLN-Atrius | AH6: 1705696.22 | AI6: 67060 | AJ6: 0 | AK6: 1772756.22 | AP6: Home Delivered Meals | AQ6: 0 | AR6: 0 | AS6: 10 | AT6: 0 | AU6: 10 | AV6: 0 | AX6: Pre-Tenancy - Transitional Supports - Other | BC6: Home Delivered Meals | BD6: 0 | BE6: 0 | BF6: 1035974.9 | BG6: 0 | BH6: 1035974.9 | BI6: 0 | BL6: 0 | BN6: 907129.9 | BO6: 0 | BP6: 0
A7: HNE-Be Healthy | B7: FS-2 | C7: Nutrition Kitchen Supplies | D7: Nutrition Sustaining Support | E7: Nutrition Kitchen Supplies | F7: Food and NutritionKitchen Supplies | G7: Goods | H7: 0 | I7: Prospective Lump Sum | K7: 164399.59 | O7: Home Modification | P7: =SUMIF(D:D,O7,K:K) -> 1432458.776 | Q7: 1432458.776 | R7: 0.06388514194 | S7: Nutrition Education | T7: 1389990.183 | U7: 1389990.183 | V7: 0.0270639116 | AG7: WellSense-BACO | AH7: 5438928.1 | AI7: 582720 | AJ7: 3275 | AK7: 6024923.1 | AP7: Medically Tailored Meals (MTM) | AQ7: 2 | AR7: 0 | AS7: 15 | AT7: 2 | AU7: 19 | AV7: 0.1052631579 | AX7: Tenancy Sustaining Supports - Stabilization Services & Goods | BC7: Medically Tailored Meals (MTM) | BD7: 1635546.46 | BE7: 0 | BF7: 2911766.657 | BG7: 772424.0217 | BH7: 5319737.139 | BI7: 0.1451996596 | BL7: 648836.1783 | BM7: 0.84 | BN7: 4761398.238 | BO7: 0.1362700925 | BP7: 0.1219677141
A8: HNE-Be Healthy | B8: FS-2 | C8: Transportation | D8: Nutrition Sustaining Support | E8: Nutrition - Private Transportation | F8: Food and NutritionKitchen Supplies | G8: Goods | H8: 0 | I8: Prospective Lump Sum | K8: 782.92 | O8: Total | P8: =SUM(P3:P7) -> 51398074.88 | Q8: 51398074.88 | S8: Nutrition Kitchen Supplies | T8: 3289868.393 | U8: 3289868.393 | V8: 0.06405563756 | AG8: HNE-Be Healthy | AH8: 2253168 | AI8: 164399.59 | AJ8: 782.92 | AK8: 2418350.51 | AP8: Nutrition Education | AQ8: 1 | AR8: 0 | AS8: 15 | AT8: 8 | AU8: 24 | AV8: 0.3333333333 | AX8: Home Modifications - Physical Adaptations | BC8: Nutrition Education | BD8: 45284.16 | BE8: 0 | BF8: 687518.7551 | BG8: 657187.2675 | BH8: 1389990.183 | BI8: 0.4727999347 | BL8: 28616 | BM8: 0.04354314427 | BN8: 28616 | BO8: 1 | BP8: 0.02058719577
A9: Tufts-CHA | B9: CHA Medically Tailored Meals Program | C9: General Flex Funding | D9: Nutrition Sustaining Support | E9: Medically Tailored Meals (MTM) | G9: Goods | I9: Bundle | K9: 237741.84 | Q9: 0 | S9: Nutrition - Private Transportation | T9: 891.67 | U9: 891.67 | V9: 1.736132986e-05 | AG9: WellSense-BILHNP | AH9: 2484393.15 | AI9: 0 | AJ9: 3150 | AK9: 2487543.15 | AP9: Nutrition Kitchen Supplies | AQ9: 1 | AR9: 1 | AS9: 19 | AT9: 10 | AU9: 31 | AV9: 0.3225806452 | AX9: Home Modifications - Asthma Interventions | BC9: Nutrition Kitchen Supplies | BD9: 462461.58 | BE9: 15500 | BF9: 2215714.853 | BG9: 596191.96 | BH9: 3289868.393 | BI9: 0.1812206109 | BL9: 596191.96 | BM9: 1 | BN9: 3289868.393 | BO9: 0.1812206109 | BP9: 0.1812206109
A10: Tufts-CHA | B10: CHA Medically Tailored Meals Program | C10: General Flex Funding | D10: Nutrition Sustaining Support | E10: Nutrition Education | G10: Services | H10: 0.53 | I10: Bundle | K10: 45284.16 | O10: Pre-tenancy Individual +Tenancy Sustaining | P10: =P4+P6 -> 14747158.73 | Q10: 14747158.73 | S10: Nutrition - Public Transportation | T10: 1590.75 | U10: 1590.75 | V10: 3.097282119e-05 | AG10: Tufts-CHA | AH10: 1363671 | AI10: 9654 | AJ10: 360 | AK10: 1373685 | AP10: Nutrition - Private Transportation | AQ10: 0 | AR10: 0 | AS10: 1 | AT10: 1 | AU10: 2 | AV10: 0.5 | BC10: Nutrition - Private Transportation | BD10: 0 | BE10: 0 | BF10: 108.75 | BG10: 782.92 | BH10: 891.67 | BI10: 0.8780378391 | BL10: 782.92 | BM10: 1 | BN10: 891.67 | BO10: 0.8780378391 | BP10: 0.8780378391
A11: Tufts-CHA | B11: CHA Housing Support Program | C11: General Flex Funding | D11: Pre-Tenancy – Individual | E11: Pre-Tenancy - Individual Supports | G11: Services | H11: 5.44 | I11: Bundle | K11: 517537.5 | O11: Tenancy Preservation Supports | P11: =SUM(P4:P7) -> 22422408.92 | Q11: 22422408.92 | R11: =P11/(SUM(P3+P11)) -> 0.4362499757 | S11: Nutrition - Other | T11: 4343070.294 | U11: 4343070.294 | V11: 0.08456208684 | AG11: WellSense-BCH | AH11: 5143827.064 | AI11: 548495 | AJ11: 3000 | AK11: 5695322.064 | AP11: Nutrition - Public Transportation | AQ11: 0 | AR11: 0 | AS11: 3 | AT11: 0 | AU11: 3 | AV11: 0 | BC11: Nutrition - Public Transportation | BD11: 0 | BE11: 0 | BF11: 1590.75 | BG11: 0 | BH11: 1590.75 | BI11: 0 | BL11: 0 | BN11: 1590.75 | BO11: 0 | BP11: 0
A12: Tufts-CHA | B12: CHA Housing Support Program | C12: General Flex Funding | D12: Pre-Tenancy – Transitional | E12: Pre-Tenancy - Transitional Supports - Other | F12: Support services to transition into housing | G12: Services | H12: 0.16 | I12: Bundle | K12: 15262.5 | N12: Nutrition | O12: Services | P12: =SUMIFS(K:K, D:D, $O$3, G:G, O12) -> 7860618.154 | Q12: 7860618.154 | S12: Pre-Tenancy - Individual Supports | T12: 6551803.702 | U12: 6551803.702 | V12: 0.1275674019 | AG12: WellSense-EBHNC | AH12: 1039975.6 | AI12: 88800 | AJ12: 893 | AK12: 1129668.6 | AP12: Nutrition - Other | AQ12: 0 | AR12: 3 | AS12: 16 | AT12: 3 | AU12: 22 | AV12: 0.1363636364 | BC12: Nutrition - Other | BD12: 0 | BE12: 964000 | BF12: 3164506.654 | BG12: 214563.64 | BH12: 4343070.294 | BI12: 0.04940367654 | BL12: 0 | BM12: 0 | BN12: 101263.54 | BO12: 0 | BP12: 0
A13: Tufts-CHA | B13: CHA Housing Support Program | C13: General Flex Funding | D13: Tenancy Sustaining – Individual | E13: Tenancy Sustaining Supports - Stabilization Services & Goods | G13: Services | H13: 1.4 | I13: Bundle | K13: 133200 | N13: Nutrition | O13: Goods | P13: =SUMIFS(K:K, D:D, $O$3, G:G, O13) -> 21115047.81 | Q13: 21115047.81 | S13: Pre-Tenancy - Transitional Supports - First/Last/Security | T13: 4093408.852 | U13: 4093408.852 | V13: 0.07970103437 | AG13: WellSense-Mercy | AH13: 1186474.89 | AI13: 94320 | AJ13: 415 | AK13: 1281209.89 | AP13: Pre-Tenancy - Individual Supports | AQ13: 1 | AR13: 1 | AS13: 40 | AT13: 13 | AU13: 55 | AV13: 0.2363636364 | BC13: Pre-Tenancy - Individual Supports | BD13: 517537.5 | BE13: 17400 | BF13: 3952617.421 | BG13: 2064248.78 | BH13: 6551803.702 | BI13: 0.3150657245 | BL13: 0 | BM13: 0 | BN13: 100 | BO13: 0 | BP13: 0
A14: Tufts-CHA | B14: CHA Housing Support Program | C14: General Flex Funding | D14: Pre-Tenancy – Individual | E14: Pre-Tenancy - Individual Supports | F14: Birth certificates, IDs, etc., for completing housing applications | G14: Goods | I14: FFS | K14: 100 | Q14: 0 | S14: Pre-Tenancy - Transitional Supports - Moving Costs | T14: 757086.9449 | U14: 757086.9449 | V14: 0.01474092005 | AG14: AHP-MGB | AH14: 6296630.98 | AI14: 462461.58 | AJ14: 2200.67 | AK14: 6761293.23 | AP14: Pre-Tenancy - Transitional Supports - First/Last/Security | AQ14: 0 | AR14: 0 | AS14: 44 | AT14: 8 | AU14: 52 | AV14: 0.1538461538 | BC14: Pre-Tenancy - Transitional Supports - First/Last/Security | BD14: 0 | BE14: 0 | BF14: 3312144.05 | BG14: 781264.8019 | BH14: 4093408.852 | BI14: 0.1908592154 | BL14: 656989.2409 | BM14: 0.8409302957 | BN14: 3909133.291 | BO14: 0.168065193 | BP14: 0.1604992965
A15: Tufts-CHA | B15: CHA Housing Support Program | C15: General Flex Funding | D15: Pre-Tenancy – Transitional | E15: Pre-Tenancy - Transitional Supports - First/Last/Security | G15: Goods | I15: FFS | K15: 23000 | O15: Nutrition - Services | P15: =P12 -> 7860618.154 | Q15: 7860618.154 | S15: Pre-Tenancy - Transitional Supports - Household Furniture | T15: 1544086.097 | U15: 1544086.097 | V15: 0.03006424805 | AG15: WellSense-Signature | AH15: 811233.87 | AI15: 56448.25 | AJ15: 4123.5 | AK15: 871805.62 | AP15: Pre-Tenancy - Transitional Supports - Moving Costs | AQ15: 0 | AR15: 0 | AS15: 44 | AT15: 6 | AU15: 50 | AV15: 0.12 | BC15: Pre-Tenancy - Transitional Supports - Moving Costs | BD15: 0 | BE15: 0 | BF15: 572834.84 | BG15: 184252.1049 | BH15: 757086.9449 | BI15: 0.2433698086 | BL15: 158928.7339 | BM15: 0.8625612933 | BN15: 723763.5739 | BO15: 0.219586533 | BP15: 0.2099213769
A16: Tufts-CHA | B16: CHA Housing Support Program | C16: General Flex Funding | D16: Pre-Tenancy – Transitional | E16: Pre-Tenancy - Transitional Supports - Moving Costs | G16: Goods | I16: FFS | K16: 12600 | O16: Nutrition - Goods | P16: =P13 -> 21115047.81 | Q16: 21115047.81 | S16: Pre-Tenancy - Transitional Supports - Other | T16: 408839.5197 | U16: 408839.5197 | V16: 0.007960341561 | AG16: WellSense-Southcoast | AH16: 707619.9 | AI16: 0 | AJ16: 233 | AK16: 707852.9 | AP16: Pre-Tenancy - Transitional Supports - Household Furniture | AQ16: 0 | AR16: 0 | AS16: 46 | AT16: 7 | AU16: 53 | AV16: 0.1320754717 | BC16: Pre-Tenancy - Transitional Supports - Household Furniture | BD16: 0 | BE16: 0 | BF16: 1322476.38 | BG16: 221609.7169 | BH16: 1544086.097 | BI16: 0.1435216063 | BL16: 221609.7169 | BM16: 1 | BN16: 1524086.097 | BO16: 0.1454049856 | BP16: 0.1435216063
A17: Tufts-CHA | B17: CHA Housing Support Program | C17: General Flex Funding | D17: Pre-Tenancy – Transitional | E17: Pre-Tenancy - Transitional Supports - Household Furniture | G17: Goods | I17: FFS | K17: 5250 | S17: Tenancy Sustaining Supports - Prevention Services & Goods | T17: 3488105.317 | U17: 3488105.317 | V17: 0.06791542496 | AG17: Steward | AH17: 4706708.004 | AI17: 192878.37 | AJ17: 1295 | AK17: 4900881.374 | AP17: Pre-Tenancy - Transitional Supports - Other | AQ17: 0 | AR17: 0 | AS17: 33 | AT17: 7 | AU17: 40 | AV17: 0.175 | BC17: Pre-Tenancy - Transitional Supports - Other | BD17: 0 | BE17: 0 | BF17: 205685.35 | BG17: 203154.1697 | BH17: 408839.5197 | BI17: 0.4969044329 | BL17: 203154.1697 | BM17: 1 | BN17: 407839.5197 | BO17: 0.4981228152 | BP17: 0.4969044329
A18: Tufts-CHA | B18: CHA Housing Support Program | C18: General Flex Funding | D18: Tenancy Sustaining – Individual | E18: Tenancy Sustaining Supports - Stabilization Services & Goods | F18: Back utilities | G18: Goods | I18: FFS | K18: 2200 | P18: =P3/P8 -> 0.5637500243 | S18: Tenancy Sustaining Supports - Stabilization Services & Goods | T18: 3520593.582 | U18: 3520593.582 | V18: 0.06854799025 | AG18: WellSense-Care Alliance | AH18: 2390830.59 | AI18: 170400 | AJ18: 800 | AK18: 2562030.59 | AP18: Tenancy Sustaining Supports - Prevention Services & Goods | AQ18: 0 | AR18: 1 | AS18: 46 | AT18: 13 | AU18: 60 | AV18: 0.2166666667 | BC18: Tenancy Sustaining Supports - Prevention Services & Goods | BD18: 0 | BE18: 49300 | BF18: 2267511.727 | BG18: 1171293.589 | BH18: 3488105.317 | BI18: 0.3357965093 | BL18: 102456.7264 | BM18: 0.08747313853 | BN18: 251784.2964 | BO18: 0.4069226233 | BP18: 0.02937317458
A19: Tufts-CHA | B19: CHA Housing Support Program | C19: General Flex Funding | D19: Home Modification | E19: Home Modifications - Physical Adaptations | G19: Goods | I19: FFS | K19: 8000 | S19: Home Modifications - Asthma Interventions | T19: 1021529.87 | U19: 1021529.87 | V19: 0.01988977652 | AG19: Tufts-UMMH | AH19: 2138155.981 | AI19: 157969.5 | AJ19: 652 | AK19: 2296777.481 | AP19: Tenancy Sustaining Supports - Stabilization Services & Goods | AQ19: 1 | AR19: 1 | AS19: 45 | AT19: 8 | AU19: 55 | AV19: 0.1454545455 | BC19: Tenancy Sustaining Supports - Stabilization Services & Goods | BD19: 133200 | BE19: 49300 | BF19: 1952660.942 | BG19: 1385432.639 | BH19: 3520593.582 | BI19: 0.3935224578 | BL19: 0 | BM19: 0 | BN19: 73185.02 | BO19: 0 | BP19: 0
A20: Tufts-CHA | B20: CHA Housing Support Program | C20: General Flex Funding | D20: Home Modification | E20: Home Modifications - Asthma Intervention | G20: Goods | I20: FFS | K20: 6000 | S20: Home Modifications - Physical Adaptations | T20: 720593.8897 | U20: 720593.8897 | V20: 0.01403037919 | AH20: =SUM(AH3:AH19) -> 48584600.49 | AI20: =SUM(AI3:AI19) -> 3289868.393 | AJ20: =SUM(AJ3:AJ19) -> 24838.5 | AK20: 51899307.38 | AP20: Home Modifications - Asthma Interventions | AQ20: 0 | AR20: 0 | AS20: 36 | AT20: 2 | AU20: 38 | AV20: 0.05263157895 | BC20: Home Modifications - Asthma Interventions | BD20: 0 | BE20: 0 | BF20: 407759.82 | BG20: 608770.05 | BH20: 1016529.87 | BI20: 0.5988707936 | BL20: 359160 | BM20: 0.5899764616 | BN20: 771919.82 | BO20: 0.4652814848 | BP20: 0.3533196718
A21: Tufts-CHA | B21: CHA Housing Support Program | C21: General Flex Funding | D21: Home Modification | E21: Home Modifications - Other | F21: HEPA filters, mold remediation, healthy home supplies, etc. for members who do not have asthma but could benefit from home modifications for their health; refrigerators. | G21: Goods | I21: FFS | K21: 10000 | S21: Home Modifications - Other | T21: 255475.0668 | U21: 255475.0668 | V21: 0.004974247092 | AP21: Home Modifications - Physical Adaptations | AQ21: 0 | AR21: 0 | AS21: 45 | AT21: 7 | AU21: 52 | AV21: 0.1346153846 | BC21: Home Modifications - Physical Adaptations | BD21: 0 | BE21: 0 | BF21: 691373.2088 | BG21: 24220.68087 | BH21: 715593.8897 | BI21: 0.03384696434 | BL21: 24220.68087 | BM21: 1 | BN21: 322335.5109 | BO21: 0.07514121173 | BP21: 0.03384696434
A22: Tufts-CHA | B22: CHA Housing Support Program | C22: Transportation | D22: Pre-Tenancy – Individual | E22: Tenancy - Private Transportation | G22: Goods | I22: FFS | K22: 120 | S22: Tenancy - Private Transportation | T22: 18487.58 | U22: 18487.58 | V22: 0.0003599638595 | AP22: Home Modifications - Other | AQ22: 0 | AR22: 0 | AS22: 24 | AT22: 7 | AU22: 31 | AV22: 0.2258064516 | BC22: Home Modifications - Other | BD22: 0 | BE22: 0 | BF22: 200999.46 | BG22: 54475.60677 | BH22: 255475.0668 | BI22: 0.2132325767 | BL22: 54475.60677 | BM22: 1 | BN22: 115475.0668 | BO22: 0.4717521132 | BP22: 0.2132325767
A23: Tufts-CHA | B23: CHA Housing Support Program | C23: Transportation | D23: Pre-Tenancy – Transitional | E23: Tenancy - Private Transportation | G23: Goods | I23: FFS | K23: 120 | S23: Tenancy - Public Transportation | T23: 3868.5 | U23: 3868.5 | V23: 7.532192913e-05 | AP23: Tenancy - Private Transportation | AQ23: 0 | AR23: 5 | AS23: 33 | AT23: 0 | AU23: 38 | AV23: 0 | BC23: Tenancy - Private Transportation | BD23: 0 | BE23: 1295 | BF23: 17192.58 | BG23: 0 | BH23: 18487.58 | BI23: 0 | BL23: 0 | BN23: 18487.58 | BO23: 0 | BP23: 0
A24: Tufts-CHA | B24: CHA Housing Support Program | C24: Transportation | D24: Tenancy Sustaining – Individual | E24: Tenancy - Private Transportation | G24: Goods | I24: FFS | K24: 120 | AP24: Tenancy - Public Transportation | AQ24: 0 | AR24: 0 | AS24: 18 | AT24: 0 | AU24: 18 | AV24: 0 | BC24: Tenancy - Public Transportation | BD24: 0 | BE24: 0 | BF24: 3868.5 | BG24: 0 | BH24: 3868.5 | BI24: 0 | BL24: 0 | BN24: 3868.5 | BO24: 0 | BP24: 0
A25: Tufts-CHA | B25: CHA Housing Support Program | C25: Nutrition Kitchen Supplies | D25: Nutrition Sustaining Support | E25: Nutrition Kitchen Supplies | G25: Goods | I25: FFS | K25: 6000 | BC25: Total | BD25: =SUM(BD4:BD24) -> 5389952.56 | BE25: =SUM(BE4:BE24) -> 1377494 | BF25: 31020854.87 | BG25: 13561243.45 | BH25: 51349544.88 | BI25: 0.264096663 | BL25: =SUM(BL4:BL24) -> 7258753.453 | BM25: 0.5352572188 | BN25: =SUM(BN4:BN24) -> 29237026.09 | BO25: 0.2482726332 | BP25: 0.1413596453
A26: Tufts-CHA | B26: CHA Fresh Connect Program | C26: General Flex Funding | D26: Nutrition Sustaining Support | E26: Food Vouchers | G26: Goods | I26: Prospective Lump Sum | K26: 300000
A27: Tufts-CHA | B27: CHA Food Prescription Program | C27: General Flex Funding | D27: Nutrition Sustaining Support | E27: Food Boxes | G27: Goods | I27: Prospective Lump Sum | K27: 47495 | O27: =P3+P11 -> 51398074.88
A28: Tufts-CHA | B28: CHA Food Prescription Program | C28: Nutrition Kitchen Supplies | D28: Nutrition Sustaining Support | E28: Nutrition Kitchen Supplies | G28: Goods | I28: Prospective Lump Sum | K28: 3654 | O28: =SUM(T3:T11) -> 28975665.96 | T28: =SUM(T3:T27) -> 51359544.88
A29: Tufts-UMMH | B29: Fresh Connect Card Nutrition Program | C29: General Flex Funding | D29: Nutrition Sustaining Support | E29: Food Vouchers | F29: Fresh Connect Debit Cards | G29: Goods | I29: Prospective Lump Sum | K29: 205481 | O29: =SUM(T12:T27) -> 22383878.92
A30: Tufts-UMMH | B30: Elder Services of Worcester Meal Delivery Program | C30: General Flex Funding | D30: Nutrition Sustaining Support | E30: Food Boxes | F30: $65/assessment | G30: Services | H30: 0.13 | I30: FFS | K30: 6727.413888
A31: Tufts-UMMH | B31: Elder Services of Worcester Meal Delivery Program | C31: General Flex Funding | D31: Nutrition Sustaining Support | E31: Nutrition Education | F31: $16.50/15 minutes | G31: Services | H31: 0.01 | I31: FFS | K31: 1089.855066
A32: Tufts-UMMH | B32: Elder Services of Worcester Meal Delivery Program | C32: General Flex Funding | D32: Nutrition Sustaining Support | E32: Home Delivered Meals | F32: $98/week | G32: Goods | I32: FFS | K32: 176400
A33: Tufts-UMMH | B33: Elder Services of Worcester Meal Delivery Program | C33: General Flex Funding | D33: Nutrition Sustaining Support | E33: Food Boxes | F33: $77 each, 1/week/member | G33: Goods | I33: FFS | K33: 46200 | S33: =SUM(T3,T4,T5,T6) -> 19950254.67 | BK33: 811
A34: Tufts-UMMH | B34: Elder Services of Worcester Meal Delivery Program | C34: Nutrition Kitchen Supplies | D34: Nutrition Sustaining Support | E34: Nutrition Kitchen Supplies | F34: Reimbursed at cost | G34: Goods | I34: FFS | K34: 49261.5 | S34: =S33/P3 -> 0.6885175547 | BK34: 1582
A35: Tufts-UMMH | B35: Project Bread Nutrition Program | C35: General Flex Funding | D35: Nutrition Sustaining Support | E35: Food Vouchers | F35: Food Vouchers | G35: Goods | I35: Prospective Lump Sum | K35: 237120 | S35: =SUM(T5:T6) -> 6355712.039 | BK35: 68
A36: Tufts-UMMH | B36: Project Bread Nutrition Program | C36: General Flex Funding | D36: Nutrition Sustaining Support | E36: Nutrition Education | F36: Nutrition Education | G36: Services | H36: 0.25 | I36: Prospective Lump Sum | K36: 12540 | S36: =S35/P3 -> 0.2193465388 | BK36: 46
A37: Tufts-UMMH | B37: Project Bread Nutrition Program | C37: Nutrition Kitchen Supplies | D37: Nutrition Sustaining Support | E37: Nutrition Kitchen Supplies | F37: Nutrition Kitchen Supplies | G37: Goods | I37: Prospective Lump Sum | K37: 101640 | BK37: 268
A38: Tufts-UMMH | B38: Project Bread Nutrition Program | C38: General Flex Funding | D38: Nutrition Sustaining Support | E38: Food Vouchers | F38: Intake & Follow up Calls | G38: Services | H38: 0.3 | I38: Prospective Lump Sum | K38: 35362.5 | BK38: 3010
A39: Tufts-UMMH | B39: Project Bread Nutrition Program | C39: General Flex Funding | D39: Nutrition Sustaining Support | E39: Nutrition Education | F39: Intake & Follow up Calls | G39: Services | H39: 0.1 | I39: Prospective Lump Sum | K39: 10263.75 | BK39: 15
A40: Tufts-UMMH | B40: Project Bread Nutrition Program | C40: General Flex Funding | D40: Nutrition Sustaining Support | E40: Food Vouchers | F40: Intake & Follow up Calls | G40: Services | H40: 0.1 | I40: Prospective Lump Sum | K40: 10263.75 | BK40: 19
A41: Tufts-UMMH | B41: Project Bread Nutrition Program | C41: General Flex Funding | D41: Nutrition Sustaining Support | E41: Food Vouchers | F41: Intake & Follow up Calls | G41: Services | H41: 0.15 | I41: Prospective Lump Sum | K41: 11859.375 | BK41: N/A
A42: Tufts-UMMH | B42: Project Bread Nutrition Program | C42: General Flex Funding | D42: Nutrition Sustaining Support | E42: Food Vouchers | F42: Intake & Follow up Calls | G42: Services | H42: 0.1 | I42: Prospective Lump Sum | K42: 15812.5 | BK42: 244
A43: Tufts-UMMH | B43: Project Bread Nutrition Program | C43: General Flex Funding | D43: Nutrition Sustaining Support | E43: Nutrition Education | F43: Intake & Follow up Calls | G43: Services | H43: 0.1 | I43: Prospective Lump Sum | K43: 9667.1875 | BK43: 45
A44: Tufts-UMMH | B44: Project Bread Nutrition Program | C44: General Flex Funding | D44: Nutrition Sustaining Support | E44: Food Vouchers | F44: Intake & Follow up Calls | G44: Services | H44: 1 | I44: Prospective Lump Sum | K44: 90562.5 | BK44: 491
A45: Tufts-UMMH | B45: Project Bread Nutrition Program | C45: General Flex Funding | D45: Nutrition Sustaining Support | E45: Food Vouchers | F45: Intake & Follow up Calls | G45: Services | H45: 0.1 | I45: Prospective Lump Sum | K45: 9667.1875 | BK45: 391
A46: Tufts-UMMH | B46: Making Opportunities Count Nutritional Support Program | C46: General Flex Funding | D46: Nutrition Sustaining Support | E46: Home Delivered Meals | F46: $11.37/meal: 10 meals/week for 24 weeks | G46: Goods | I46: FFS | K46: 136530 | BK46: 164
A47: Tufts-UMMH | B47: Making Opportunities Count Nutritional Support Program | C47: Nutrition Kitchen Supplies | D47: Nutrition Sustaining Support | E47: Nutrition Kitchen Supplies | F47: Kitchen Supplies: $186 - 75% participation rate | G47: Goods | I47: FFS | K47: 7068 | BK47: 787
A48: Tufts-UMMH | B48: Making Opportunities Count Nutritional Support Program | C48: General Flex Funding | D48: Nutrition Sustaining Support | E48: Nutrition Education | F48: Assessment and Education | G48: Services | H48: 0.01 | I48: Prospective Lump Sum | K48: 982.83 | BK48: 140
A49: Tufts-UMMH | B49: Making Opportunities Count Housing Support Program | C49: General Flex Funding | D49: Pre-Tenancy – Individual | E49: Pre-Tenancy - Individual Supports | F49: Case Manager | G49: Services | H49: 0.5 | I49: Prospective Lump Sum | K49: 23568.2415 | BK49: 1230
A50: Tufts-UMMH | B50: Making Opportunities Count Housing Support Program | C50: General Flex Funding | D50: Tenancy Sustaining – Individual | E50: Tenancy Sustaining Supports - Prevention Services & Goods | F50: Case Manager | G50: Services | H50: 0.5 | I50: Prospective Lump Sum | K50: 23568.2415
A51: Tufts-UMMH | B51: Making Opportunities Count Housing Support Program | C51: General Flex Funding | D51: Pre-Tenancy – Individual | E51: Pre-Tenancy - Individual Supports | F51: Director | G51: Services | H51: 0.05 | I51: Prospective Lump Sum | K51: 5302.8585
A52: Tufts-UMMH | B52: Making Opportunities Count Housing Support Program | C52: General Flex Funding | D52: Tenancy Sustaining – Individual | E52: Tenancy Sustaining Supports - Prevention Services & Goods | F52: Director | G52: Services | H52: 0.05 | I52: Prospective Lump Sum | K52: 5302.8585
A53: Tufts-UMMH | B53: Making Opportunities Count Housing Support Program | C53: General Flex Funding | D53: Pre-Tenancy – Individual | E53: Pre-Tenancy - Transitional Supports - First/Last/Security | F53: $4000/household | G53: Goods | I53: FFS | K53: 36000
A54: Tufts-UMMH | B54: Making Opportunities Count Housing Support Program | C54: General Flex Funding | D54: Pre-Tenancy – Individual | E54: Pre-Tenancy - Transitional Supports - Moving Costs | F54: $2000/household | G54: Goods | I54: FFS | K54: 10000
A55: Tufts-UMMH | B55: Making Opportunities Count Housing Support Program | C55: General Flex Funding | D55: Pre-Tenancy – Individual | E55: Pre-Tenancy - Transitional Supports - Household Furniture | F55: $515/household | G55: Goods | I55: FFS | K55: 6180
A56: Tufts-UMMH | B56: Making Opportunities Count Housing Support Program | C56: General Flex Funding | D56: Tenancy Sustaining – Individual | E56: Home Modifications - Physical Adaptations | F56: $515/household | G56: Goods | I56: FFS | K56: 5665
A57: Tufts-UMMH | B57: Massachusetts Coalition for the Homeless Housing Partnership | C57: General Flex Funding | D57: Tenancy Sustaining – Individual | E57: Tenancy Sustaining Supports - Prevention Services & Goods | F57: Case Manager | G57: Services | H57: 1.25 | I57: Prospective Lump Sum | K57: 107392.5
A58: Tufts-UMMH | B58: Massachusetts Coalition for the Homeless Housing Partnership | C58: General Flex Funding | D58: Pre-Tenancy – Individual | E58: Pre-Tenancy - Individual Supports | F58: Case Manager | G58: Services | H58: 1.25 | I58: Prospective Lump Sum | K58: 107392.5
A59: Tufts-UMMH | B59: Massachusetts Coalition for the Homeless Housing Partnership | C59: General Flex Funding | D59: Pre-Tenancy – Individual | E59: Pre-Tenancy - Transitional Supports - First/Last/Security | F59: 25 Brokers Fee, Security Deposit Last Month and First | G59: Goods | I59: FFS | K59: 50000
A60: Tufts-UMMH | B60: Massachusetts Coalition for the Homeless Housing Partnership | C60: General Flex Funding | D60: Pre-Tenancy – Individual | E60: Pre-Tenancy - Transitional Supports - Moving Costs | G60: Goods | I60: FFS | K60: 4000
A61: Tufts-UMMH | B61: Massachusetts Coalition for the Homeless Housing Partnership | C61: General Flex Funding | D61: Pre-Tenancy – Individual | E61: Pre-Tenancy - Transitional Supports - Household Furniture | G61: Goods | I61: FFS | K61: 44000
A62: Tufts-UMMH | B62: Massachusetts Coalition for the Homeless Housing Partnership | C62: Transportation | D62: Tenancy Sustaining – Individual | E62: Tenancy - Private Transportation | G62: Goods | I62: FFS | K62: 652
A63: Tufts-UMMH | B63: Massachusetts Coalition for the Homeless Housing Partnership | C63: General Flex Funding | D63: Tenancy Sustaining – Individual | E63: Home Modifications - Asthma Interventions | F63: Asthma | G63: Goods | I63: FFS | K63: 22500
A64: Tufts-UMMH | B64: Massachusetts Coalition for the Homeless Housing Partnership | C64: General Flex Funding | D64: Tenancy Sustaining – Individual | E64: Tenancy Sustaining Supports - Stabilization Services & Goods | F64: 55 Furniture and Material Goods | G64: Goods | I64: FFS | K64: 44000
A65: Tufts-UMMH | B65: Massachusetts Coalition for the Homeless Housing Partnership | C65: General Flex Funding | D65: Home Modification | E65: Home Modifications - Physical Adaptations | F65: 20 Adaptations | G65: Goods | I65: FFS | K65: 50000
A66: Tufts-UMMH | B66: Open Sky Housing Assistance Program | C66: General Flex Funding | D66: Pre-Tenancy – Individual | E66: Pre-Tenancy - Individual Supports | F66: Case Manager | G66: Services | H66: 2.5 | I66: Prospective Lump Sum | K66: 147452.5
A67: Tufts-UMMH | B67: Open Sky Housing Assistance Program | C67: General Flex Funding | D67: Tenancy Sustaining – Individual | E67: Tenancy Sustaining Supports - Prevention Services & Goods | F67: Case Manager | G67: Services | H67: 2.5 | I67: Prospective Lump Sum | K67: 147452.5
A68: Tufts-UMMH | B68: Open Sky Housing Assistance Program | C68: General Flex Funding | D68: Pre-Tenancy – Transitional | E68: Pre-Tenancy - Transitional Supports - First/Last/Security | F68: Manager | G68: Services | H68: 0.727 | I68: Prospective Lump Sum | K68: 124275.561
A69: Tufts-UMMH | B69: Open Sky Housing Assistance Program | C69: General Flex Funding | D69: Pre-Tenancy – Transitional | E69: Pre-Tenancy - Transitional Supports - Moving Costs | F69: Program Manager | G69: Services | H69: 0.236075 | I69: Prospective Lump Sum | K69: 25323.371
A70: Tufts-UMMH | B70: Open Sky Housing Assistance Program | C70: General Flex Funding | D70: Pre-Tenancy – Transitional | E70: Pre-Tenancy - Transitional Supports - First/Last/Security | F70: Rent and Security Deposits | G70: Goods | I70: FFS | K70: 60000
A71: Tufts-UMMH | B71: Open Sky Housing Assistance Program | C71: General Flex Funding | D71: Tenancy Sustaining – Individual | E71: Tenancy Sustaining Supports - Prevention Services & Goods | F71: Utility Costs | G71: Goods | I71: FFS | K71: 14000
A72: Tufts-UMMH | B72: Open Sky Housing Assistance Program | C72: General Flex Funding | D72: Pre-Tenancy – Transitional | E72: Pre-Tenancy - Transitional Supports - Moving Costs | F72: Moving Supplies | G72: Goods | I72: FFS | K72: 15000
A73: Tufts-UMMH | B73: Open Sky Housing Assistance Program | C73: General Flex Funding | D73: Pre-Tenancy – Transitional | E73: Pre-Tenancy - Transitional Supports - Other | F73: Member Documentation | G73: Goods | I73: FFS | K73: 6000
A74: Tufts-UMMH | B74: Open Sky Housing Assistance Program | C74: General Flex Funding | D74: Pre-Tenancy – Transitional | E74: Pre-Tenancy - Transitional Supports - Other | F74: Storage Fees for Members | G74: Goods | I74: FFS | K74: 6000
A75: Tufts-UMMH | B75: Open Sky Housing Assistance Program | C75: General Flex Funding | D75: Pre-Tenancy – Transitional | E75: Pre-Tenancy - Transitional Supports - Household Furniture | F75: Furniture | G75: Goods | I75: FFS | K75: 10000
A76: Tufts-UMMH | B76: Open Sky Housing Assistance Program | C76: General Flex Funding | D76: Pre-Tenancy – Transitional | E76: Pre-Tenancy - Transitional Supports - Household Furniture | F76: Microwaves | G76: Goods | I76: FFS | K76: 3000
A77: Tufts-UMMH | B77: Open Sky Housing Assistance Program | C77: General Flex Funding | D77: Tenancy Sustaining – Individual | E77: Tenancy Sustaining Supports - Stabilization Services & Goods | F77: AC Units | G77: Goods | I77: FFS | K77: 8000
A78: Tufts-UMMH | B78: Open Sky Housing Assistance Program | C78: General Flex Funding | D78: Tenancy Sustaining – Individual | E78: Tenancy Sustaining Supports - Stabilization Services & Goods | F78: Household Supplies | G78: Goods | I78: FFS | K78: 6000
A79: Tufts-UMMH | B79: Open Sky Housing Assistance Program | C79: General Flex Funding | D79: Tenancy Sustaining – Individual | E79: Tenancy Sustaining Supports - Stabilization Services & Goods | F79: Vaccuums | G79: Goods | I79: FFS | K79: 2000
A80: Tufts-UMMH | B80: Open Sky Housing Assistance Program | C80: General Flex Funding | D80: Tenancy Sustaining – Individual | E80: Tenancy Sustaining Supports - Stabilization Services & Goods | G80: Goods | I80: FFS | K80: 2250
A81: WellSense-BACO | B81: H001 - Metro Housing Boston Housing Program | C81: General Flex Funding | D81: Pre-Tenancy – Individual | E81: Pre-Tenancy - Individual Supports | G81: Services | H81: 0.5 | I81: FFS | K81: 32403.84
A82: WellSense-BACO | B82: H001 - Metro Housing Boston Housing Program | C82: General Flex Funding | D82: Pre-Tenancy – Transitional | E82: Pre-Tenancy - Transitional Supports - First/Last/Security | G82: Goods | I82: FFS | K82: 32000
A83: WellSense-BACO | B83: H001 - Metro Housing Boston Housing Program | C83: General Flex Funding | D83: Pre-Tenancy – Transitional | E83: Pre-Tenancy - Transitional Supports - Moving Costs | G83: Goods | I83: FFS | K83: 4600
A84: WellSense-BACO | B84: H001 - Metro Housing Boston Housing Program | C84: General Flex Funding | D84: Pre-Tenancy – Transitional | E84: Pre-Tenancy - Transitional Supports - Household Furniture | G84: Goods | I84: FFS | K84: 15000
A85: WellSense-BACO | B85: H001 - Metro Housing Boston Housing Program | C85: General Flex Funding | D85: Pre-Tenancy – Transitional | E85: Pre-Tenancy - Transitional Supports - Other | F85: Back utilities, utility deposits, costs for filing applications, obtaining and correcting needed documentation (under $500) | G85: Goods | I85: FFS | K85: 3750
A86: WellSense-BACO | B86: H001 - Metro Housing Boston Housing Program | C86: General Flex Funding | D86: Tenancy Sustaining – Individual | E86: Tenancy Sustaining Supports - Prevention Services & Goods | G86: Services | H86: 0.25 | I86: FFS | K86: 16201.92
A87: WellSense-BACO | B87: H001 - Metro Housing Boston Housing Program | C87: General Flex Funding | D87: Tenancy Sustaining – Individual | E87: Tenancy Sustaining Supports - Stabilization Services & Goods | G87: Services | H87: 0.25 | I87: FFS | K87: 16201.92
A88: WellSense-BACO | B88: H001 - Metro Housing Boston Housing Program | C88: General Flex Funding | D88: Home Modification | E88: Home Modifications - Asthma Interventions | G88: Goods | I88: FFS | K88: 2000
A89: WellSense-BACO | B89: H001 - Metro Housing Boston Housing Program | C89: General Flex Funding | D89: Home Modification | E89: Home Modifications - Physical Adaptations | G89: Goods | I89: FFS | K89: 7000
A90: WellSense-BACO | B90: H001 - Metro Housing Boston Housing Program | C90: General Flex Funding | D90: Home Modification | E90: Home Modifications - Other | F90: Appliances, Pest Management | G90: Goods | I90: FFS | K90: 1000
A91: WellSense-BACO | B91: H001 - Metro Housing Boston Housing Program | C91: Transportation | D91: Pre-Tenancy – Individual | E91: Tenancy - Private Transportation | G91: Goods | I91: FFS | K91: 500
A92: WellSense-BACO | B92: H001 - Metro Housing Boston Housing Program | C92: Transportation | D92: Pre-Tenancy – Individual | E92: Tenancy - Public Transportation | G92: Goods | I92: FFS | K92: 500
A93: WellSense-BACO | B93: H002- MA Coalition for the Homeless Housing Program | C93: General Flex Funding | D93: Pre-Tenancy – Individual | E93: Pre-Tenancy - Individual Supports | G93: Services | H93: 0.5 | I93: FFS | K93: 42957.225
A94: WellSense-BACO | B94: H002- MA Coalition for the Homeless Housing Program | C94: General Flex Funding | D94: Pre-Tenancy – Transitional | E94: Pre-Tenancy - Transitional Supports - First/Last/Security | G94: Goods | I94: FFS | K94: 20465
A95: WellSense-BACO | B95: H002- MA Coalition for the Homeless Housing Program | C95: General Flex Funding | D95: Pre-Tenancy – Transitional | E95: Pre-Tenancy - Transitional Supports - Moving Costs | G95: Goods | I95: FFS | K95: 4000
A96: WellSense-BACO | B96: H002- MA Coalition for the Homeless Housing Program | C96: General Flex Funding | D96: Pre-Tenancy – Transitional | E96: Pre-Tenancy - Transitional Supports - Household Furniture | G96: Goods | I96: FFS | K96: 14820.55
A97: WellSense-BACO | B97: H002- MA Coalition for the Homeless Housing Program | C97: General Flex Funding | D97: Pre-Tenancy – Transitional | E97: Pre-Tenancy - Transitional Supports - Other | F97: Back utilities, utility deposits, costs for filing applications, obtaining and correcting needed documentation (under $500) | G97: Goods | I97: FFS | K97: 1000
A98: WellSense-BACO | B98: H002- MA Coalition for the Homeless Housing Program | C98: General Flex Funding | D98: Tenancy Sustaining – Individual | E98: Tenancy Sustaining Supports - Prevention Services & Goods | G98: Services | H98: 0.25 | I98: FFS | K98: 21478.6125
A99: WellSense-BACO | B99: H002- MA Coalition for the Homeless Housing Program | C99: General Flex Funding | D99: Tenancy Sustaining – Individual | E99: Tenancy Sustaining Supports - Stabilization Services & Goods | G99: Services | H99: 0.25 | I99: FFS | K99: 21478.6125
A100: WellSense-BACO | B100: H002- MA Coalition for the Homeless Housing Program | C100: General Flex Funding | D100: Home Modification | E100: Home Modifications - Asthma Interventions | G100: Goods | I100: FFS | K100: 12400
A101: WellSense-BACO | B101: H002- MA Coalition for the Homeless Housing Program | C101: General Flex Funding | D101: Home Modification | E101: Home Modifications - Physical Adaptations | G101: Goods | I101: FFS | K101: 12400
A102: WellSense-BACO | B102: H002- MA Coalition for the Homeless Housing Program | C102: General Flex Funding | D102: Home Modification | E102: Home Modifications - Other | F102: Appliances, Pest Management | G102: Goods | I102: FFS | K102: 317.17
A103: WellSense-BACO | B103: H002- MA Coalition for the Homeless Housing Program | C103: Transportation | D103: Pre-Tenancy – Individual | E103: Tenancy - Private Transportation | G103: Goods | I103: FFS | K103: 125
A104: WellSense-BACO | B104: H002- MA Coalition for the Homeless Housing Program | C104: Transportation | D104: Pre-Tenancy – Individual | E104: Tenancy - Public Transportation | G104: Goods | I104: FFS | K104: 125
A105: WellSense-BACO | B105: H003-Quincy Community Action Programs Housing Program | C105: General Flex Funding | D105: Pre-Tenancy – Individual | E105: Pre-Tenancy - Individual Supports | G105: Services | H105: 0.5 | I105: FFS | K105: 50600
A106: WellSense-BACO | B106: H003-Quincy Community Action Programs Housing Program | C106: General Flex Funding | D106: Pre-Tenancy – Transitional | E106: Pre-Tenancy - Transitional Supports - First/Last/Security | G106: Goods | I106: FFS | K106: 15000
A107: WellSense-BACO | B107: H003-Quincy Community Action Programs Housing Program | C107: General Flex Funding | D107: Pre-Tenancy – Transitional | E107: Pre-Tenancy - Transitional Supports - Moving Costs | G107: Goods | I107: FFS | K107: 2700
A108: WellSense-BACO | B108: H003-Quincy Community Action Programs Housing Program | C108: General Flex Funding | D108: Pre-Tenancy – Transitional | E108: Pre-Tenancy - Transitional Supports - Household Furniture | G108: Goods | I108: FFS | K108: 1948
A109: WellSense-BACO | B109: H003-Quincy Community Action Programs Housing Program | C109: General Flex Funding | D109: Pre-Tenancy – Transitional | E109: Pre-Tenancy - Transitional Supports - Other | F109: Back utilities, utility deposits, costs for filing applications, obtaining and correcting needed documentation (under $500) | G109: Goods | I109: FFS | K109: 200
A110: WellSense-BACO | B110: H003-Quincy Community Action Programs Housing Program | C110: General Flex Funding | D110: Tenancy Sustaining – Individual | E110: Tenancy Sustaining Supports - Prevention Services & Goods | G110: Services | H110: 0.25 | I110: FFS | K110: 25300
A111: WellSense-BACO | B111: H003-Quincy Community Action Programs Housing Program | C111: General Flex Funding | D111: Tenancy Sustaining – Individual | E111: Tenancy Sustaining Supports - Stabilization Services & Goods | G111: Services | H111: 0.25 | I111: FFS | K111: 25300
A112: WellSense-BACO | B112: H003-Quincy Community Action Programs Housing Program | C112: General Flex Funding | D112: Home Modification | E112: Home Modifications - Asthma Interventions | G112: Goods | I112: FFS | K112: 200
A113: WellSense-BACO | B113: H003-Quincy Community Action Programs Housing Program | C113: General Flex Funding | D113: Home Modification | E113: Home Modifications - Physical Adaptations | G113: Goods | I113: FFS | K113: 200
A114: WellSense-BACO | B114: H003-Quincy Community Action Programs Housing Program | C114: General Flex Funding | D114: Home Modification | E114: Home Modifications - Other | F114: Appliances, Pest Management | G114: Goods | I114: FFS | K114: 200.82
A115: WellSense-BACO | B115: H004-Boston Healthcare for the Homeless Housing Program | C115: General Flex Funding | D115: Pre-Tenancy – Individual | E115: Pre-Tenancy - Individual Supports | G115: Services | H115: 0.8 | I115: FFS | K115: 133080
A116: WellSense-BACO | B116: H004-Boston Healthcare for the Homeless Housing Program | C116: General Flex Funding | D116: Pre-Tenancy – Transitional | E116: Pre-Tenancy - Transitional Supports - First/Last/Security | G116: Goods | I116: FFS | K116: 92377
A117: WellSense-BACO | B117: H004-Boston Healthcare for the Homeless Housing Program | C117: General Flex Funding | D117: Pre-Tenancy – Transitional | E117: Pre-Tenancy - Transitional Supports - Moving Costs | G117: Goods | I117: FFS | K117: 4000
A118: WellSense-BACO | B118: H004-Boston Healthcare for the Homeless Housing Program | C118: General Flex Funding | D118: Pre-Tenancy – Transitional | E118: Pre-Tenancy - Transitional Supports - Household Furniture | G118: Goods | I118: FFS | K118: 2000
A119: WellSense-BACO | B119: H004-Boston Healthcare for the Homeless Housing Program | C119: General Flex Funding | D119: Pre-Tenancy – Transitional | E119: Pre-Tenancy - Transitional Supports - Other | F119: Back utilities, utility deposits, costs for filing applications, obtaining and correcting needed documentation (under $500) | G119: Goods | I119: FFS | K119: 500
A120: WellSense-BACO | B120: H004-Boston Healthcare for the Homeless Housing Program | C120: General Flex Funding | D120: Tenancy Sustaining – Individual | E120: Tenancy Sustaining Supports - Prevention Services & Goods | G120: Services | H120: 0.2 | I120: FFS | K120: 9516
A121: WellSense-BACO | B121: H004-Boston Healthcare for the Homeless Housing Program | C121: General Flex Funding | D121: Tenancy Sustaining – Individual | E121: Tenancy Sustaining Supports - Stabilization Services & Goods | G121: Services | H121: 0.2 | I121: FFS | K121: 9516
A122: WellSense-BACO | B122: H004-Boston Healthcare for the Homeless Housing Program | C122: General Flex Funding | D122: Home Modification | E122: Home Modifications - Asthma Interventions | G122: Goods | I122: FFS | K122: 400
A123: WellSense-BACO | B123: H004-Boston Healthcare for the Homeless Housing Program | C123: General Flex Funding | D123: Home Modification | E123: Home Modifications - Physical Adaptations | G123: Goods | I123: FFS | K123: 2000
A124: WellSense-BACO | B124: H004-Boston Healthcare for the Homeless Housing Program | C124: General Flex Funding | D124: Home Modification | E124: Home Modifications - Other | F124: Appliances, Pest Management | G124: Goods | I124: FFS | K124: 100
A125: WellSense-BACO | B125: H004-Boston Healthcare for the Homeless Housing Program | C125: Transportation | D125: Pre-Tenancy – Individual | E125: Tenancy - Private Transportation | G125: Goods | I125: FFS | K125: 75
A126: WellSense-BACO | B126: H004-Boston Healthcare for the Homeless Housing Program | C126: Transportation | D126: Pre-Tenancy – Individual | E126: Tenancy - Public Transportation | G126: Goods | I126: FFS | K126: 200
A127: WellSense-BACO | B127: H006 - WayFinders Housing Program | C127: General Flex Funding | D127: Pre-Tenancy – Individual | E127: Pre-Tenancy - Individual Supports | G127: Services | H127: 0.55 | I127: FFS | K127: 48815.84
A128: WellSense-BACO | B128: H006 - WayFinders Housing Program | C128: General Flex Funding | D128: Pre-Tenancy – Transitional | E128: Pre-Tenancy - Transitional Supports - First/Last/Security | G128: Goods | I128: FFS | K128: 20000
A129: WellSense-BACO | B129: H006 - WayFinders Housing Program | C129: General Flex Funding | D129: Pre-Tenancy – Transitional | E129: Pre-Tenancy - Transitional Supports - Moving Costs | G129: Goods | I129: FFS | K129: 3200
A130: WellSense-BACO | B130: H006 - WayFinders Housing Program | C130: General Flex Funding | D130: Pre-Tenancy – Transitional | E130: Pre-Tenancy - Transitional Supports - Household Furniture | G130: Goods | I130: FFS | K130: 3000
A131: WellSense-BACO | B131: H006 - WayFinders Housing Program | C131: General Flex Funding | D131: Pre-Tenancy – Transitional | E131: Pre-Tenancy - Transitional Supports - Other | F131: Back utilities, utility deposits, costs for filing applications, obtaining and correcting needed documentation (under $500) | G131: Goods | I131: FFS | K131: 700
A132: WellSense-BACO | B132: H006 - WayFinders Housing Program | C132: General Flex Funding | D132: Tenancy Sustaining – Individual | E132: Tenancy Sustaining Supports - Prevention Services & Goods | G132: Services | H132: 0.25 | I132: FFS | K132: 27148.2
A133: WellSense-BACO | B133: H006 - WayFinders Housing Program | C133: General Flex Funding | D133: Tenancy Sustaining – Individual | E133: Tenancy Sustaining Supports - Stabilization Services & Goods | G133: Services | H133: 0.25 | I133: FFS | K133: 27148.2
A134: WellSense-BACO | B134: H006 - WayFinders Housing Program | C134: General Flex Funding | D134: Home Modification | E134: Home Modifications - Asthma Interventions | G134: Goods | I134: FFS | K134: 650
A135: WellSense-BACO | B135: H006 - WayFinders Housing Program | C135: General Flex Funding | D135: Home Modification | E135: Home Modifications - Physical Adaptations | G135: Goods | I135: FFS | K135: 700
A136: WellSense-BACO | B136: H006 - WayFinders Housing Program | C136: General Flex Funding | D136: Home Modification | E136: Home Modifications - Other | F136: Appliances, Pest Management | G136: Goods | I136: FFS | K136: 400
A137: WellSense-BACO | B137: H006 - WayFinders Housing Program | C137: Transportation | D137: Pre-Tenancy – Individual | E137: Tenancy - Private Transportation | G137: Goods | I137: FFS | K137: 200
A138: WellSense-BACO | B138: H006 - WayFinders Housing Program | C138: Transportation | D138: Pre-Tenancy – Individual | E138: Tenancy - Public Transportation | G138: Goods | I138: FFS | K138: 50
A139: WellSense-BACO | B139: H007 - Community Counseling of Bristol County Housing Program | C139: General Flex Funding | D139: Pre-Tenancy – Individual | E139: Pre-Tenancy - Individual Supports | G139: Services | H139: 3.17 | I139: FFS | K139: 222975.26
A140: WellSense-BACO | B140: H007 - Community Counseling of Bristol County Housing Program | C140: General Flex Funding | D140: Pre-Tenancy – Transitional | E140: Pre-Tenancy - Transitional Supports - First/Last/Security | G140: Goods | I140: FFS | K140: 198000
A141: WellSense-BACO | B141: H007 - Community Counseling of Bristol County Housing Program | C141: General Flex Funding | D141: Pre-Tenancy – Transitional | E141: Pre-Tenancy - Transitional Supports - Moving Costs | G141: Goods | I141: FFS | K141: 19800
A142: WellSense-BACO | B142: H007 - Community Counseling of Bristol County Housing Program | C142: General Flex Funding | D142: Pre-Tenancy – Transitional | E142: Pre-Tenancy - Transitional Supports - Household Furniture | G142: Goods | I142: FFS | K142: 88000
A143: WellSense-BACO | B143: H007 - Community Counseling of Bristol County Housing Program | C143: General Flex Funding | D143: Pre-Tenancy – Transitional | E143: Pre-Tenancy - Transitional Supports - Other | F143: Back utilities, utility deposits, costs for filing applications, obtaining and correcting needed documentation (under $500) | G143: Goods | I143: FFS | K143: 34040.5
A144: WellSense-BACO | B144: H007 - Community Counseling of Bristol County Housing Program | C144: General Flex Funding | D144: Tenancy Sustaining – Individual | E144: Tenancy Sustaining Supports - Prevention Services & Goods | G144: Services | H144: 0.5 | I144: FFS | K144: 35000
A145: WellSense-BACO | B145: H007 - Community Counseling of Bristol County Housing Program | C145: General Flex Funding | D145: Tenancy Sustaining – Individual | E145: Tenancy Sustaining Supports - Stabilization Services & Goods | G145: Services | H145: 0.5 | I145: FFS | K145: 35000
A146: WellSense-BACO | B146: H007 - Community Counseling of Bristol County Housing Program | C146: General Flex Funding | D146: Home Modification | E146: Home Modifications - Asthma Interventions | G146: Goods | I146: FFS | K146: 6600
A147: WellSense-BACO | B147: H007 - Community Counseling of Bristol County Housing Program | C147: General Flex Funding | D147: Home Modification | E147: Home Modifications - Physical Adaptations | G147: Goods | I147: FFS | K147: 1899.85
A148: WellSense-BACO | B148: H007 - Community Counseling of Bristol County Housing Program | C148: General Flex Funding | D148: Home Modification | E148: Home Modifications - Other | F148: Appliances, Pest Management | G148: Goods | I148: FFS | K148: 1899.86
A149: WellSense-BACO | B149: H007 - Community Counseling of Bristol County Housing Program | C149: Transportation | D149: Pre-Tenancy – Individual | E149: Tenancy - Private Transportation | G149: Goods | I149: FFS | K149: 250
A150: WellSense-BACO | B150: H007 - Community Counseling of Bristol County Housing Program | C150: Transportation | D150: Pre-Tenancy – Individual | E150: Tenancy - Public Transportation | G150: Goods | I150: FFS | K150: 250
A151: WellSense-BACO | B151: H008-Eliot Community Human Services Housing Program | C151: General Flex Funding | D151: Pre-Tenancy – Individual | E151: Pre-Tenancy - Individual Supports | G151: Services | H151: 2.25 | I151: FFS | K151: 217598
A152: WellSense-BACO | B152: H008-Eliot Community Human Services Housing Program | C152: General Flex Funding | D152: Pre-Tenancy – Transitional | E152: Pre-Tenancy - Transitional Supports - First/Last/Security | G152: Goods | I152: FFS | K152: 253500
A153: WellSense-BACO | B153: H008-Eliot Community Human Services Housing Program | C153: General Flex Funding | D153: Pre-Tenancy – Transitional | E153: Pre-Tenancy - Transitional Supports - Moving Costs | G153: Goods | I153: FFS | K153: 15000
A154: WellSense-BACO | B154: H008-Eliot Community Human Services Housing Program | C154: General Flex Funding | D154: Pre-Tenancy – Transitional | E154: Pre-Tenancy - Transitional Supports - Household Furniture | G154: Goods | I154: FFS | K154: 58000
A155: WellSense-BACO | B155: H008-Eliot Community Human Services Housing Program | C155: General Flex Funding | D155: Pre-Tenancy – Transitional | E155: Pre-Tenancy - Transitional Supports - Other | F155: Back utilities, utility deposits, costs for filing applications, obtaining and correcting needed documentation (under $500) | G155: Goods | I155: FFS | K155: 6000
A156: WellSense-BACO | B156: H008-Eliot Community Human Services Housing Program | C156: General Flex Funding | D156: Tenancy Sustaining – Individual | E156: Tenancy Sustaining Supports - Prevention Services & Goods | G156: Services | H156: 1.125 | I156: FFS | K156: 108799
A157: WellSense-BACO | B157: H008-Eliot Community Human Services Housing Program | C157: General Flex Funding | D157: Tenancy Sustaining – Individual | E157: Tenancy Sustaining Supports - Stabilization Services & Goods | G157: Services | H157: =2.25/2 -> 1.125 | I157: FFS | K157: 108799
A158: WellSense-BACO | B158: H008-Eliot Community Human Services Housing Program | C158: General Flex Funding | D158: Home Modification | E158: Home Modifications - Asthma Interventions | G158: Goods | I158: FFS | K158: 1500
A159: WellSense-BACO | B159: H008-Eliot Community Human Services Housing Program | C159: General Flex Funding | D159: Home Modification | E159: Home Modifications - Physical Adaptations | G159: Goods | I159: FFS | K159: 5500
A160: WellSense-BACO | B160: H008-Eliot Community Human Services Housing Program | C160: General Flex Funding | D160: Home Modification | E160: Home Modifications - Other | F160: Appliances, Pest Management | G160: Goods | I160: FFS | K160: 4847.3
A161: WellSense-BACO | B161: H008-Eliot Community Human Services Housing Program | C161: Transportation | D161: Pre-Tenancy – Individual | E161: Tenancy - Private Transportation | G161: Goods | I161: FFS | K161: 500
A162: WellSense-BACO | B162: H008-Eliot Community Human Services Housing Program | C162: Transportation | D162: Pre-Tenancy – Individual | E162: Tenancy - Public Transportation | G162: Goods | I162: FFS | K162: 500
A163: WellSense-BACO | B163: H009- Housing Assistance Corporation Housing Program | C163: General Flex Funding | D163: Pre-Tenancy – Individual | E163: Pre-Tenancy - Individual Supports | G163: Services | H163: 0.65 | I163: FFS | K163: 44106
A164: WellSense-BACO | B164: H009- Housing Assistance Corporation Housing Program | C164: General Flex Funding | D164: Pre-Tenancy – Transitional | E164: Pre-Tenancy - Transitional Supports - First/Last/Security | G164: Goods | I164: FFS | K164: 30000
A165: WellSense-BACO | B165: H009- Housing Assistance Corporation Housing Program | C165: General Flex Funding | D165: Pre-Tenancy – Transitional | E165: Pre-Tenancy - Transitional Supports - Moving Costs | G165: Goods | I165: FFS | K165: 5000
A166: WellSense-BACO | B166: H009- Housing Assistance Corporation Housing Program | C166: General Flex Funding | D166: Pre-Tenancy – Transitional | E166: Pre-Tenancy - Transitional Supports - Household Furniture | G166: Goods | I166: FFS | K166: 3000
A167: WellSense-BACO | B167: H009- Housing Assistance Corporation Housing Program | C167: General Flex Funding | D167: Pre-Tenancy – Transitional | E167: Pre-Tenancy - Transitional Supports - Other | F167: Back utilities, utility deposits, costs for filing applications, obtaining and correcting needed documentation (under $500) | G167: Goods | I167: FFS | K167: 1000
A168: WellSense-BACO | B168: H009- Housing Assistance Corporation Housing Program | C168: General Flex Funding | D168: Tenancy Sustaining – Individual | E168: Tenancy Sustaining Supports - Prevention Services & Goods | G168: Services | H168: 0.25 | I168: FFS | K168: 19622
A169: WellSense-BACO | B169: H009- Housing Assistance Corporation Housing Program | C169: General Flex Funding | D169: Tenancy Sustaining – Individual | E169: Tenancy Sustaining Supports - Stabilization Services & Goods | G169: Services | H169: 0.25 | I169: FFS | K169: 19622
A170: WellSense-BACO | B170: H009- Housing Assistance Corporation Housing Program | C170: General Flex Funding | D170: Home Modification | E170: Home Modifications - Asthma Interventions | G170: Goods | I170: FFS | K170: 1000
A171: WellSense-BACO | B171: H009- Housing Assistance Corporation Housing Program | C171: General Flex Funding | D171: Home Modification | E171: Home Modifications - Physical Adaptations | G171: Goods | I171: FFS | K171: 1000
A172: WellSense-BACO | B172: H009- Housing Assistance Corporation Housing Program | C172: General Flex Funding | D172: Home Modification | E172: Home Modifications - Other | F172: Appliances, Pest Management | G172: Goods | I172: FFS | K172: 2000
A173: WellSense-BACO | B173: H0010-Medical Legal Partnership Boston | C173: General Flex Funding | D173: Pre-Tenancy – Individual | E173: Pre-Tenancy - Individual Supports | G173: Services | H173: 0.25 | I173: FFS | K173: 47500
A174: WellSense-BACO | B174: H0010-Medical Legal Partnership Boston | C174: General Flex Funding | D174: Tenancy Sustaining – Individual | E174: Tenancy Sustaining Supports - Prevention Services & Goods | G174: Services | H174: 0.125 | I174: FFS | K174: 23750
A175: WellSense-BACO | B175: H0010-Medical Legal Partnership Boston | C175: General Flex Funding | D175: Tenancy Sustaining – Individual | E175: Tenancy Sustaining Supports - Stabilization Services & Goods | G175: Services | H175: 0.125 | I175: FFS | K175: 23750
A176: WellSense-BACO | B176: N001 -Attleboro YMCA Nutrition Program | C176: General Flex Funding | D176: Nutrition Sustaining Support | E176: Food Boxes | G176: Goods | I176: FFS | K176: 38400
A177: WellSense-BACO | B177: N001 -Attleboro YMCA Nutrition Program | C177: General Flex Funding | D177: Nutrition Sustaining Support | E177: Home Delivered Meals | G177: Goods | I177: FFS | K177: 50847
A178: WellSense-BACO | B178: N001 -Attleboro YMCA Nutrition Program | C178: General Flex Funding | D178: Nutrition Sustaining Support | E178: Home Delivered Meals | G178: Services | H178: 0.5 | I178: FFS | K178: 60378
A179: WellSense-BACO | B179: N002 -Community Servings Nutrition Program | C179: General Flex Funding | D179: Nutrition Sustaining Support | E179: Medically Tailored Meals (MTM) | G179: Goods | I179: FFS | K179: 196778.4
A180: WellSense-BACO | B180: N002 -Community Servings Nutrition Program | C180: General Flex Funding | D180: Nutrition Sustaining Support | E180: Medically Tailored Meals (MTM) | G180: Services | H180: 0.2 | I180: FFS | K180: 37481.6
A181: WellSense-BACO | B181: N003-WellSpring Nutrition Program | C181: General Flex Funding | D181: Nutrition Sustaining Support | E181: Home Delivered Meals | G181: Goods | I181: FFS | K181: 131232.5
A182: WellSense-BACO | B182: N003-WellSpring Nutrition Program | C182: General Flex Funding | D182: Nutrition Sustaining Support | E182: Home Delivered Meals | G182: Services | H182: 1.5 | I182: FFS | K182: 68467
A183: WellSense-BACO | B183: N004-The Guild Nutrition Program | C183: General Flex Funding | D183: Nutrition Sustaining Support | E183: Food Boxes | G183: Goods | I183: FFS | K183: 122800
A184: WellSense-BACO | B184: N004-The Guild Nutrition Program | C184: General Flex Funding | D184: Nutrition Sustaining Support | E184: Food Vouchers | G184: Goods | I184: FFS | K184: 277068
A185: WellSense-BACO | B185: N004-The Guild Nutrition Program | C185: General Flex Funding | D185: Nutrition Sustaining Support | E185: Food Boxes | G185: Services | H185: 2.3 | I185: FFS | K185: 220686.92
A186: WellSense-BACO | B186: N005 - Project Bread Nutrition Program | C186: General Flex Funding | D186: Nutrition Sustaining Support | E186: Food Vouchers | G186: Goods | I186: FFS | K186: 929280
A187: WellSense-BACO | B187: N005 - Project Bread Nutrition Program | C187: General Flex Funding | D187: Nutrition Sustaining Support | E187: Nutrition Education | G187: Services | H187: 0.15 | I187: FFS | K187: 25025
A188: WellSense-BACO | B188: N005 - Project Bread Nutrition Program | C188: Nutrition Kitchen Supplies | D188: Nutrition Sustaining Support | E188: Nutrition Kitchen Supplies | G188: Goods | I188: FFS | K188: 582720
A189: WellSense-BACO | B189: N005 - Project Bread Nutrition Program | C189: General Flex Funding | D189: Nutrition Sustaining Support | E189: Food Vouchers | G189: Services | H189: 4.15 | I189: FFS | K189: 848000
A190: WellSense-BCH | B190: HSP_FamilyAid_BCH | C190: General Flex Funding | D190: Pre-Tenancy – Individual | E190: Pre-Tenancy - Individual Supports | G190: Services | H190: 2.41 | I190: Prospective Lump Sum | K190: 206763.3681
A191: WellSense-BCH | B191: HSP_FamilyAid_BCH | C191: General Flex Funding | D191: Pre-Tenancy – Individual | E191: Pre-Tenancy - Individual Supports | G191: Services | H191: 0.2 | I191: ACO-Delivered | K191: 17400
A192: WellSense-BCH | B192: HSP_FamilyAid_BCH | C192: General Flex Funding | D192: Tenancy Sustaining – Individual | E192: Tenancy Sustaining Supports - Prevention Services & Goods | G192: Services | H192: 3 | I192: Prospective Lump Sum | K192: 585829.543
A193: WellSense-BCH | B193: HSP_FamilyAid_BCH | C193: General Flex Funding | D193: Tenancy Sustaining – Individual | E193: Tenancy Sustaining Supports - Prevention Services & Goods | G193: Services | H193: 0.4 | I193: ACO-Delivered | K193: 49300
A194: WellSense-BCH | B194: HSP_FamilyAid_BCH | C194: General Flex Funding | D194: Tenancy Sustaining – Individual | E194: Tenancy Sustaining Supports - Stabilization Services & Goods | G194: Services | H194: 3 | I194: Prospective Lump Sum | K194: 585829.543
A195: WellSense-BCH | B195: HSP_FamilyAid_BCH | C195: General Flex Funding | D195: Tenancy Sustaining – Individual | E195: Tenancy Sustaining Supports - Stabilization Services & Goods | G195: Services | H195: 0.4 | I195: ACO-Delivered | K195: 49300
A196: WellSense-BCH | B196: HSP_FamilyAid_BCH | C196: General Flex Funding | D196: Pre-Tenancy – Transitional | E196: Pre-Tenancy - Transitional Supports - First/Last/Security | G196: Services | H196: 0.05 | I196: FFS | K196: 60000
A197: WellSense-BCH | B197: HSP_FamilyAid_BCH | C197: General Flex Funding | D197: Pre-Tenancy – Transitional | E197: Pre-Tenancy - Transitional Supports - Moving Costs | G197: Services | H197: 0.05 | I197: FFS | K197: 8000
A198: WellSense-BCH | B198: HSP_FamilyAid_BCH | C198: General Flex Funding | D198: Pre-Tenancy – Transitional | E198: Pre-Tenancy - Transitional Supports - Household Furniture | G198: Services | H198: 0.1 | I198: FFS | K198: 20000
A199: WellSense-BCH | B199: HSP_FamilyAid_BCH | C199: General Flex Funding | D199: Pre-Tenancy – Transitional | E199: Pre-Tenancy - Transitional Supports - Other | F199: E.g., back utilities, utility deposits (e.g., electricity, gas, heating fuel, water, sewer), costs for filing applications, obtaining and correcting needed documentation, pest eradication | G199: Services | H199: 0.1 | I199: FFS | K199: 1000
A200: WellSense-BCH | B200: HSP_FamilyAid_BCH | C200: General Flex Funding | D200: Home Modification | E200: Home Modifications - Physical Adaptations | G200: Services | H200: 0.1 | I200: FFS | K200: 2400
... 518 more rows

Sheet CY24 Contract Req Check (hidden)
A1: ACO Short | B1: Estimated Members Served | C1: Member Count | D1: % MC Projected Served | E1: Minimum 1% | F1: Δ b/w Estimated and Minimum | G1: Kid Member Count | H1: Percent of Kids in ACO | I1: Estimated Number of Kids Served | J1: Percent of Kids in Flex Program | K1: Roughly Portional | L1: Transportation Funding | M1: Kitchen Nutrition Supplies | N1: General FS Funding | O1: Total Budget | P1: Total FS Funding | Q1: % of Allocation Budgeted
A2: AHP-MGB | B2: =(SUMIF(#REF!,'CY24 Contract Req Check'!$A2,#REF!))+(SUMIF(#REF!,'CY24 Contract Req Check'!$A2,#REF!)) ->  | C2: 164340 | D2: =B2/C2 ->  | E2: =C2*0.01 -> 1643.4 | F2: =B2-E2 ->  | G2: 68969 | H2: =(G2/C2) -> 0.4196726299 | I2: =SUMIF(#REF!,'CY24 Contract Req Check'!$A2,#REF!) ->  | J2: =I2/B2 ->  | K2: =(H2-J2) ->  | L2: 2200.67 | M2: 462461.58 | N2: 6296630.99 | O2: =SUMIF(#REF!,'CY24 Contract Req Check'!A2,#REF!) ->  | P2: =SUM(L2:N2) -> 6761293.24 | Q2: =O2/P2 -> 
A3: FLN-Reliant | B3: =(SUMIF(#REF!,'CY24 Contract Req Check'!$A3,#REF!))+(SUMIF(#REF!,'CY24 Contract Req Check'!$A3,#REF!)) ->  | C3: 41398 | D3: =B3/C3 ->  | E3: 413.98 | F3: =B3-E3 ->  | G3: 21736 | H3: =(G3/C3) -> 0.5250495193 | I3: =SUMIF(#REF!,'CY24 Contract Req Check'!$A3,#REF!) ->  | J3: =I3/B3 ->  | K3: =(H3-J3) ->  | L3: 444.0038312 | M3: 115140.012 | N3: 1558067.028 | O3: =SUMIF(#REF!,'CY24 Contract Req Check'!A3,#REF!) ->  | P3: =SUM(L3:N3) -> 1673651.044 | Q3: =O3/P3 -> 
A4: FLN-Atrius | B4: =(SUMIF(#REF!,'CY24 Contract Req Check'!$A4,#REF!))+(SUMIF(#REF!,'CY24 Contract Req Check'!$A4,#REF!)) ->  | C4: 44797 | D4: =B4/C4 ->  | E4: 447.97 | G4: 19189 | H4: 0.4283545773 | I4: =SUMIF(#REF!,'CY24 Contract Req Check'!$A4,#REF!) ->  | L4: 587.6701998 | M4: 123523.3681 | N4: 1705738.152 | O4: =SUMIF(#REF!,'CY24 Contract Req Check'!A4,#REF!) ->  | P4: =SUM(L4:N4) -> 1829849.19
A5: FLN-Berkshire | B5: =(SUMIF(#REF!,'CY24 Contract Req Check'!$A5,#REF!))+(SUMIF(#REF!,'CY24 Contract Req Check'!$A5,#REF!)) ->  | C5: 21661 | E5: 216.61 | G5: 5414 | H5: 0.2499422926 | I5: =SUMIF(#REF!,'CY24 Contract Req Check'!$A5,#REF!) ->  | L5: 232.02 | M5: 62080.39855 | N5: 707817.0467 | O5: =SUMIF(#REF!,'CY24 Contract Req Check'!A5,#REF!) ->  | P5: 770129.4653
A6: HNE-Be Healthy | B6: =(SUMIF(#REF!,'CY24 Contract Req Check'!$A6,#REF!))+(SUMIF(#REF!,'CY24 Contract Req Check'!$A6,#REF!)) ->  | C6: 53673 | E6: 536.73 | G6: 20726 | H6: 0.3861531869 | I6: =SUMIF(#REF!,'CY24 Contract Req Check'!$A6,#REF!) ->  | L6: 849.6504474 | M6: 177835.37 | N6: 2268160.065 | O6: =SUMIF(#REF!,'CY24 Contract Req Check'!A6,#REF!) ->  | P6: 2446845.085
A7: Tufts-CHA | B7: =(SUMIF(#REF!,'CY24 Contract Req Check'!$A7,#REF!))+(SUMIF(#REF!,'CY24 Contract Req Check'!$A7,#REF!)) ->  | C7: 41179 | E7: 411.79 | G7: 17595 | H7: 0.4272808956 | I7: =SUMIF(#REF!,'CY24 Contract Req Check'!$A7,#REF!) ->  | L7: 568.2009038 | M7: 119250.3348 | N7: 1367985.33 | O7: =SUMIF(#REF!,'CY24 Contract Req Check'!A7,#REF!) ->  | P7: 1487803.866
A8: Tufts-UMMH | B8: =(SUMIF(#REF!,'CY24 Contract Req Check'!$A8,#REF!))+(SUMIF(#REF!,'CY24 Contract Req Check'!$A8,#REF!)) ->  | C8: 51445 | E8: 514.45 | G8: 18593 | H8: 0.3614151035 | I8: =SUMIF(#REF!,'CY24 Contract Req Check'!$A8,#REF!) ->  | L8: 652.0879834 | M8: 158144.9098 | N8: 2138491.895 | O8: =SUMIF(#REF!,'CY24 Contract Req Check'!A8,#REF!) ->  | P8: 2297288.892
A9: WellSense-BACO | B9: =(SUMIF(#REF!,'CY24 Contract Req Check'!$A9,#REF!))+(SUMIF(#REF!,'CY24 Contract Req Check'!$A9,#REF!)) ->  | C9: 163787 | E9: 1637.87 | G9: 58623 | H9: 0.3579221794 | I9: =SUMIF(#REF!,'CY24 Contract Req Check'!$A9,#REF!) ->  | L9: 2168.931987 | M9: 488402.8867 | N9: 5811901.31 | O9: =SUMIF(#REF!,'CY24 Contract Req Check'!A9,#REF!) ->  | P9: 6302473.129
A10: WellSense-BCH | B10: =(SUMIF(#REF!,'CY24 Contract Req Check'!$A10,#REF!))+(SUMIF(#REF!,'CY24 Contract Req Check'!$A10,#REF!)) ->  | C10: 136306 | D10: =B10/C10 ->  | E10: =C10*0.01 -> 1363.06 | F10: =B10-E10 ->  | G10: 126718 | H10: =(G10/C10) -> 0.9296582689 | I10: =SUMIF(#REF!,'CY24 Contract Req Check'!$A10,#REF!) ->  | J10: =I10/B10 ->  | K10: =(H10-J10) ->  | L10: 2001.573499 | M10: 419758.3998 | N10: 5274209.302 | O10: =SUMIF(#REF!,'CY24 Contract Req Check'!A10,#REF!) ->  | P10: =SUM(L10:N10) -> 5695969.276 | Q10: =O10/P10 -> 
A11: WellSense-BILHNP | B11: =(SUMIF(#REF!,'CY24 Contract Req Check'!$A11,#REF!))+(SUMIF(#REF!,'CY24 Contract Req Check'!$A11,#REF!)) ->  | C11: 82860 | E11: 828.6 | G11: 19724 | H11: 0.2380400676 | I11: =SUMIF(#REF!,'CY24 Contract Req Check'!$A11,#REF!) ->  | L11: 4000 | M11: 127000 | N11: 3443784.92 | O11: =SUMIF(#REF!,'CY24 Contract Req Check'!A11,#REF!) ->  | P11: 3574784.92
A12: WellSense-EBHNC | B12: =(SUMIF(#REF!,'CY24 Contract Req Check'!$A12,#REF!))+(SUMIF(#REF!,'CY24 Contract Req Check'!$A12,#REF!)) ->  | C12: 33369 | E12: 333.69 | G12: 17288 | H12: 0.5180856484 | I12: =SUMIF(#REF!,'CY24 Contract Req Check'!$A12,#REF!) ->  | L12: 444.0183443 | M12: 93412.22469 | N12: 1286026.148 | O12: =SUMIF(#REF!,'CY24 Contract Req Check'!A12,#REF!) ->  | P12: 1379882.391
A13: WellSense-Mercy | B13: =(SUMIF(#REF!,'CY24 Contract Req Check'!$A13,#REF!))+(SUMIF(#REF!,'CY24 Contract Req Check'!$A13,#REF!)) ->  | C13: 34902 | D13: =B13/C13 ->  | E13: =C13*0.01 -> 349.02 | F13: =B13-E13 ->  | G13: 13674 | H13: =(G13/C13) -> 0.3917827059 | I13: =SUMIF(#REF!,'CY24 Contract Req Check'!$A13,#REF!) ->  | J13: =I13/B13 ->  | K13: =(H13-J13) ->  | L13: 506.8302034 | M13: 106212.0569 | N13: 1438867.96 | O13: =SUMIF(#REF!,'CY24 Contract Req Check'!A13,#REF!) ->  | P13: =SUM(L13:N13) -> 1545586.847 | Q13: =O13/P13 -> 
A14: WellSense-Signature | B14: =(SUMIF(#REF!,'CY24 Contract Req Check'!$A14,#REF!))+(SUMIF(#REF!,'CY24 Contract Req Check'!$A14,#REF!)) ->  | C14: 25313 | E14: 253.13 | G14: 8583 | H14: 0.3390747837 | I14: =SUMIF(#REF!,'CY24 Contract Req Check'!$A14,#REF!) ->  | L14: 342.0412842 | M14: 71838.15681 | N14: 986325.2624 | O14: =SUMIF(#REF!,'CY24 Contract Req Check'!A14,#REF!) ->  | P14: 1058505.46
A15: WellSense-Southcoast | B15: =(SUMIF(#REF!,'CY24 Contract Req Check'!$A15,#REF!))+(SUMIF(#REF!,'CY24 Contract Req Check'!$A15,#REF!)) ->  | C15: 21893 | E15: 218.93 | G15: 5919 | H15: 0.2703603892 | I15: =SUMIF(#REF!,'CY24 Contract Req Check'!$A15,#REF!) ->  | L15: 297.364991 | M15: 62462.96996 | N15: 807026.9184 | O15: =SUMIF(#REF!,'CY24 Contract Req Check'!A15,#REF!) ->  | P15: 869787.2534
A16: WellSense-Care Alliance | B16: =(SUMIF(#REF!,'CY24 Contract Req Check'!$A16,#REF!))+(SUMIF(#REF!,'CY24 Contract Req Check'!$A16,#REF!)) ->  | C16: 66989 | E16: 669.89 | G16: 27217 | H16: 0.406290585 | I16: =SUMIF(#REF!,'CY24 Contract Req Check'!$A16,#REF!) ->  | L16: 982.6416785 | M16: 206080.0983 | N16: 2786175.713 | O16: =SUMIF(#REF!,'CY24 Contract Req Check'!A16,#REF!) ->  | P16: 2993238.453
A17: CCC | B17: =(SUMIF(#REF!,'CY24 Contract Req Check'!$A17,#REF!))+(SUMIF(#REF!,'CY24 Contract Req Check'!$A17,#REF!)) ->  | C17: 229474 | E17: 2294.74 | G17: 83649 | H17: 0.3645249571 | I17: =SUMIF(#REF!,'CY24 Contract Req Check'!$A17,#REF!) ->  | J17: =I17/B17 ->  | K17: =(H17-J17) ->  | L17: 2991.40616 | M17: 629021.3982 | N17: 8696583.002 | O17: =SUMIF(#REF!,'CY24 Contract Req Check'!A17,#REF!) ->  | P17: 9328595.806 | Q17: =O17/P17 -> 
A18: Steward | B18: =(SUMIF(#REF!,'CY24 Contract Req Check'!$A18,#REF!))+(SUMIF(#REF!,'CY24 Contract Req Check'!$A18,#REF!)) ->  | C18: 125823 | E18: 1258.23 | G18: 53825 | H18: 0.4277834736 | I18: =SUMIF(#REF!,'CY24 Contract Req Check'!$A18,#REF!) ->  | L18: 1295.440813 | M18: 352234.6274 | N18: 4849264.259 | O18: =SUMIF(#REF!,'CY24 Contract Req Check'!A18,#REF!) ->  | P18: 5202794.327
C19: 0
A20: AHP-MGB | O20: =SUM(O2:O18) ->  | P20: =SUM(P2:P18) -> 55218478.65 | Q20: =O20/P20 -> 

Sheet Pivot Table Contract Req CY24 (hidden)
A3: Row Labels | B3: Sum of Transportation Funding | C3: Sum of Kitchen Nutrition Supplies | D3: Sum of General FS Funding
A4: AHP-MGB | B4: 2200.67 | C4: 462461.58 | D4: 6296630.99
A5: CCC | B5: 2991.40616 | C5: 629021.3982 | D5: 8696583.002
A6: FLN-Atrius | B6: 587.6701998 | C6: 123523.3681 | D6: 1705738.152
A7: FLN-Berkshire | B7: 232.02 | C7: 62080.39855 | D7: 707817.0467
A8: FLN-Reliant | B8: 444.0038312 | C8: 115140.012 | D8: 1558067.028
A9: HNE-Be Healthy | B9: 849.6504474 | C9: 177835.37 | D9: 2268160.065
A10: Steward | B10: 1295.440813 | C10: 352234.6274 | D10: 4849264.259
A11: Tufts-CHA | B11: 568.2009038 | C11: 119250.3348 | D11: 1367985.33
A12: Tufts-UMMH | B12: 652.0879834 | C12: 158144.9098 | D12: 2138491.895
A13: WellSense-BACO | B13: 2168.931987 | C13: 488402.8867 | D13: 5811901.31
A14: WellSense-BCH | B14: 2001.573499 | C14: 419758.3998 | D14: 5274209.302
A15: WellSense-BILHNP | B15: 4000 | C15: 127000 | D15: 3443784.92
A16: WellSense-Care Alliance | B16: 982.6416785 | C16: 206080.0983 | D16: 2786175.713
A17: WellSense-EBHNC | B17: 444.0183443 | C17: 93412.22469 | D17: 1286026.148
A18: WellSense-Mercy | B18: 506.8302034 | C18: 106212.0569 | D18: 1438867.96
A19: WellSense-Signature | B19: 342.0412842 | C19: 71838.15681 | D19: 986325.2624
A20: WellSense-Southcoast | B20: 297.364991 | C20: 62462.96996 | D20: 807026.9184
A21: Grand Total | B21: 20564.55232 | C21: 3774858.792 | D21: 51423055.3

Sheet CY24 Budget Narrative (hidden)
A1: CY24 Budget Narrative
A2: This analysis is INVALID until all ACOs have been added: | B2: =IF(COUNTIF($A10:$A132, "*BILH*") > 0, "✅", "❌") & " BILH" -> ✅ BILH | C2: =IF(COUNTIF($A10:$A132, "*CCC*") > 0, "✅", "❌") & " CCC" -> ✅ CCC | D2: =IF(COUNTIF($A10:$A132, "*East Boston*") > 0, "✅", "❌") & " East Boston" -> ✅ East Boston | E2: =IF(COUNTIF($A10:$A132, "*Be Healthy*") > 0, "✅", "❌") & " Be Healthy" -> ✅ Be Healthy | F2: =IF(COUNTIF($A10:$A132,"*Steward*")>0,"✅","❌") &" Steward" -> ✅ Steward | G2: =IF(COUNTIF($A10:$A132, "*Children's*") > 0, "✅", "❌") & " Children's" -> ❌ Children's | H2: =IF(COUNTIF($A10:$A132, "*Atrius*") > 0, "✅", "❌") & " Atrius" -> ✅ Atrius | I2: =IF(COUNTIF($A10:$A132, "*CHA*") > 0, "✅", "❌") & " CHA" -> ✅ CHA | J2: =IF(COUNTIF($A10:$A132, "*MGB*") > 0, "✅", "❌") & " MGB" -> ✅ MGB | K2: Notes: - zeroes have been removed from the data in all colums to ensure consistency between the overall statistics and by-domain statistics for all columns - conditional formatting in columns D (anticipated members), E (expected avg. cost per member), and L/M (transportation) are based on the PER-DOMAIN standard deviation rather than the overall standard deviation - currently tenancy+nutrition combined programs are not included in this analysis
A3: This tracker is only for goods for each ACO; program staff details are not tracked. | B3: =IF(COUNTIF($A10:$A132, "*UMMH*") > 0, "✅", "❌") & " UMMH" -> ✅ UMMH | C3: =IF(COUNTIF($A10:$A132, "*Tufts Medicine*") > 0, "✅", "❌") & " Tufts Medicine" -> ❌ Tufts Medicine | D3: =IF(COUNTIF($A10:$A132, "*Reliant*") > 0, "✅", "❌") & " Reliant" -> ✅ Reliant | E3: =IF(COUNTIF($A10:$A132, "*Berkshire*") > 0, "✅", "❌") & " Berkshire" -> ✅ Berkshire | F3: =IF(COUNTIF($A10:$A132, "*BACO*") > 0, "✅", "❌") & " BACO" -> ✅ BACO | G3: =IF(COUNTIF($A10:$A132, "*Signature*") > 0, "✅", "❌") & " Signature" -> ✅ Signature | H3: =IF(COUNTIF($A10:$A132, "*Mercy*") > 0, "✅", "❌") & " Mercy" -> ✅ Mercy | I3: =IF(COUNTIF($A10:$A132, "*Southcoast*") > 0, "✅", "❌") & " Southcoast" -> ✅ Southcoast
A4: Instructions: Please add the ACO name for each FS program in the leftmost column. When you paste in new data, PASTE BY VALUE ONLY (right-click the cell where you're pasting the data and click "match destination formatting").Cells colored green are within one standard deviation of the rest of their column; cells colored red are above one standard deviation of the mean; cells colored blue are below one standard deviation. Conditional formatting is based on the overall standard deviation, not by category (tenancy/nutrition). Once all ACOs have been added, the statistics at the bottom of the sheet and the cell-level conditional formatting will be correct -- until then, the analysis is INCORRECT.
A5: Goods - Additional Details
A6: Please add ACO name for each FS program. Make sure it matches the names above exactly. | B6: Pre-Populated from PY5 FS Budget-Expenditures Tab | D6: Based on CY23 Expectations
D7: Overall Cost per Member per Program | H7: Tenancy Goods | T7: Transportation (Nutrition or Tenancy) | V7: Nutrition Goods | AF7: Other Goods over $500
A8: ACO Name | B8: Program ID | C8: Program Domain | D8: # of Members Anticipated Served in CY24 | E8: Expected average number of weeks members active in program (if a member was active in more than one program, count their duration for each program separately) | F8: Expected Average $ spent per member that complete their FS plan, inclusive of goods, services, and SSO admin | G8: SSO Admin Rate | H8: First Month, Last Month, and/or Security Deposit (combined cost) | J8: Moving Costs | L8: Household Furniture | N8: Asthma Interventions | P8: Physical Adaptations | R8: Public Transportation | T8: Private Transportation | V8: Nutrition Kitchen Supplies | X8: Home Delivered (including Medically Tailored) Meals - Individual Level | Z8: Home Delivered (including Medically Tailored) Meals - Household Level | AB8: Food Boxes (e.g., CSAs, Grocery Bags) | AD8: Food Vouchers
H9: First Month, Last Month, and/or Security Deposit: Anticipated Number of Members | I9: First Month, Last Month, and/or Security Deposit: Expected Average Spend per Member | J9: Moving Costs: Anticipated Number of Members | K9: Moving Costs: Expected Average Spend per Member | L9: Household Furniture: Anticipated Number of Members | M9: Household Furniture: Expected Average Spend per Member | N9: Asthma Interventions: Anticipated Number of Members | O9: Asthma Interventions: Expected Average Spend per Member | P9: Physical Adaptations: Anticipated Number of Members | Q9: Physical Adaptations: Expected Average Spend per Member | R9: Public Transportation: Anticipated Number of Members Received | S9: Public Transportation: Expected Average Spent per Member per Month | T9: Private Transportation: Anticipated Number of Members Received | U9: Private Transportation: Expected Average Spent per Member per Month | V9: Nutrition Kitchen Supplies: Anticipated Number of Members | W9: Nutrition Kitchen Supplies: Expected Average Spent per Member that Received | X9: Home Delivered (including Medically Tailored) Meals: Anticipated Number of Members at the Individual Level | Y9: Home Delivered (including Medically Tailored) Meals: Expected Average Spent per Member at the Individual Level per Week (maximum 3 meal per day) | Z9: Home Delivered (including Medically Tailored) Meals: Anticipated Number of Members at the Household Level | AA9: Home Delivered (including Medically Tailored) Meals: Expected Average Spent per Member at the Household Level per Week (maximum 3 meals a day) | AB9: Food Boxes: Anticipated Number of Members | AC9: Food Boxes: Expected Average Spent per Member per month | AD9: Food Vouchers: Anticipated Number of Members | AE9: Food Vouchers: Expected Average Spent per Member per month | AF9: Other Goods over $500: Identify Good | AG9: Other Goods Over $500: Estimated Number of Goods Provided | AH9: Other Goods Over $500: Expected Average Cost | AQ9: ACO | AR9: Total Members | AS9: Total Budget | BA9: =IF(C10="Tenancy",AND(D10<>"",OR(D10<(D$140-D$143),D10>(D$140+D$143))),AND(D10<>"",OR(D10<(D$146-D$149),D10>(D$146+D$149)))) -> FALSE
A10: HNE-Be Healthy | B10: FS-1 | C10: Tenancy | D10: 250 | E10: 1 | F10: 2276.7 | G10: 0.15 | N10: 250 | O10: 2305 | AQ10: Reliant | AR10: =SUMIF($A$10:$A$132, $AQ10, $D$10:$D$132) -> 0 | AS10: =SUMIF($A$10:$A$132, $AQ10,#REF!) -> 
A11: HNE-Be Healthy | B11: FS-2 | C11: Nutrition | D11: 570 | E11: 10 | F11: 2897.06 | G11: 0.15 | R11: 75 | S11: 10.42666667 | V11: 570 | W11: 234.4880702 | AB11: 570 | AC11: 600 | AQ11: Mercy | AR11: 0 | AS11: =SUMIF($A$10:$A$132, $AQ11,#REF!) -> 
A12: Tufts-CHA | B12: CHA Medically Tailored Meals Program | C12: Nutrition | D12: 133 | E12: 26 | F12: 3854.5 | G12: 0.07 | R12: 0 | T12: 0 | V12: 0 | X12: 133 | Y12: 148.25 | Z12: 0 | AB12: 0 | AD12: 0 | AF12: 0 | AQ12: BCHACO | AR12: 0 | AS12: =SUMIF($A$10:$A$132, $AQ12,#REF!) -> 
A13: Tufts-CHA | B13: CHA Housing Support Program | C13: Tenancy | D13: 549 | E13: 13 | F13: 2928 | G13: 0.21 | H13: 10 | I13: 2300 | J13: 7 | K13: 1800 | L13: 7 | M13: 750 | N13: 3 | O13: 2000 | P13: 2 | Q13: 4000 | R13: 0 | T13: 6 | U13: 360 | V13: 100 | W13: 75 | AF13: Pest and/or mold remediation for members who do not have asthma; back utilities | AG13: 5 | AH13: $1800 for pest/mold remediation; $1100 for back utilities | AQ13: Baystate | AR13: 0 | AS13: =SUMIF($A$10:$A$132, $AQ13,#REF!) -> 
A14: Tufts-CHA | B14: CHA Fresh Connect Program | C14: Nutrition | D14: 754 | E14: 26 | F14: 677 | G14: 0.1 | R14: 0 | T14: 0 | V14: 0 | X14: 0 | Z14: 0 | AB14: 0 | AD14: 754 | AE14: 112.83 | AF14: 0 | AQ14: MGB | AR14: 0 | AS14: =SUMIF($A$10:$A$132, $AQ14,#REF!) -> 
A15: Tufts-CHA | B15: CHA Food Prescription Program | C15: Nutrition | D15: 109 | E15: 26 | F15: 777 | G15: 0.16 | R15: 0 | T15: 0 | V15: 42 | W15: 87 | X15: 0 | AB15: 109 | AC15: 115 | AD15: 0 | AF15: 0 | AQ15: Berkshire | AR15: 0 | AS15: =SUMIF($A$10:$A$132, $AQ15,#REF!) -> 
A16: Tufts-UMMH | B16: Fresh Connect Card Nutrition Program | C16: Nutrition | D16: 333 | E16: 24 | F16: 617.0600601 | G16: 0.22 | AD16: 333 | AE16: 80 | AQ16: Signature | AR16: 0 | AS16: =SUMIF($A$10:$A$132, $AQ16,#REF!) -> 
A17: Tufts-UMMH | B17: Elder Services of Worcester Meal Delivery Program | C17: Nutrition | D17: 100 | E17: 24 | F17: 2796.78769 | G17: 0.19 | V17: 100 | W17: 492.62 | X17: 75 | Y17: 98 | AB17: 25 | AC17: 308 | AQ17: C3 | AR17: 0 | AS17: =SUMIF($A$10:$A$132, $AQ17,#REF!) -> 
A18: Tufts-UMMH | B18: Good Measures Nutrition Education and Grocery Delivery Program | C18: Nutrition | AQ18: MVACO | AR18: 0 | AS18: =SUMIF($A$10:$A$132, $AQ18,#REF!) -> 
A19: Tufts-UMMH | B19: Making Opportunities Count Nutritional Support Program | C19: Nutrition | D19: 50 | E19: 24 | F19: 2891.62 | G19: 0.18 | V19: 38 | W19: 186 | X19: 50 | Y19: 113.78 | AQ19: BACO | AR19: 0 | AS19: =SUMIF($A$10:$A$132, $AQ19,#REF!) -> 
A20: Tufts-UMMH | B20: Making Opportunities Count Housing Support Program | C20: Tenancy | D20: 50 | E20: 24 | F20: 2311.744 | G20: 0.18 | H20: 9 | I20: 4000 | J20: 5 | K20: 2000 | L20: 12 | M20: 515 | P20: 11 | Q20: 515 | AQ20: Wellforce | AR20: 0 | AS20: =SUMIF($A$10:$A$132, $AQ20,#REF!) -> 
A21: Tufts-UMMH | B21: Massachusetts Coalition for the Homeless Housing Partnership | C21: Tenancy | D21: 200 | E21: 24 | F21: 2152.425 | G21: 0.15 | H21: 25 | I21: 2000 | J21: 8 | K21: 500 | L21: 20 | M21: 2200 | N21: 45 | O21: 500 | P21: 20 | Q21: 2500 | T21: 20 | U21: 60 | AF21: stabilization services and goods | AG21: 55 | AH21: 800 | AQ21: Steward | AR21: 1258 | AS21: =SUMIF($A$10:$A$132, $AQ21,#REF!) -> 
A22: Tufts-UMMH | B22: Open Sky Housing Assistance Program | C22: Tenancy | D22: 200 | E22: 24 | F22: 2883.76966 | G22: 0.125 | H22: 15 | I22: 2000 | J22: 30 | K22: 500 | L22: 20 | M22: 500 | AQ22: Atrius | AR22: 0 | AS22: =SUMIF($A$10:$A$132, $AQ22,#REF!) -> 
A23: Tufts-UMMH | B23: Project Bread Nutrition Program | C23: Nutrition | D23: 480 | E23: 24 | F23: 1134.91 | G23: 0.15 | V23: 460 | W23: 220 | AD23: 480 | AE23: 104 | AQ23: Lahey | AR23: 0 | AS23: =SUMIF($A$10:$A$132, $AQ23,#REF!) -> 
A24: WellSense-BACO | B24: H001 - Metro Housing Boston Housing Program | C24: Tenancy | D24: 50 | E24: 26 | F24: 2617.44 | G24: 0.12 | H24: 16 | I24: 2000 | J24: 15 | K24: 300 | L24: 15 | M24: 1000 | N24: 7 | O24: 300 | P24: 7 | Q24: 1000 | R24: 10 | S24: 50 | T24: 10 | U24: 50 | AF24: Applicance, Pest Management | AG24: 2 | AH24: 500 | AQ24: CHA | AR24: 0 | AS24: =SUMIF($A$10:$A$132, $AQ24,#REF!) -> 
A25: WellSense-BACO | B25: H002- MA Coalition for the Homeless Housing Program | C25: Tenancy | D25: 130 | E25: 26 | F25: 1165.9 | G25: 0.15 | H25: 13 | I25: 1631 | J25: 8 | K25: 500 | L25: 13 | M25: 1200 | N25: 15 | O25: 800 | P25: 16 | Q25: 800 | R25: 5 | S25: 25 | T25: 5 | U25: 25 | AQ25: BIDCO | AR25: 0 | AS25: =SUMIF($A$10:$A$132, $AQ25,#REF!) -> 
A26: WellSense-BACO | B26: H003-Quincy Community Action Programs Housing Program | C26: Tenancy | D26: 70 | E26: 26 | F26: 1737.84 | G26: 0.2 | H26: 7 | I26: 2200 | J26: 3 | K26: 900 | L26: 2 | M26: 974 | N26: 1 | O26: 200 | P26: 1 | Q26: 200 | AQ26: Southcoast | AR26: 0 | AS26: =SUMIF($A$10:$A$132, $AQ26,#REF!) -> 
A27: WellSense-BACO | B27: H004-Boston Healthcare for the Homeless Housing Program | C27: Tenancy | D27: 110 | E27: 26 | F27: 2306.95 | G27: 0.15 | H27: 53 | I27: 1743 | J27: 10 | K27: 400 | L27: 10 | M27: 200 | N27: 4 | O27: 100 | P27: 4 | Q27: 500 | R27: 3 | S27: 25 | T27: 4 | U27: 50 | AQ27: Total | AR27: =SUM(AR10:AR26) -> 1258 | AS27: =SUM(AS10:AS26) -> 
A28: WellSense-BACO | B28: H006 - WayFinders Housing Program | C28: Tenancy | D28: 48 | E28: 26 | F28: 2750.25 | G28: 0.25 | H28: 7 | I28: 3000 | J28: 4 | K28: 800 | L28: 3 | M28: 1000 | N28: 2 | O28: 325 | P28: 2 | Q28: 350 | R28: 5 | S28: 10 | T28: 7 | U28: 30
A29: WellSense-BACO | B29: H007 - Community Counseling of Bristol County Housing Program | C29: Tenancy | D29: 220 | E29: 32 | F29: 2925.98 | G29: 0.1 | H29: 3600 | I29: 33 | J29: 600 | K29: 44 | L29: 2000 | M29: 20 | N29: 300 | O29: 10 | P29: 380 | Q29: 10 | R29: 25 | S29: 10 | T29: 25 | AF29: Appliances, Pest Management | AG29: 4 | AH29: 500
A30: WellSense-BACO | B30: H008-Eliot Community Human Services Housing Program | C30: Tenancy | D30: 250 | E30: 10 | F30: 3120.17 | G30: 0.13 | H30: 57 | I30: 4500 | J30: 15 | K30: 1000 | L30: 58 | M30: 1000 | N30: 3 | O30: 500 | P30: 1 | Q30: 5500 | R30: 25 | S30: 20 | T30: 25 | U30: 20 | AF30: Appliances, Pest Management | AG30: 8 | AH30: 600
A31: WellSense-BACO | B31: H009- Housing Assistance Corporation Housing Program | C31: Tenancy | D31: 25 | E31: 26 | F31: 5054 | G31: 0.15 | H31: 4 | I31: 7500 | J31: 2 | K31: 2500 | L31: 3 | M31: 1000 | N31: 1 | O31: 1000 | P31: 1 | Q31: 1000 | AF31: Pest | AG31: 2 | AH31: 1000
A32: WellSense-BACO | B32: H0010-Medical Legal Partnership Boston | C32: Tenancy | D32: 130 | E32: 4 | F32: 730.77 | G32: 0.14
